{"text_format":"1","workbook":"xlsx","n_sheets":6,"sheets":["Datasheet","Species List","Encounter Type","Animal Condition","Fate","Reference Data"],"not_rendered":{"charts":0,"images":0,"macros":1,"external_links":0,"defined_names":10,"comments":1,"pivot_tables":0},"unopened":[],"bounds":{"document_bytes":16777216,"sheet_cells":100000,"rows_first":2000,"rows_last":500,"rows_between":2000,"halvings":0,"cell_chars":16384,"cell_head_chars":4096},"cells_cut":0,"cells_raw":0,"read":"whole","date_system":"1900"}

{"sheet":"Datasheet","index":0,"n_rows":8000,"n_cols":25,"rows_kept":8000,"cut":false,"hidden":false,"merged":[[0,0,0,23],[1,3,1,12],[1,13,1,16],[1,18,1,23]]}
["RECORD SHEET FOR FAUNA REHABILITATORS "]
["SPECIES",null,null,"ENCOUNTER DETAILS",null,null,null,null,null,null,null,null,null,"SPECIES INFORMATION",null,null,null,"REHABILITATOR","FATE DETAILS"]
["Common Name","Scientific Name","Code","Id Number","Date of Encounter","Encounter Type","Location Details: Exact Address ","Suburb/Town","Location Postcode","Location Details: GPS Coordinates: Latitude ","Location Details: GPS Coordinates: Longitude ","Location Details: Additional Information ","Animal Condition","Sex","Life Stage ","Initial Weight","Pouch Condition","Rehabilitator Name","Fate  ","Date of Fate","Release Location: Exact Address","Release Location: Distance from Encounter Location","Tag/Band Colour and Number","Microchip Number","Notes"]
[null,{"$f":"IFERROR(VLOOKUP($A4,Common_LU,2,0),\"\")","v":""},{"$f":"IFERROR(VLOOKUP($A4,Common_LU,3,0),\"\")","v":""}]
[null,"",""]
[null,"",""]
[null,"",""]
[null,"",""]
[null,"",""]
[null,"",""]
[null,"",""]
[null,"",""]
[null,"",""]
[null,"",""]
[null,"",""]
[null,"",""]
[null,"",""]
[null,"",""]
[null,"",""]
[null,"",""]
[null,"",""]
[null,"",""]
[null,"",""]
[null,"",""]
[null,"",""]
[null,"",""]
[null,"",""]
[null,"",""]
[null,"",""]
[null,"",""]
[null,"",""]
[null,"",""]
[null,"",""]
[null,"",""]
[null,"",""]
[null,"",""]
[null,"",""]
[null,"",""]
[null,"",""]
[null,"",""]
[null,"",""]
[null,"",""]
[null,"",""]
[null,"",""]
[null,"",""]
[null,"",""]
[null,"",""]
[null,"",""]
[null,"",""]
[null,"",""]
[null,"",""]
[null,"",""]
[null,"",""]
[null,"",""]
[null,"",""]
[null,"",""]
[null,"",""]
[null,"",""]
[null,"",""]
[null,"",""]
[null,"",""]
[null,"",""]
[null,"",""]
[null,"",""]
[null,"",""]
[null,"",""]
[null,"",""]
[null,{"$f":"IFERROR(VLOOKUP($A68,Common_LU,2,0),\"\")","v":""},{"$f":"IFERROR(VLOOKUP($A68,Common_LU,3,0),\"\")","v":""}]
[null,"",""]
[null,"",""]
[null,"",""]
[null,"",""]
[null,"",""]
[null,"",""]
[null,"",""]
[null,"",""]
[null,"",""]
[null,"",""]
[null,"",""]
[null,"",""]
[null,"",""]
[null,"",""]
[null,"",""]
[null,"",""]
[null,"",""]
[null,"",""]
[null,"",""]
[null,"",""]
[null,"",""]
[null,"",""]
[null,"",""]
[null,"",""]
[null,"",""]
[null,"",""]
[null,"",""]
[null,"",""]
[null,"",""]
[null,"",""]
[null,"",""]
[null,"",""]
[null,"",""]
[null,"",""]
[null,"",""]
[null,"",""]
[null,"",""]
[null,"",""]
[null,"",""]
[null,"",""]
[null,"",""]
[null,"",""]
[null,"",""]
[null,"",""]
[null,"",""]
[null,"",""]
[null,"",""]
[null,"",""]
[null,"",""]
[null,"",""]
[null,"",""]
[null,"",""]
[null,"",""]
[null,"",""]
[null,"",""]
[null,"",""]
[null,"",""]
[null,"",{"$f":"IFERROR(VLOOKUP($A126,Common_LU,3,0),\"\")","v":""}]
[null,"",""]
[null,"",""]
[null,"",""]
[null,"",""]
[null,"",""]
[null,{"$f":"IFERROR(VLOOKUP($A132,Common_LU,2,0),\"\")","v":""},{"$f":"IFERROR(VLOOKUP($A132,Common_LU,3,0),\"\")","v":""}]
[null,"",""]
[null,"",""]
[null,"",""]
[null,"",""]
[null,"",""]
[null,"",""]
[null,"",""]
[null,"",""]
[null,"",""]
[null,"",""]
[null,"",""]
[null,"",""]
[null,"",""]
[null,"",""]
[null,"",""]
[null,"",""]
[null,"",""]
[null,"",""]
[null,"",""]
[null,"",""]
[null,"",""]
[null,"",""]
[null,"",""]
[null,"",""]
[null,"",""]
[null,"",""]
[null,"",""]
[null,"",""]
[null,"",""]
[null,"",""]
[null,"",""]
[null,"",""]
[null,"",""]
[null,"",""]
[null,"",""]
[null,"",""]
[null,"",""]
[null,"",""]
[null,"",""]
[null,"",""]
[null,"",""]
[null,"",""]
[null,"",""]
[null,"",""]
[null,"",""]
[null,"",""]
[null,"",""]
[null,"",""]
[null,"",""]
[null,"",""]
[null,"",""]
[null,"",""]
[null,"",""]
[null,"",""]
[null,"",""]
[null,"",""]
[null,"",""]
[null,"",""]
[null,"",""]
[null,"",""]
[null,"",""]
[null,"",""]
[null,"",""]
[null,{"$f":"IFERROR(VLOOKUP($A196,Common_LU,2,0),\"\")","v":""},{"$f":"IFERROR(VLOOKUP($A196,Common_LU,3,0),\"\")","v":""}]
[null,"",""]
[null,"",""]
[null,"",""]
[null,"",""]
[null,"",""]
[null,"",""]
[null,"",""]
[null,"",""]
[null,"",""]
[null,"",""]
[null,"",""]
[null,"",""]
[null,"",""]
[null,"",""]
[null,"",""]
[null,"",""]
[null,"",""]
[null,"",""]
[null,"",""]
[null,"",""]
[null,"",""]
[null,"",""]
[null,"",""]
[null,"",""]
[null,"",""]
[null,"",""]
[null,"",""]
[null,"",""]
[null,"",""]
[null,"",""]
[null,"",""]
[null,"",""]
[null,"",""]
[null,"",""]
[null,"",""]
[null,"",""]
[null,"",""]
[null,"",""]
[null,"",""]
[null,"",""]
[null,"",""]
[null,"",""]
[null,"",""]
[null,"",""]
[null,"",""]
[null,"",""]
[null,"",""]
[null,"",""]
[null,"",""]
[null,"",""]
[null,"",""]
[null,"",""]
[null,"",""]
[null,"",""]
[null,"",""]
[null,"",""]
[null,"",""]
[null,"",""]
[null,"",""]
[null,"",""]
[null,"",""]
[null,"",""]
[null,"",""]
[null,{"$f":"IFERROR(VLOOKUP($A260,Common_LU,2,0),\"\")","v":""},{"$f":"IFERROR(VLOOKUP($A260,Common_LU,3,0),\"\")","v":""}]
[null,"",""]
[null,"",""]
[null,"",""]
[null,"",""]
[null,"",""]
[null,"",""]
[null,"",""]
[null,"",""]
[null,"",""]
[null,"",""]
[null,"",""]
[null,"",""]
[null,"",""]
[null,"",""]
[null,"",""]
[null,"",""]
[null,"",""]
[null,"",""]
[null,"",""]
[null,"",""]
[null,"",""]
[null,"",""]
[null,"",""]
[null,"",""]
[null,"",""]
[null,"",""]
[null,"",""]
[null,"",""]
[null,"",""]
[null,"",""]
[null,"",""]
[null,"",""]
[null,"",""]
[null,"",""]
[null,"",""]
[null,"",""]
[null,"",""]
[null,"",""]
[null,"",""]
[null,"",""]
[null,"",""]
[null,"",""]
[null,"",""]
[null,"",""]
[null,"",""]
[null,"",""]
[null,"",""]
[null,"",""]
[null,"",""]
[null,"",""]
[null,"",""]
[null,"",""]
[null,"",""]
[null,"",""]
[null,"",""]
[null,"",""]
[null,"",""]
[null,"",""]
[null,"",""]
[null,"",""]
[null,"",""]
[null,"",""]
[null,"",""]
[null,{"$f":"IFERROR(VLOOKUP($A324,Common_LU,2,0),\"\")","v":""},{"$f":"IFERROR(VLOOKUP($A324,Common_LU,3,0),\"\")","v":""}]
[null,"",""]
[null,"",""]
[null,"",""]
[null,"",""]
[null,"",""]
[null,"",""]
[null,"",""]
[null,"",""]
[null,"",""]
[null,"",""]
[null,"",""]
[null,"",""]
[null,"",""]
[null,"",""]
[null,"",""]
[null,"",""]
[null,"",""]
[null,"",""]
[null,"",""]
[null,"",""]
[null,"",""]
[null,"",""]
[null,"",""]
[null,"",""]
[null,"",""]
[null,"",""]
[null,"",""]
[null,"",""]
[null,"",""]
[null,"",""]
[null,"",""]
[null,"",""]
[null,"",""]
[null,"",""]
[null,"",""]
[null,"",""]
[null,"",""]
[null,"",""]
[null,"",""]
[null,"",""]
[null,"",""]
[null,"",""]
[null,"",""]
[null,"",""]
[null,"",""]
[null,"",""]
[null,"",""]
[null,"",""]
[null,"",""]
[null,"",""]
[null,"",""]
[null,"",""]
[null,"",""]
[null,"",""]
[null,"",""]
[null,"",""]
[null,"",""]
[null,"",""]
[null,"",""]
[null,"",""]
[null,"",""]
[null,"",""]
[null,"",""]
[null,{"$f":"IFERROR(VLOOKUP($A388,Common_LU,2,0),\"\")","v":""},{"$f":"IFERROR(VLOOKUP($A388,Common_LU,3,0),\"\")","v":""}]
[null,"",""]
[null,"",""]
[null,"",""]
[null,"",""]
[null,"",""]
[null,"",""]
[null,"",""]
[null,"",""]
[null,"",""]
[null,"",""]
[null,"",""]
[null,"",""]
[null,"",""]
[null,"",""]
[null,"",""]
[null,"",""]
[null,"",""]
[null,"",""]
[null,"",""]
[null,"",""]
[null,"",""]
[null,"",""]
[null,"",""]
[null,"",""]
[null,"",""]
[null,"",""]
[null,"",""]
[null,"",""]
[null,"",""]
[null,"",""]
[null,"",""]
[null,"",""]
[null,"",""]
[null,"",""]
[null,"",""]
[null,"",""]
[null,"",""]
[null,"",""]
[null,"",""]
[null,"",""]
[null,"",""]
[null,"",""]
[null,"",""]
[null,"",""]
[null,"",""]
[null,"",""]
[null,"",""]
[null,"",""]
[null,"",""]
[null,"",""]
[null,"",""]
[null,"",""]
[null,"",""]
[null,"",""]
[null,"",""]
[null,"",""]
[null,"",""]
[null,"",""]
[null,"",""]
[null,"",""]
[null,"",""]
[null,"",""]
[null,"",""]
[null,{"$f":"IFERROR(VLOOKUP($A452,Common_LU,2,0),\"\")","v":""},{"$f":"IFERROR(VLOOKUP($A452,Common_LU,3,0),\"\")","v":""}]
[null,"",""]
[null,"",""]
[null,"",""]
[null,"",""]
[null,"",""]
[null,"",""]
[null,"",""]
[null,"",""]
[null,"",""]
[null,"",""]
[null,"",""]
[null,"",""]
[null,"",""]
[null,"",""]
[null,"",""]
[null,"",""]
[null,"",""]
[null,"",""]
[null,"",""]
[null,"",""]
[null,"",""]
[null,"",""]
[null,"",""]
[null,"",""]
[null,"",""]
[null,"",""]
[null,"",""]
[null,"",""]
[null,"",""]
[null,"",""]
[null,"",""]
[null,"",""]
[null,"",""]
[null,"",""]
[null,"",""]
[null,"",""]
[null,"",""]
[null,"",""]
[null,"",""]
[null,"",""]
[null,"",""]
[null,"",""]
[null,"",""]
[null,"",""]
[null,"",""]
[null,"",""]
[null,"",""]
[null,"",""]
[null,"",""]
[null,"",""]
[null,"",""]
[null,"",""]
[null,"",""]
[null,"",""]
[null,"",""]
[null,"",""]
[null,"",""]
[null,"",""]
[null,"",""]
[null,"",""]
[null,"",""]
[null,"",""]
[null,"",""]
[null,{"$f":"IFERROR(VLOOKUP($A516,Common_LU,2,0),\"\")","v":""},{"$f":"IFERROR(VLOOKUP($A516,Common_LU,3,0),\"\")","v":""}]
[null,"",""]
[null,"",""]
[null,"",""]
[null,"",""]
[null,"",""]
[null,"",""]
[null,"",""]
[null,"",""]
[null,"",""]
[null,"",""]
[null,"",""]
[null,"",""]
[null,"",""]
[null,"",""]
[null,"",""]
[null,"",""]
[null,"",""]
[null,"",""]
[null,"",""]
[null,"",""]
[null,"",""]
[null,"",""]
[null,"",""]
[null,"",""]
[null,"",""]
[null,"",""]
[null,"",""]
[null,"",""]
[null,"",""]
[null,"",""]
[null,"",""]
[null,"",""]
[null,"",""]
[null,"",""]
[null,"",""]
[null,"",""]
[null,"",""]
[null,"",""]
[null,"",""]
[null,"",""]
[null,"",""]
[null,"",""]
[null,"",""]
[null,"",""]
[null,"",""]
[null,"",""]
[null,"",""]
[null,"",""]
[null,"",""]
[null,"",""]
[null,"",""]
[null,"",""]
[null,"",""]
[null,"",""]
[null,"",""]
[null,"",""]
[null,"",""]
[null,"",""]
[null,"",""]
[null,"",""]
[null,"",""]
[null,"",""]
[null,"",""]
[null,{"$f":"IFERROR(VLOOKUP($A580,Common_LU,2,0),\"\")","v":""},{"$f":"IFERROR(VLOOKUP($A580,Common_LU,3,0),\"\")","v":""}]
[null,"",""]
[null,"",""]
[null,"",""]
[null,"",""]
[null,"",""]
[null,"",""]
[null,"",""]
[null,"",""]
[null,"",""]
[null,"",""]
[null,"",""]
[null,"",""]
[null,"",""]
[null,"",""]
[null,"",""]
[null,"",""]
[null,"",""]
[null,"",""]
[null,"",""]
[null,"",""]
[null,"",""]
[null,"",""]
[null,"",""]
[null,"",""]
[null,"",""]
[null,"",""]
[null,"",""]
[null,"",""]
[null,"",""]
[null,"",""]
[null,"",""]
[null,"",""]
[null,"",""]
[null,"",""]
[null,"",""]
[null,"",""]
[null,"",""]
[null,"",""]
[null,"",""]
[null,"",""]
[null,"",""]
[null,"",""]
[null,"",""]
[null,"",""]
[null,"",""]
[null,"",""]
[null,"",""]
[null,"",""]
[null,"",""]
[null,"",""]
[null,"",""]
[null,"",""]
[null,"",""]
[null,"",""]
[null,"",""]
[null,"",""]
[null,"",""]
[null,"",""]
[null,"",""]
[null,"",""]
[null,"",""]
[null,"",""]
[null,"",""]
[null,{"$f":"IFERROR(VLOOKUP($A644,Common_LU,2,0),\"\")","v":""},{"$f":"IFERROR(VLOOKUP($A644,Common_LU,3,0),\"\")","v":""}]
[null,"",""]
[null,"",""]
[null,"",""]
[null,"",""]
[null,"",""]
[null,"",""]
[null,"",""]
[null,"",""]
[null,"",""]
[null,"",""]
[null,"",""]
[null,"",""]
[null,"",""]
[null,"",""]
[null,"",""]
[null,"",""]
[null,"",""]
[null,"",""]
[null,"",""]
[null,"",""]
[null,"",""]
[null,"",""]
[null,"",""]
[null,"",""]
[null,"",""]
[null,"",""]
[null,"",""]
[null,"",""]
[null,"",""]
[null,"",""]
[null,"",""]
[null,"",""]
[null,"",""]
[null,"",""]
[null,"",""]
[null,"",""]
[null,"",""]
[null,"",""]
[null,"",""]
[null,"",""]
[null,"",""]
[null,"",""]
[null,"",""]
[null,"",""]
[null,"",""]
[null,"",""]
[null,"",""]
[null,"",""]
[null,"",""]
[null,"",""]
[null,"",""]
[null,"",""]
[null,"",""]
[null,"",""]
[null,"",""]
[null,"",""]
[null,"",""]
[null,"",""]
[null,"",""]
[null,"",""]
[null,"",""]
[null,"",""]
[null,"",""]
[null,{"$f":"IFERROR(VLOOKUP($A708,Common_LU,2,0),\"\")","v":""},{"$f":"IFERROR(VLOOKUP($A708,Common_LU,3,0),\"\")","v":""}]
[null,"",""]
[null,"",""]
[null,"",""]
[null,"",""]
[null,"",""]
[null,"",""]
[null,"",""]
[null,"",""]
[null,"",""]
[null,"",""]
[null,"",""]
[null,"",""]
[null,"",""]
[null,"",""]
[null,"",""]
[null,"",""]
[null,"",""]
[null,"",""]
[null,"",""]
[null,"",""]
[null,"",""]
[null,"",""]
[null,"",""]
[null,"",""]
[null,"",""]
[null,"",""]
[null,"",""]
[null,"",""]
[null,"",""]
[null,"",""]
[null,"",""]
[null,"",""]
[null,"",""]
[null,"",""]
[null,"",""]
[null,"",""]
[null,"",""]
[null,"",""]
[null,"",""]
[null,"",""]
[null,"",""]
[null,"",""]
[null,"",""]
[null,"",""]
[null,"",""]
[null,"",""]
[null,"",""]
[null,"",""]
[null,"",""]
[null,"",""]
[null,"",""]
[null,"",""]
[null,"",""]
[null,"",""]
[null,"",""]
[null,"",""]
[null,"",""]
[null,"",""]
[null,"",""]
[null,"",""]
[null,"",""]
[null,"",""]
[null,"",""]
[null,{"$f":"IFERROR(VLOOKUP($A772,Common_LU,2,0),\"\")","v":""},{"$f":"IFERROR(VLOOKUP($A772,Common_LU,3,0),\"\")","v":""}]
[null,"",""]
[null,"",""]
[null,"",""]
[null,"",""]
[null,"",""]
[null,"",""]
[null,"",""]
[null,"",""]
[null,"",""]
[null,"",""]
[null,"",""]
[null,"",""]
[null,"",""]
[null,"",""]
[null,"",""]
[null,"",""]
[null,"",""]
[null,"",""]
[null,"",""]
[null,"",""]
[null,"",""]
[null,"",""]
[null,"",""]
[null,"",""]
[null,"",""]
[null,"",""]
[null,"",""]
[null,"",""]
[null,"",""]
[null,"",""]
[null,"",""]
[null,"",""]
[null,"",""]
[null,"",""]
[null,"",""]
[null,"",""]
[null,"",""]
[null,"",""]
[null,"",""]
[null,"",""]
[null,"",""]
[null,"",""]
[null,"",""]
[null,"",""]
[null,"",""]
[null,"",""]
[null,"",""]
[null,"",""]
[null,"",""]
[null,"",""]
[null,"",""]
[null,"",""]
[null,"",""]
[null,"",""]
[null,"",""]
[null,"",""]
[null,"",""]
[null,"",""]
[null,"",""]
[null,"",""]
[null,"",""]
[null,"",""]
[null,"",""]
[null,{"$f":"IFERROR(VLOOKUP($A836,Common_LU,2,0),\"\")","v":""},{"$f":"IFERROR(VLOOKUP($A836,Common_LU,3,0),\"\")","v":""}]
[null,"",""]
[null,"",""]
[null,"",""]
[null,"",""]
[null,"",""]
[null,"",""]
[null,"",""]
[null,"",""]
[null,"",""]
[null,"",""]
[null,"",""]
[null,"",""]
[null,"",""]
[null,"",""]
[null,"",""]
[null,"",""]
[null,"",""]
[null,"",""]
[null,"",""]
[null,"",""]
[null,"",""]
[null,"",""]
[null,"",""]
[null,"",""]
[null,"",""]
[null,"",""]
[null,"",""]
[null,"",""]
[null,"",""]
[null,"",""]
[null,"",""]
[null,"",""]
[null,"",""]
[null,"",""]
[null,"",""]
[null,"",""]
[null,"",""]
[null,"",""]
[null,"",""]
[null,"",""]
[null,"",""]
[null,"",""]
[null,"",""]
[null,"",""]
[null,"",""]
[null,"",""]
[null,"",""]
[null,"",""]
[null,"",""]
[null,"",""]
[null,"",""]
[null,"",""]
[null,"",""]
[null,"",""]
[null,"",""]
[null,"",""]
[null,"",""]
[null,"",""]
[null,"",""]
[null,"",""]
[null,"",""]
[null,"",""]
[null,"",""]
[null,{"$f":"IFERROR(VLOOKUP($A900,Common_LU,2,0),\"\")","v":""},{"$f":"IFERROR(VLOOKUP($A900,Common_LU,3,0),\"\")","v":""}]
[null,"",""]
[null,"",""]
[null,"",""]
[null,"",""]
[null,"",""]
[null,"",""]
[null,"",""]
[null,"",""]
[null,"",""]
[null,"",""]
[null,"",""]
[null,"",""]
[null,"",""]
[null,"",""]
[null,"",""]
[null,"",""]
[null,"",""]
[null,"",""]
[null,"",""]
[null,"",""]
[null,"",""]
[null,"",""]
[null,"",""]
[null,"",""]
[null,"",""]
[null,"",""]
[null,"",""]
[null,"",""]
[null,"",""]
[null,"",""]
[null,"",""]
[null,"",""]
[null,"",""]
[null,"",""]
[null,"",""]
[null,"",""]
[null,"",""]
[null,"",""]
[null,"",""]
[null,"",""]
[null,"",""]
[null,"",""]
[null,"",""]
[null,"",""]
[null,"",""]
[null,"",""]
[null,"",""]
[null,"",""]
[null,"",""]
[null,"",""]
[null,"",""]
[null,"",""]
[null,"",""]
[null,"",""]
[null,"",""]
[null,"",""]
[null,"",""]
[null,"",""]
[null,"",""]
[null,"",""]
[null,"",""]
[null,"",""]
[null,"",""]
[null,{"$f":"IFERROR(VLOOKUP($A964,Common_LU,2,0),\"\")","v":""},{"$f":"IFERROR(VLOOKUP($A964,Common_LU,3,0),\"\")","v":""}]
[null,"",""]
[null,"",""]
[null,"",""]
[null,"",""]
[null,"",""]
[null,"",""]
[null,"",""]
[null,"",""]
[null,"",""]
[null,"",""]
[null,"",""]
[null,"",""]
[null,"",""]
[null,"",""]
[null,"",""]
[null,"",""]
[null,"",""]
[null,"",""]
[null,"",""]
[null,"",""]
[null,"",""]
[null,"",""]
[null,"",""]
[null,"",""]
[null,"",""]
[null,"",""]
[null,"",""]
[null,"",""]
[null,"",""]
[null,"",""]
[null,"",""]
[null,"",""]
[null,"",""]
[null,"",""]
[null,"",""]
[null,"",""]
[null,"",""]
[null,"",""]
[null,"",""]
[null,"",""]
[null,"",""]
[null,"",""]
[null,"",""]
[null,"",""]
[null,"",""]
[null,"",""]
[null,"",""]
[null,"",""]
[null,"",""]
[null,"",""]
[null,"",""]
[null,"",""]
[null,"",""]
[null,"",""]
[null,"",""]
[null,"",""]
[null,"",""]
[null,"",""]
[null,"",""]
[null,"",""]
[null,"",""]
[null,"",""]
[null,"",""]
[null,{"$f":"IFERROR(VLOOKUP($A1028,Common_LU,2,0),\"\")","v":""},{"$f":"IFERROR(VLOOKUP($A1028,Common_LU,3,0),\"\")","v":""}]
[null,"",""]
[null,"",""]
[null,"",""]
[null,"",""]
[null,"",""]
[null,"",""]
[null,"",""]
[null,"",""]
[null,"",""]
[null,"",""]
[null,"",""]
[null,"",""]
[null,"",""]
[null,"",""]
[null,"",""]
[null,"",""]
[null,"",""]
[null,"",""]
[null,"",""]
[null,"",""]
[null,"",""]
[null,"",""]
[null,"",""]
[null,"",""]
[null,"",""]
[null,"",""]
[null,"",""]
[null,"",""]
[null,"",""]
[null,"",""]
[null,"",""]
[null,"",""]
[null,"",""]
[null,"",""]
[null,"",""]
[null,"",""]
[null,"",""]
[null,"",""]
[null,"",""]
[null,"",""]
[null,"",""]
[null,"",""]
[null,"",""]
[null,"",""]
[null,"",""]
[null,"",""]
[null,"",""]
[null,"",""]
[null,"",""]
[null,"",""]
[null,"",""]
[null,"",""]
[null,"",""]
[null,"",""]
[null,"",""]
[null,"",""]
[null,"",""]
[null,"",""]
[null,"",""]
[null,"",""]
[null,"",""]
[null,"",""]
[null,"",""]
[null,{"$f":"IFERROR(VLOOKUP($A1092,Common_LU,2,0),\"\")","v":""},{"$f":"IFERROR(VLOOKUP($A1092,Common_LU,3,0),\"\")","v":""}]
[null,"",""]
[null,"",""]
[null,"",""]
[null,"",""]
[null,"",""]
[null,"",""]
[null,"",""]
[null,"",""]
[null,"",""]
[null,"",""]
[null,"",""]
[null,"",""]
[null,"",""]
[null,"",""]
[null,"",""]
[null,"",""]
[null,"",""]
[null,"",""]
[null,"",""]
[null,"",""]
[null,"",""]
[null,"",""]
[null,"",""]
[null,"",""]
[null,"",""]
[null,"",""]
[null,"",""]
[null,"",""]
[null,"",""]
[null,"",""]
[null,"",""]
[null,"",""]
[null,"",""]
[null,"",""]
[null,"",""]
[null,"",""]
[null,"",""]
[null,"",""]
[null,"",""]
[null,"",""]
[null,"",""]
[null,"",""]
[null,"",""]
[null,"",""]
[null,"",""]
[null,"",""]
[null,"",""]
[null,"",""]
[null,"",""]
[null,"",""]
[null,"",""]
[null,"",""]
[null,"",""]
[null,"",""]
[null,"",""]
[null,"",""]
[null,"",""]
[null,"",""]
[null,"",""]
[null,"",""]
[null,"",""]
[null,"",""]
[null,"",""]
[null,{"$f":"IFERROR(VLOOKUP($A1156,Common_LU,2,0),\"\")","v":""},{"$f":"IFERROR(VLOOKUP($A1156,Common_LU,3,0),\"\")","v":""}]
[null,"",""]
[null,"",""]
[null,"",""]
[null,"",""]
[null,"",""]
[null,"",""]
[null,"",""]
[null,"",""]
[null,"",""]
[null,"",""]
[null,"",""]
[null,"",""]
[null,"",""]
[null,"",""]
[null,"",""]
[null,"",""]
[null,"",""]
[null,"",""]
[null,"",""]
[null,"",""]
[null,"",""]
[null,"",""]
[null,"",""]
[null,"",""]
[null,"",""]
[null,"",""]
[null,"",""]
[null,"",""]
[null,"",""]
[null,"",""]
[null,"",""]
[null,"",""]
[null,"",""]
[null,"",""]
[null,"",""]
[null,"",""]
[null,"",""]
[null,"",""]
[null,"",""]
[null,"",""]
[null,"",""]
[null,"",""]
[null,"",""]
[null,"",""]
[null,"",""]
[null,"",""]
[null,"",""]
[null,"",""]
[null,"",""]
[null,"",""]
[null,"",""]
[null,"",""]
[null,"",""]
[null,"",""]
[null,"",""]
[null,"",""]
[null,"",""]
[null,"",""]
[null,"",""]
[null,"",""]
[null,"",""]
[null,"",""]
[null,"",""]
[null,{"$f":"IFERROR(VLOOKUP($A1220,Common_LU,2,0),\"\")","v":""},{"$f":"IFERROR(VLOOKUP($A1220,Common_LU,3,0),\"\")","v":""}]
[null,"",""]
[null,"",""]
[null,"",""]
[null,"",""]
[null,"",""]
[null,"",""]
[null,"",""]
[null,"",""]
[null,"",""]
[null,"",""]
[null,"",""]
[null,"",""]
[null,"",""]
[null,"",""]
[null,"",""]
[null,"",""]
[null,"",""]
[null,"",""]
[null,"",""]
[null,"",""]
[null,"",""]
[null,"",""]
[null,"",""]
[null,"",""]
[null,"",""]
[null,"",""]
[null,"",""]
[null,"",""]
[null,"",""]
[null,"",""]
[null,"",""]
[null,"",""]
[null,"",""]
[null,"",""]
[null,"",""]
[null,"",""]
[null,"",""]
[null,"",""]
[null,"",""]
[null,"",""]
[null,"",""]
[null,"",""]
[null,"",""]
[null,"",""]
[null,"",""]
[null,"",""]
[null,"",""]
[null,"",""]
[null,"",""]
[null,"",""]
[null,"",""]
[null,"",""]
[null,"",""]
[null,"",""]
[null,"",""]
[null,"",""]
[null,"",""]
[null,"",""]
[null,"",""]
[null,"",""]
[null,"",""]
[null,"",""]
[null,"",""]
[null,{"$f":"IFERROR(VLOOKUP($A1284,Common_LU,2,0),\"\")","v":""},{"$f":"IFERROR(VLOOKUP($A1284,Common_LU,3,0),\"\")","v":""}]
[null,"",""]
[null,"",""]
[null,"",""]
[null,"",""]
[null,"",""]
[null,"",""]
[null,"",""]
[null,"",""]
[null,"",""]
[null,"",""]
[null,"",""]
[null,"",""]
[null,"",""]
[null,"",""]
[null,"",""]
[null,"",""]
[null,"",""]
[null,"",""]
[null,"",""]
[null,"",""]
[null,"",""]
[null,"",""]
[null,"",""]
[null,"",""]
[null,"",""]
[null,"",""]
[null,"",""]
[null,"",""]
[null,"",""]
[null,"",""]
[null,"",""]
[null,"",""]
[null,"",""]
[null,"",""]
[null,"",""]
[null,"",""]
[null,"",""]
[null,"",""]
[null,"",""]
[null,"",""]
[null,"",""]
[null,"",""]
[null,"",""]
[null,"",""]
[null,"",""]
[null,"",""]
[null,"",""]
[null,"",""]
[null,"",""]
[null,"",""]
[null,"",""]
[null,"",""]
[null,"",""]
[null,"",""]
[null,"",""]
[null,"",""]
[null,"",""]
[null,"",""]
[null,"",""]
[null,"",""]
[null,"",""]
[null,"",""]
[null,"",""]
[null,{"$f":"IFERROR(VLOOKUP($A1348,Common_LU,2,0),\"\")","v":""},{"$f":"IFERROR(VLOOKUP($A1348,Common_LU,3,0),\"\")","v":""}]
[null,"",""]
[null,"",""]
[null,"",""]
[null,"",""]
[null,"",""]
[null,"",""]
[null,"",""]
[null,"",""]
[null,"",""]
[null,"",""]
[null,"",""]
[null,"",""]
[null,"",""]
[null,"",""]
[null,"",""]
[null,"",""]
[null,"",""]
[null,"",""]
[null,"",""]
[null,"",""]
[null,"",""]
[null,"",""]
[null,"",""]
[null,"",""]
[null,"",""]
[null,"",""]
[null,"",""]
[null,"",""]
[null,"",""]
[null,"",""]
[null,"",""]
[null,"",""]
[null,"",""]
[null,"",""]
[null,"",""]
[null,"",""]
[null,"",""]
[null,"",""]
[null,"",""]
[null,"",""]
[null,"",""]
[null,"",""]
[null,"",""]
[null,"",""]
[null,"",""]
[null,"",""]
[null,"",""]
[null,"",""]
[null,"",""]
[null,"",""]
[null,"",""]
[null,"",""]
[null,"",""]
[null,"",""]
[null,"",""]
[null,"",""]
[null,"",""]
[null,"",""]
[null,"",""]
[null,"",""]
[null,"",""]
[null,"",""]
[null,"",""]
[null,{"$f":"IFERROR(VLOOKUP($A1412,Common_LU,2,0),\"\")","v":""},{"$f":"IFERROR(VLOOKUP($A1412,Common_LU,3,0),\"\")","v":""}]
[null,"",""]
[null,"",""]
[null,"",""]
[null,"",""]
[null,"",""]
[null,"",""]
[null,"",""]
[null,"",""]
[null,"",""]
[null,"",""]
[null,"",""]
[null,"",""]
[null,"",""]
[null,"",""]
[null,"",""]
[null,"",""]
[null,"",""]
[null,"",""]
[null,"",""]
[null,"",""]
[null,"",""]
[null,"",""]
[null,"",""]
[null,"",""]
[null,"",""]
[null,"",""]
[null,"",""]
[null,"",""]
[null,"",""]
[null,"",""]
[null,"",""]
[null,"",""]
[null,"",""]
[null,"",""]
[null,"",""]
[null,"",""]
[null,"",""]
[null,"",""]
[null,"",""]
[null,"",""]
[null,"",""]
[null,"",""]
[null,"",""]
[null,"",""]
[null,"",""]
[null,"",""]
[null,"",""]
[null,"",""]
[null,"",""]
[null,"",""]
[null,"",""]
[null,"",""]
[null,"",""]
[null,"",""]
[null,"",""]
[null,"",""]
[null,"",""]
[null,"",""]
[null,"",""]
[null,"",""]
[null,"",""]
[null,"",""]
[null,"",""]
[null,{"$f":"IFERROR(VLOOKUP($A1476,Common_LU,2,0),\"\")","v":""},{"$f":"IFERROR(VLOOKUP($A1476,Common_LU,3,0),\"\")","v":""}]
[null,"",""]
[null,"",""]
[null,"",""]
[null,"",""]
[null,"",""]
[null,"",""]
[null,"",""]
[null,"",""]
[null,"",""]
[null,"",""]
[null,"",""]
[null,"",""]
[null,"",""]
[null,"",""]
[null,"",""]
[null,"",""]
[null,"",""]
[null,"",""]
[null,"",""]
[null,"",""]
[null,"",""]
[null,"",""]
[null,"",""]
[null,"",""]
[null,"",""]
[null,"",""]
[null,"",""]
[null,"",""]
[null,"",""]
[null,"",""]
[null,"",""]
[null,"",""]
[null,"",""]
[null,"",""]
[null,"",""]
[null,"",""]
[null,"",""]
[null,"",""]
[null,"",""]
[null,"",""]
[null,"",""]
[null,"",""]
[null,"",""]
[null,"",""]
[null,"",""]
[null,"",""]
[null,"",""]
[null,"",""]
[null,"",""]
[null,"",""]
[null,"",""]
[null,"",""]
[null,"",""]
[null,"",""]
[null,"",""]
[null,"",""]
[null,"",""]
[null,"",""]
[null,"",""]
[null,"",""]
[null,"",""]
[null,"",""]
[null,"",""]
[null,{"$f":"IFERROR(VLOOKUP($A1540,Common_LU,2,0),\"\")","v":""},{"$f":"IFERROR(VLOOKUP($A1540,Common_LU,3,0),\"\")","v":""}]
[null,"",""]
[null,"",""]
[null,"",""]
[null,"",""]
[null,"",""]
[null,"",""]
[null,"",""]
[null,"",""]
[null,"",""]
[null,"",""]
[null,"",""]
[null,"",""]
[null,"",""]
[null,"",""]
[null,"",""]
[null,"",""]
[null,"",""]
[null,"",""]
[null,"",""]
[null,"",""]
[null,"",""]
[null,"",""]
[null,"",""]
[null,"",""]
[null,"",""]
[null,"",""]
[null,"",""]
[null,"",""]
[null,"",""]
[null,"",""]
[null,"",""]
[null,"",""]
[null,"",""]
[null,"",""]
[null,"",""]
[null,"",""]
[null,"",""]
[null,"",""]
[null,"",""]
[null,"",""]
[null,"",""]
[null,"",""]
[null,"",""]
[null,"",""]
[null,"",""]
[null,"",""]
[null,"",""]
[null,"",""]
[null,"",""]
[null,"",""]
[null,"",""]
[null,"",""]
[null,"",""]
[null,"",""]
[null,"",""]
[null,"",""]
[null,"",""]
[null,"",""]
[null,"",""]
[null,"",""]
[null,"",""]
[null,"",""]
[null,"",""]
[null,{"$f":"IFERROR(VLOOKUP($A1604,Common_LU,2,0),\"\")","v":""},{"$f":"IFERROR(VLOOKUP($A1604,Common_LU,3,0),\"\")","v":""}]
[null,"",""]
[null,"",""]
[null,"",""]
[null,"",""]
[null,"",""]
[null,"",""]
[null,"",""]
[null,"",""]
[null,"",""]
[null,"",""]
[null,"",""]
[null,"",""]
[null,"",""]
[null,"",""]
[null,"",""]
[null,"",""]
[null,"",""]
[null,"",""]
[null,"",""]
[null,"",""]
[null,"",""]
[null,"",""]
[null,"",""]
[null,"",""]
[null,"",""]
[null,"",""]
[null,"",""]
[null,"",""]
[null,"",""]
[null,"",""]
[null,"",""]
[null,"",""]
[null,"",""]
[null,"",""]
[null,"",""]
[null,"",""]
[null,"",""]
[null,"",""]
[null,"",""]
[null,"",""]
[null,"",""]
[null,"",""]
[null,"",""]
[null,"",""]
[null,"",""]
[null,"",""]
[null,"",""]
[null,"",""]
[null,"",""]
[null,"",""]
[null,"",""]
[null,"",""]
[null,"",""]
[null,"",""]
[null,"",""]
[null,"",""]
[null,"",""]
[null,"",""]
[null,"",""]
[null,"",""]
[null,"",""]
[null,"",""]
[null,"",""]
[null,{"$f":"IFERROR(VLOOKUP($A1668,Common_LU,2,0),\"\")","v":""},{"$f":"IFERROR(VLOOKUP($A1668,Common_LU,3,0),\"\")","v":""}]
[null,"",""]
[null,"",""]
[null,"",""]
[null,"",""]
[null,"",""]
[null,"",""]
[null,"",""]
[null,"",""]
[null,"",""]
[null,"",""]
[null,"",""]
[null,"",""]
[null,"",""]
[null,"",""]
[null,"",""]
[null,"",""]
[null,"",""]
[null,"",""]
[null,"",""]
[null,"",""]
[null,"",""]
[null,"",""]
[null,"",""]
[null,"",""]
[null,"",""]
[null,"",""]
[null,"",""]
[null,"",""]
[null,"",""]
[null,"",""]
[null,"",""]
[null,"",""]
[null,"",""]
[null,"",""]
[null,"",""]
[null,"",""]
[null,"",""]
[null,"",""]
[null,"",""]
[null,"",""]
[null,"",""]
[null,"",""]
[null,"",""]
[null,"",""]
[null,"",""]
[null,"",""]
[null,"",""]
[null,"",""]
[null,"",""]
[null,"",""]
[null,"",""]
[null,"",""]
[null,"",""]
[null,"",""]
[null,"",""]
[null,"",""]
[null,"",""]
[null,"",""]
[null,"",""]
[null,"",""]
[null,"",""]
[null,"",""]
[null,"",""]
[null,{"$f":"IFERROR(VLOOKUP($A1732,Common_LU,2,0),\"\")","v":""},{"$f":"IFERROR(VLOOKUP($A1732,Common_LU,3,0),\"\")","v":""}]
[null,"",""]
[null,"",""]
[null,"",""]
[null,"",""]
[null,"",""]
[null,"",""]
[null,"",""]
[null,"",""]
[null,"",""]
[null,"",""]
[null,"",""]
[null,"",""]
[null,"",""]
[null,"",""]
[null,"",""]
[null,"",""]
[null,"",""]
[null,"",""]
[null,"",""]
[null,"",""]
[null,"",""]
[null,"",""]
[null,"",""]
[null,"",""]
[null,"",""]
[null,"",""]
[null,"",""]
[null,"",""]
[null,"",""]
[null,"",""]
[null,"",""]
[null,"",""]
[null,"",""]
[null,"",""]
[null,"",""]
[null,"",""]
[null,"",""]
[null,"",""]
[null,"",""]
[null,"",""]
[null,"",""]
[null,"",""]
[null,"",""]
[null,"",""]
[null,"",""]
[null,"",""]
[null,"",""]
[null,"",""]
[null,"",""]
[null,"",""]
[null,"",""]
[null,"",""]
[null,"",""]
[null,"",""]
[null,"",""]
[null,"",""]
[null,"",""]
[null,"",""]
[null,"",""]
[null,"",""]
[null,"",""]
[null,"",""]
[null,"",""]
[null,{"$f":"IFERROR(VLOOKUP($A1796,Common_LU,2,0),\"\")","v":""},{"$f":"IFERROR(VLOOKUP($A1796,Common_LU,3,0),\"\")","v":""}]
[null,"",""]
[null,"",""]
[null,"",""]
[null,"",""]
[null,"",""]
[null,"",""]
[null,"",""]
[null,"",""]
[null,"",""]
[null,"",""]
[null,"",""]
[null,"",""]
[null,"",""]
[null,"",""]
[null,"",""]
[null,"",""]
[null,"",""]
[null,"",""]
[null,"",""]
[null,"",""]
[null,"",""]
[null,"",""]
[null,"",""]
[null,"",""]
[null,"",""]
[null,"",""]
[null,"",""]
[null,"",""]
[null,"",""]
[null,"",""]
[null,"",""]
[null,"",""]
[null,"",""]
[null,"",""]
[null,"",""]
[null,"",""]
[null,"",""]
[null,"",""]
[null,"",""]
[null,"",""]
[null,"",""]
[null,"",""]
[null,"",""]
[null,"",""]
[null,"",""]
[null,"",""]
[null,"",""]
[null,"",""]
[null,"",""]
[null,"",""]
[null,"",""]
[null,"",""]
[null,"",""]
[null,"",""]
[null,"",""]
[null,"",""]
[null,"",""]
[null,"",""]
[null,"",""]
[null,"",""]
[null,"",""]
[null,"",""]
[null,"",""]
[null,{"$f":"IFERROR(VLOOKUP($A1860,Common_LU,2,0),\"\")","v":""},{"$f":"IFERROR(VLOOKUP($A1860,Common_LU,3,0),\"\")","v":""}]
[null,"",""]
[null,"",""]
[null,"",""]
[null,"",""]
[null,"",""]
[null,"",""]
[null,"",""]
[null,"",""]
[null,"",""]
[null,"",""]
[null,"",""]
[null,"",""]
[null,"",""]
[null,"",""]
[null,"",""]
[null,"",""]
[null,"",""]
[null,"",""]
[null,"",""]
[null,"",""]
[null,"",""]
[null,"",""]
[null,"",""]
[null,"",""]
[null,"",""]
[null,"",""]
[null,"",""]
[null,"",""]
[null,"",""]
[null,"",""]
[null,"",""]
[null,"",""]
[null,"",""]
[null,"",""]
[null,"",""]
[null,"",""]
[null,"",""]
[null,"",""]
[null,"",""]
[null,"",""]
[null,"",""]
[null,"",""]
[null,"",""]
[null,"",""]
[null,"",""]
[null,"",""]
[null,"",""]
[null,"",""]
[null,"",""]
[null,"",""]
[null,"",""]
[null,"",""]
[null,"",""]
[null,"",""]
[null,"",""]
[null,"",""]
[null,"",""]
[null,"",""]
[null,"",""]
[null,"",""]
[null,"",""]
[null,"",""]
[null,"",""]
[null,{"$f":"IFERROR(VLOOKUP($A1924,Common_LU,2,0),\"\")","v":""},{"$f":"IFERROR(VLOOKUP($A1924,Common_LU,3,0),\"\")","v":""}]
[null,"",""]
[null,"",""]
[null,"",""]
[null,"",""]
[null,"",""]
[null,"",""]
[null,"",""]
[null,"",""]
[null,"",""]
[null,"",""]
[null,"",""]
[null,"",""]
[null,"",""]
[null,"",""]
[null,"",""]
[null,"",""]
[null,"",""]
[null,"",""]
[null,"",""]
[null,"",""]
[null,"",""]
[null,"",""]
[null,"",""]
[null,"",""]
[null,"",""]
[null,"",""]
[null,"",""]
[null,"",""]
[null,"",""]
[null,"",""]
[null,"",""]
[null,"",""]
[null,"",""]
[null,"",""]
[null,"",""]
[null,"",""]
[null,"",""]
[null,"",""]
[null,"",""]
[null,"",""]
[null,"",""]
[null,"",""]
[null,"",""]
[null,"",""]
[null,"",""]
[null,"",""]
[null,"",""]
[null,"",""]
[null,"",""]
[null,"",""]
[null,"",""]
[null,"",""]
[null,"",""]
[null,"",""]
[null,"",""]
[null,"",""]
[null,"",""]
[null,"",""]
[null,"",""]
[null,"",""]
[null,"",""]
[null,"",""]
[null,"",""]
[null,{"$f":"IFERROR(VLOOKUP($A1988,Common_LU,2,0),\"\")","v":""},{"$f":"IFERROR(VLOOKUP($A1988,Common_LU,3,0),\"\")","v":""}]
[null,"",""]
[null,"",""]
[null,"",""]
[null,"",""]
[null,"",""]
[null,"",""]
[null,"",""]
[null,"",""]
[null,"",""]
[null,"",""]
[null,"",""]
[null,"",""]
[null,"",""]
[null,"",""]
[null,"",""]
[null,"",""]
[null,"",""]
[null,"",""]
[null,"",""]
[null,"",""]
[null,"",""]
[null,"",""]
[null,"",""]
[null,"",""]
[null,"",""]
[null,"",""]
[null,"",""]
[null,"",""]
[null,"",""]
[null,"",""]
[null,"",""]
[null,"",""]
[null,"",""]
[null,"",""]
[null,"",""]
[null,"",""]
[null,"",""]
[null,"",""]
[null,"",""]
[null,"",""]
[null,"",""]
[null,"",""]
[null,"",""]
[null,"",""]
[null,"",""]
[null,"",""]
[null,"",""]
[null,"",""]
[null,"",""]
[null,"",""]
[null,"",""]
[null,"",""]
[null,"",""]
[null,"",""]
[null,"",""]
[null,"",""]
[null,"",""]
[null,"",""]
[null,"",""]
[null,"",""]
[null,"",""]
[null,"",""]
[null,"",""]
[null,{"$f":"IFERROR(VLOOKUP($A2052,Common_LU,2,0),\"\")","v":""},{"$f":"IFERROR(VLOOKUP($A2052,Common_LU,3,0),\"\")","v":""}]
[null,"",""]
[null,"",""]
[null,"",""]
[null,"",""]
[null,"",""]
[null,"",""]
[null,"",""]
[null,"",""]
[null,"",""]
[null,"",""]
[null,"",""]
[null,"",""]
[null,"",""]
[null,"",""]
[null,"",""]
[null,"",""]
[null,"",""]
[null,"",""]
[null,"",""]
[null,"",""]
[null,"",""]
[null,"",""]
[null,"",""]
[null,"",""]
[null,"",""]
[null,"",""]
[null,"",""]
[null,"",""]
[null,"",""]
[null,"",""]
[null,"",""]
[null,"",""]
[null,"",""]
[null,"",""]
[null,"",""]
[null,"",""]
[null,"",""]
[null,"",""]
[null,"",""]
[null,"",""]
[null,"",""]
[null,"",""]
[null,"",""]
[null,"",""]
[null,"",""]
[null,"",""]
[null,"",""]
[null,"",""]
[null,"",""]
[null,"",""]
[null,"",""]
[null,"",""]
[null,"",""]
[null,"",""]
[null,"",""]
[null,"",""]
[null,"",""]
[null,"",""]
[null,"",""]
[null,"",""]
[null,"",""]
[null,"",""]
[null,"",""]
[null,{"$f":"IFERROR(VLOOKUP($A2116,Common_LU,2,0),\"\")","v":""},{"$f":"IFERROR(VLOOKUP($A2116,Common_LU,3,0),\"\")","v":""}]
[null,"",""]
[null,"",""]
[null,"",""]
[null,"",""]
[null,"",""]
[null,"",""]
[null,"",""]
[null,"",""]
[null,"",""]
[null,"",""]
[null,"",""]
[null,"",""]
[null,"",""]
[null,"",""]
[null,"",""]
[null,"",""]
[null,"",""]
[null,"",""]
[null,"",""]
[null,"",""]
[null,"",""]
[null,"",""]
[null,"",""]
[null,"",""]
[null,"",""]
[null,"",""]
[null,"",""]
[null,"",""]
[null,"",""]
[null,"",""]
[null,"",""]
[null,"",""]
[null,"",""]
[null,"",""]
[null,"",""]
[null,"",""]
[null,"",""]
[null,"",""]
[null,"",""]
[null,"",""]
[null,"",""]
[null,"",""]
[null,"",""]
[null,"",""]
[null,"",""]
[null,"",""]
[null,"",""]
[null,"",""]
[null,"",""]
[null,"",""]
[null,"",""]
[null,"",""]
[null,"",""]
[null,"",""]
[null,"",""]
[null,"",""]
[null,"",""]
[null,"",""]
[null,"",""]
[null,"",""]
[null,"",""]
[null,"",""]
[null,"",""]
[null,{"$f":"IFERROR(VLOOKUP($A2180,Common_LU,2,0),\"\")","v":""},{"$f":"IFERROR(VLOOKUP($A2180,Common_LU,3,0),\"\")","v":""}]
[null,"",""]
[null,"",""]
[null,"",""]
[null,"",""]
[null,"",""]
[null,"",""]
[null,"",""]
[null,"",""]
[null,"",""]
[null,"",""]
[null,"",""]
[null,"",""]
[null,"",""]
[null,"",""]
[null,"",""]
[null,"",""]
[null,"",""]
[null,"",""]
[null,"",""]
[null,"",""]
[null,"",""]
[null,"",""]
[null,"",""]
[null,"",""]
[null,"",""]
[null,"",""]
[null,"",""]
[null,"",""]
[null,"",""]
[null,"",""]
[null,"",""]
[null,"",""]
[null,"",""]
[null,"",""]
[null,"",""]
[null,"",""]
[null,"",""]
[null,"",""]
[null,"",""]
[null,"",""]
[null,"",""]
[null,"",""]
[null,"",""]
[null,"",""]
[null,"",""]
[null,"",""]
[null,"",""]
[null,"",""]
[null,"",""]
[null,"",""]
[null,"",""]
[null,"",""]
[null,"",""]
[null,"",""]
[null,"",""]
[null,"",""]
[null,"",""]
[null,"",""]
[null,"",""]
[null,"",""]
[null,"",""]
[null,"",""]
[null,"",""]
[null,{"$f":"IFERROR(VLOOKUP($A2244,Common_LU,2,0),\"\")","v":""},{"$f":"IFERROR(VLOOKUP($A2244,Common_LU,3,0),\"\")","v":""}]
[null,"",""]
[null,"",""]
[null,"",""]
[null,"",""]
[null,"",""]
[null,"",""]
[null,"",""]
[null,"",""]
[null,"",""]
[null,"",""]
[null,"",""]
[null,"",""]
[null,"",""]
[null,"",""]
[null,"",""]
[null,"",""]
[null,"",""]
[null,"",""]
[null,"",""]
[null,"",""]
[null,"",""]
[null,"",""]
[null,"",""]
[null,"",""]
[null,"",""]
[null,"",""]
[null,"",""]
[null,"",""]
[null,"",""]
[null,"",""]
[null,"",""]
[null,"",""]
[null,"",""]
[null,"",""]
[null,"",""]
[null,"",""]
[null,"",""]
[null,"",""]
[null,"",""]
[null,"",""]
[null,"",""]
[null,"",""]
[null,"",""]
[null,"",""]
[null,"",""]
[null,"",""]
[null,"",""]
[null,"",""]
[null,"",""]
[null,"",""]
[null,"",""]
[null,"",""]
[null,"",""]
[null,"",""]
[null,"",""]
[null,"",""]
[null,"",""]
[null,"",""]
[null,"",""]
[null,"",""]
[null,"",""]
[null,"",""]
[null,"",""]
[null,{"$f":"IFERROR(VLOOKUP($A2308,Common_LU,2,0),\"\")","v":""},{"$f":"IFERROR(VLOOKUP($A2308,Common_LU,3,0),\"\")","v":""}]
[null,"",""]
[null,"",""]
[null,"",""]
[null,"",""]
[null,"",""]
[null,"",""]
[null,"",""]
[null,"",""]
[null,"",""]
[null,"",""]
[null,"",""]
[null,"",""]
[null,"",""]
[null,"",""]
[null,"",""]
[null,"",""]
[null,"",""]
[null,"",""]
[null,"",""]
[null,"",""]
[null,"",""]
[null,"",""]
[null,"",""]
[null,"",""]
[null,"",""]
[null,"",""]
[null,"",""]
[null,"",""]
[null,"",""]
[null,"",""]
[null,"",""]
[null,"",""]
[null,"",""]
[null,"",""]
[null,"",""]
[null,"",""]
[null,"",""]
[null,"",""]
[null,"",""]
[null,"",""]
[null,"",""]
[null,"",""]
[null,"",""]
[null,"",""]
[null,"",""]
[null,"",""]
[null,"",""]
[null,"",""]
[null,"",""]
[null,"",""]
[null,"",""]
[null,"",""]
[null,"",""]
[null,"",""]
[null,"",""]
[null,"",""]
[null,"",""]
[null,"",""]
[null,"",""]
[null,"",""]
[null,"",""]
[null,"",""]
[null,"",""]
[null,{"$f":"IFERROR(VLOOKUP($A2372,Common_LU,2,0),\"\")","v":""},{"$f":"IFERROR(VLOOKUP($A2372,Common_LU,3,0),\"\")","v":""}]
[null,"",""]
[null,"",""]
[null,"",""]
[null,"",""]
[null,"",""]
[null,"",""]
[null,"",""]
[null,"",""]
[null,"",""]
[null,"",""]
[null,"",""]
[null,"",""]
[null,"",""]
[null,"",""]
[null,"",""]
[null,"",""]
[null,"",""]
[null,"",""]
[null,"",""]
[null,"",""]
[null,"",""]
[null,"",""]
[null,"",""]
[null,"",""]
[null,"",""]
[null,"",""]
[null,"",""]
[null,"",""]
[null,"",""]
[null,"",""]
[null,"",""]
[null,"",""]
[null,"",""]
[null,"",""]
[null,"",""]
[null,"",""]
[null,"",""]
[null,"",""]
[null,"",""]
[null,"",""]
[null,"",""]
[null,"",""]
[null,"",""]
[null,"",""]
[null,"",""]
[null,"",""]
[null,"",""]
[null,"",""]
[null,"",""]
[null,"",""]
[null,"",""]
[null,"",""]
[null,"",""]
[null,"",""]
[null,"",""]
[null,"",""]
[null,"",""]
[null,"",""]
[null,"",""]
[null,"",""]
[null,"",""]
[null,"",""]
[null,"",""]
[null,{"$f":"IFERROR(VLOOKUP($A2436,Common_LU,2,0),\"\")","v":""},{"$f":"IFERROR(VLOOKUP($A2436,Common_LU,3,0),\"\")","v":""}]
[null,"",""]
[null,"",""]
[null,"",""]
[null,"",""]
[null,"",""]
[null,"",""]
[null,"",""]
[null,"",""]
[null,"",""]
[null,"",""]
[null,"",""]
[null,"",""]
[null,"",""]
[null,"",""]
[null,"",""]
[null,"",""]
[null,"",""]
[null,"",""]
[null,"",""]
[null,"",""]
[null,"",""]
[null,"",""]
[null,"",""]
[null,"",""]
[null,"",""]
[null,"",""]
[null,"",""]
[null,"",""]
[null,"",""]
[null,"",""]
[null,"",""]
[null,"",""]
[null,"",""]
[null,"",""]
[null,"",""]
[null,"",""]
[null,"",""]
[null,"",""]
[null,"",""]
[null,"",""]
[null,"",""]
[null,"",""]
[null,"",""]
[null,"",""]
[null,"",""]
[null,"",""]
[null,"",""]
[null,"",""]
[null,"",""]
[null,"",""]
[null,"",""]
[null,"",""]
[null,"",""]
[null,"",""]
[null,"",""]
[null,"",""]
[null,"",""]
[null,"",""]
[null,"",""]
[null,"",""]
[null,"",""]
[null,"",""]
[null,"",""]
[null,{"$f":"IFERROR(VLOOKUP($A2500,Common_LU,2,0),\"\")","v":""},{"$f":"IFERROR(VLOOKUP($A2500,Common_LU,3,0),\"\")","v":""}]
[null,"",""]
[null,"",""]
[null,"",""]
[null,"",""]
[null,"",""]
[null,"",""]
[null,"",""]
[null,"",""]
[null,"",""]
[null,"",""]
[null,"",""]
[null,"",""]
[null,"",""]
[null,"",""]
[null,"",""]
[null,"",""]
[null,"",""]
[null,"",""]
[null,"",""]
[null,"",""]
[null,"",""]
[null,"",""]
[null,"",""]
[null,"",""]
[null,"",""]
[null,"",""]
[null,"",""]
[null,"",""]
[null,"",""]
[null,"",""]
[null,"",""]
[null,"",""]
[null,"",""]
[null,"",""]
[null,"",""]
[null,"",""]
[null,"",""]
[null,"",""]
[null,"",""]
[null,"",""]
[null,"",""]
[null,"",""]
[null,"",""]
[null,"",""]
[null,"",""]
[null,"",""]
[null,"",""]
[null,"",""]
[null,"",""]
[null,"",""]
[null,"",""]
[null,"",""]
[null,"",""]
[null,"",""]
[null,"",""]
[null,"",""]
[null,"",""]
[null,"",""]
[null,"",""]
[null,"",""]
[null,"",""]
[null,"",""]
[null,"",""]
[null,{"$f":"IFERROR(VLOOKUP($A2564,Common_LU,2,0),\"\")","v":""},{"$f":"IFERROR(VLOOKUP($A2564,Common_LU,3,0),\"\")","v":""}]
[null,"",""]
[null,"",""]
[null,"",""]
[null,"",""]
[null,"",""]
[null,"",""]
[null,"",""]
[null,"",""]
[null,"",""]
[null,"",""]
[null,"",""]
[null,"",""]
[null,"",""]
[null,"",""]
[null,"",""]
[null,"",""]
[null,"",""]
[null,"",""]
[null,"",""]
[null,"",""]
[null,"",""]
[null,"",""]
[null,"",""]
[null,"",""]
[null,"",""]
[null,"",""]
[null,"",""]
[null,"",""]
[null,"",""]
[null,"",""]
[null,"",""]
[null,"",""]
[null,"",""]
[null,"",""]
[null,"",""]
[null,"",""]
[null,"",""]
[null,"",""]
[null,"",""]
[null,"",""]
[null,"",""]
[null,"",""]
[null,"",""]
[null,"",""]
[null,"",""]
[null,"",""]
[null,"",""]
[null,"",""]
[null,"",""]
[null,"",""]
[null,"",""]
[null,"",""]
[null,"",""]
[null,"",""]
[null,"",""]
[null,"",""]
[null,"",""]
[null,"",""]
[null,"",""]
[null,"",""]
[null,"",""]
[null,"",""]
[null,"",""]
[null,{"$f":"IFERROR(VLOOKUP($A2628,Common_LU,2,0),\"\")","v":""},{"$f":"IFERROR(VLOOKUP($A2628,Common_LU,3,0),\"\")","v":""}]
[null,"",""]
[null,"",""]
[null,"",""]
[null,"",""]
[null,"",""]
[null,"",""]
[null,"",""]
[null,"",""]
[null,"",""]
[null,"",""]
[null,"",""]
[null,"",""]
[null,"",""]
[null,"",""]
[null,"",""]
[null,"",""]
[null,"",""]
[null,"",""]
[null,"",""]
[null,"",""]
[null,"",""]
[null,"",""]
[null,"",""]
[null,"",""]
[null,"",""]
[null,"",""]
[null,"",""]
[null,"",""]
[null,"",""]
[null,"",""]
[null,"",""]
[null,"",""]
[null,"",""]
[null,"",""]
[null,"",""]
[null,"",""]
[null,"",""]
[null,"",""]
[null,"",""]
[null,"",""]
[null,"",""]
[null,"",""]
[null,"",""]
[null,"",""]
[null,"",""]
[null,"",""]
[null,"",""]
[null,"",""]
[null,"",""]
[null,"",""]
[null,"",""]
[null,"",""]
[null,"",""]
[null,"",""]
[null,"",""]
[null,"",""]
[null,"",""]
[null,"",""]
[null,"",""]
[null,"",""]
[null,"",""]
[null,"",""]
[null,"",""]
[null,{"$f":"IFERROR(VLOOKUP($A2692,Common_LU,2,0),\"\")","v":""},{"$f":"IFERROR(VLOOKUP($A2692,Common_LU,3,0),\"\")","v":""}]
[null,"",""]
[null,"",""]
[null,"",""]
[null,"",""]
[null,"",""]
[null,"",""]
[null,"",""]
[null,"",""]
[null,"",""]
[null,"",""]
[null,"",""]
[null,"",""]
[null,"",""]
[null,"",""]
[null,"",""]
[null,"",""]
[null,"",""]
[null,"",""]
[null,"",""]
[null,"",""]
[null,"",""]
[null,"",""]
[null,"",""]
[null,"",""]
[null,"",""]
[null,"",""]
[null,"",""]
[null,"",""]
[null,"",""]
[null,"",""]
[null,"",""]
[null,"",""]
[null,"",""]
[null,"",""]
[null,"",""]
[null,"",""]
[null,"",""]
[null,"",""]
[null,"",""]
[null,"",""]
[null,"",""]
[null,"",""]
[null,"",""]
[null,"",""]
[null,"",""]
[null,"",""]
[null,"",""]
[null,"",""]
[null,"",""]
[null,"",""]
[null,"",""]
[null,"",""]
[null,"",""]
[null,"",""]
[null,"",""]
[null,"",""]
[null,"",""]
[null,"",""]
[null,"",""]
[null,"",""]
[null,"",""]
[null,"",""]
[null,"",""]
[null,{"$f":"IFERROR(VLOOKUP($A2756,Common_LU,2,0),\"\")","v":""},{"$f":"IFERROR(VLOOKUP($A2756,Common_LU,3,0),\"\")","v":""}]
[null,"",""]
[null,"",""]
[null,"",""]
[null,"",""]
[null,"",""]
[null,"",""]
[null,"",""]
[null,"",""]
[null,"",""]
[null,"",""]
[null,"",""]
[null,"",""]
[null,"",""]
[null,"",""]
[null,"",""]
[null,"",""]
[null,"",""]
[null,"",""]
[null,"",""]
[null,"",""]
[null,"",""]
[null,"",""]
[null,"",""]
[null,"",""]
[null,"",""]
[null,"",""]
[null,"",""]
[null,"",""]
[null,"",""]
[null,"",""]
[null,"",""]
[null,"",""]
[null,"",""]
[null,"",""]
[null,"",""]
[null,"",""]
[null,"",""]
[null,"",""]
[null,"",""]
[null,"",""]
[null,"",""]
[null,"",""]
[null,"",""]
[null,"",""]
[null,"",""]
[null,"",""]
[null,"",""]
[null,"",""]
[null,"",""]
[null,"",""]
[null,"",""]
[null,"",""]
[null,"",""]
[null,"",""]
[null,"",""]
[null,"",""]
[null,"",""]
[null,"",""]
[null,"",""]
[null,"",""]
[null,"",""]
[null,"",""]
[null,"",""]
[null,{"$f":"IFERROR(VLOOKUP($A2820,Common_LU,2,0),\"\")","v":""},{"$f":"IFERROR(VLOOKUP($A2820,Common_LU,3,0),\"\")","v":""}]
[null,"",""]
[null,"",""]
[null,"",""]
[null,"",""]
[null,"",""]
[null,"",""]
[null,"",""]
[null,"",""]
[null,"",""]
[null,"",""]
[null,"",""]
[null,"",""]
[null,"",""]
[null,"",""]
[null,"",""]
[null,"",""]
[null,"",""]
[null,"",""]
[null,"",""]
[null,"",""]
[null,"",""]
[null,"",""]
[null,"",""]
[null,"",""]
[null,"",""]
[null,"",""]
[null,"",""]
[null,"",""]
[null,"",""]
[null,"",""]
[null,"",""]
[null,"",""]
[null,"",""]
[null,"",""]
[null,"",""]
[null,"",""]
[null,"",""]
[null,"",""]
[null,"",""]
[null,"",""]
[null,"",""]
[null,"",""]
[null,"",""]
[null,"",""]
[null,"",""]
[null,"",""]
[null,"",""]
[null,"",""]
[null,"",""]
[null,"",""]
[null,"",""]
[null,"",""]
[null,"",""]
[null,"",""]
[null,"",""]
[null,"",""]
[null,"",""]
[null,"",""]
[null,"",""]
[null,"",""]
[null,"",""]
[null,"",""]
[null,"",""]
[null,{"$f":"IFERROR(VLOOKUP($A2884,Common_LU,2,0),\"\")","v":""},{"$f":"IFERROR(VLOOKUP($A2884,Common_LU,3,0),\"\")","v":""}]
[null,"",""]
[null,"",""]
[null,"",""]
[null,"",""]
[null,"",""]
[null,"",""]
[null,"",""]
[null,"",""]
[null,"",""]
[null,"",""]
[null,"",""]
[null,"",""]
[null,"",""]
[null,"",""]
[null,"",""]
[null,"",""]
[null,"",""]
[null,"",""]
[null,"",""]
[null,"",""]
[null,"",""]
[null,"",""]
[null,"",""]
[null,"",""]
[null,"",""]
[null,"",""]
[null,"",""]
[null,"",""]
[null,"",""]
[null,"",""]
[null,"",""]
[null,"",""]
[null,"",""]
[null,"",""]
[null,"",""]
[null,"",""]
[null,"",""]
[null,"",""]
[null,"",""]
[null,"",""]
[null,"",""]
[null,"",""]
[null,"",""]
[null,"",""]
[null,"",""]
[null,"",""]
[null,"",""]
[null,"",""]
[null,"",""]
[null,"",""]
[null,"",""]
[null,"",""]
[null,"",""]
[null,"",""]
[null,"",""]
[null,"",""]
[null,"",""]
[null,"",""]
[null,"",""]
[null,"",""]
[null,"",""]
[null,"",""]
[null,"",""]
[null,{"$f":"IFERROR(VLOOKUP($A2948,Common_LU,2,0),\"\")","v":""},{"$f":"IFERROR(VLOOKUP($A2948,Common_LU,3,0),\"\")","v":""}]
[null,"",""]
[null,"",""]
[null,"",""]
[null,"",""]
[null,"",""]
[null,"",""]
[null,"",""]
[null,"",""]
[null,"",""]
[null,"",""]
[null,"",""]
[null,"",""]
[null,"",""]
[null,"",""]
[null,"",""]
[null,"",""]
[null,"",""]
[null,"",""]
[null,"",""]
[null,"",""]
[null,"",""]
[null,"",""]
[null,"",""]
[null,"",""]
[null,"",""]
[null,"",""]
[null,"",""]
[null,"",""]
[null,"",""]
[null,"",""]
[null,"",""]
[null,"",""]
[null,"",""]
[null,"",""]
[null,"",""]
[null,"",""]
[null,"",""]
[null,"",""]
[null,"",""]
[null,"",""]
[null,"",""]
[null,"",""]
[null,"",""]
[null,"",""]
[null,"",""]
[null,"",""]
[null,"",""]
[null,"",""]
[null,"",""]
[null,"",""]
[null,"",""]
[null,"",""]
[null,"",""]
[null,"",""]
[null,"",""]
[null,"",""]
[null,"",""]
[null,"",""]
[null,"",""]
[null,"",""]
[null,"",""]
[null,"",""]
[null,"",""]
[null,{"$f":"IFERROR(VLOOKUP($A3012,Common_LU,2,0),\"\")","v":""},{"$f":"IFERROR(VLOOKUP($A3012,Common_LU,3,0),\"\")","v":""}]
[null,"",""]
[null,"",""]
[null,"",""]
[null,"",""]
[null,"",""]
[null,"",""]
[null,"",""]
[null,"",""]
[null,"",""]
[null,"",""]
[null,"",""]
[null,"",""]
[null,"",""]
[null,"",""]
[null,"",""]
[null,"",""]
[null,"",""]
[null,"",""]
[null,"",""]
[null,"",""]
[null,"",""]
[null,"",""]
[null,"",""]
[null,"",""]
[null,"",""]
[null,"",""]
[null,"",""]
[null,"",""]
[null,"",""]
[null,"",""]
[null,"",""]
[null,"",""]
[null,"",""]
[null,"",""]
[null,"",""]
[null,"",""]
[null,"",""]
[null,"",""]
[null,"",""]
[null,"",""]
[null,"",""]
[null,"",""]
[null,"",""]
[null,"",""]
[null,"",""]
[null,"",""]
[null,"",""]
[null,"",""]
[null,"",""]
[null,"",""]
[null,"",""]
[null,"",""]
[null,"",""]
[null,"",""]
[null,"",""]
[null,"",""]
[null,"",""]
[null,"",""]
[null,"",""]
[null,"",""]
[null,"",""]
[null,"",""]
[null,"",""]
[null,{"$f":"IFERROR(VLOOKUP($A3076,Common_LU,2,0),\"\")","v":""},{"$f":"IFERROR(VLOOKUP($A3076,Common_LU,3,0),\"\")","v":""}]
[null,"",""]
[null,"",""]
[null,"",""]
[null,"",""]
[null,"",""]
[null,"",""]
[null,"",""]
[null,"",""]
[null,"",""]
[null,"",""]
[null,"",""]
[null,"",""]
[null,"",""]
[null,"",""]
[null,"",""]
[null,"",""]
[null,"",""]
[null,"",""]
[null,"",""]
[null,"",""]
[null,"",""]
[null,"",""]
[null,"",""]
[null,"",""]
[null,"",""]
[null,"",""]
[null,"",""]
[null,"",""]
[null,"",""]
[null,"",""]
[null,"",""]
[null,"",""]
[null,"",""]
[null,"",""]
[null,"",""]
[null,"",""]
[null,"",""]
[null,"",""]
[null,"",""]
[null,"",""]
[null,"",""]
[null,"",""]
[null,"",""]
[null,"",""]
[null,"",""]
[null,"",""]
[null,"",""]
[null,"",""]
[null,"",""]
[null,"",""]
[null,"",""]
[null,"",""]
[null,"",""]
[null,"",""]
[null,"",""]
[null,"",""]
[null,"",""]
[null,"",""]
[null,"",""]
[null,"",""]
[null,"",""]
[null,"",""]
[null,"",""]
[null,{"$f":"IFERROR(VLOOKUP($A3140,Common_LU,2,0),\"\")","v":""},{"$f":"IFERROR(VLOOKUP($A3140,Common_LU,3,0),\"\")","v":""}]
[null,"",""]
[null,"",""]
[null,"",""]
[null,"",""]
[null,"",""]
[null,"",""]
[null,"",""]
[null,"",""]
[null,"",""]
[null,"",""]
[null,"",""]
[null,"",""]
[null,"",""]
[null,"",""]
[null,"",""]
[null,"",""]
[null,"",""]
[null,"",""]
[null,"",""]
[null,"",""]
[null,"",""]
[null,"",""]
[null,"",""]
[null,"",""]
[null,"",""]
[null,"",""]
[null,"",""]
[null,"",""]
[null,"",""]
[null,"",""]
[null,"",""]
[null,"",""]
[null,"",""]
[null,"",""]
[null,"",""]
[null,"",""]
[null,"",""]
[null,"",""]
[null,"",""]
[null,"",""]
[null,"",""]
[null,"",""]
[null,"",""]
[null,"",""]
[null,"",""]
[null,"",""]
[null,"",""]
[null,"",""]
[null,"",""]
[null,"",""]
[null,"",""]
[null,"",""]
[null,"",""]
[null,"",""]
[null,"",""]
[null,"",""]
[null,"",""]
[null,"",""]
[null,"",""]
[null,"",""]
[null,"",""]
[null,"",""]
[null,"",""]
[null,{"$f":"IFERROR(VLOOKUP($A3204,Common_LU,2,0),\"\")","v":""},{"$f":"IFERROR(VLOOKUP($A3204,Common_LU,3,0),\"\")","v":""}]
[null,"",""]
[null,"",""]
[null,"",""]
[null,"",""]
[null,"",""]
[null,"",""]
[null,"",""]
[null,"",""]
[null,"",""]
[null,"",""]
[null,"",""]
[null,"",""]
[null,"",""]
[null,"",""]
[null,"",""]
[null,"",""]
[null,"",""]
[null,"",""]
[null,"",""]
[null,"",""]
[null,"",""]
[null,"",""]
[null,"",""]
[null,"",""]
[null,"",""]
[null,"",""]
[null,"",""]
[null,"",""]
[null,"",""]
[null,"",""]
[null,"",""]
[null,"",""]
[null,"",""]
[null,"",""]
[null,"",""]
[null,"",""]
[null,"",""]
[null,"",""]
[null,"",""]
[null,"",""]
[null,"",""]
[null,"",""]
[null,"",""]
[null,"",""]
[null,"",""]
[null,"",""]
[null,"",""]
[null,"",""]
[null,"",""]
[null,"",""]
[null,"",""]
[null,"",""]
[null,"",""]
[null,"",""]
[null,"",""]
[null,"",""]
[null,"",""]
[null,"",""]
[null,"",""]
[null,"",""]
[null,"",""]
[null,"",""]
[null,"",""]
[null,{"$f":"IFERROR(VLOOKUP($A3268,Common_LU,2,0),\"\")","v":""},{"$f":"IFERROR(VLOOKUP($A3268,Common_LU,3,0),\"\")","v":""}]
[null,"",""]
[null,"",""]
[null,"",""]
[null,"",""]
[null,"",""]
[null,"",""]
[null,"",""]
[null,"",""]
[null,"",""]
[null,"",""]
[null,"",""]
[null,"",""]
[null,"",""]
[null,"",""]
[null,"",""]
[null,"",""]
[null,"",""]
[null,"",""]
[null,"",""]
[null,"",""]
[null,"",""]
[null,"",""]
[null,"",""]
[null,"",""]
[null,"",""]
[null,"",""]
[null,"",""]
[null,"",""]
[null,"",""]
[null,"",""]
[null,"",""]
[null,"",""]
[null,"",""]
[null,"",""]
[null,"",""]
[null,"",""]
[null,"",""]
[null,"",""]
[null,"",""]
[null,"",""]
[null,"",""]
[null,"",""]
[null,"",""]
[null,"",""]
[null,"",""]
[null,"",""]
[null,"",""]
[null,"",""]
[null,"",""]
[null,"",""]
[null,"",""]
[null,"",""]
[null,"",""]
[null,"",""]
[null,"",""]
[null,"",""]
[null,"",""]
[null,"",""]
[null,"",""]
[null,"",""]
[null,"",""]
[null,"",""]
[null,"",""]
[null,{"$f":"IFERROR(VLOOKUP($A3332,Common_LU,2,0),\"\")","v":""},{"$f":"IFERROR(VLOOKUP($A3332,Common_LU,3,0),\"\")","v":""}]
[null,"",""]
[null,"",""]
[null,"",""]
[null,"",""]
[null,"",""]
[null,"",""]
[null,"",""]
[null,"",""]
[null,"",""]
[null,"",""]
[null,"",""]
[null,"",""]
[null,"",""]
[null,"",""]
[null,"",""]
[null,"",""]
[null,"",""]
[null,"",""]
[null,"",""]
[null,"",""]
[null,"",""]
[null,"",""]
[null,"",""]
[null,"",""]
[null,"",""]
[null,"",""]
[null,"",""]
[null,"",""]
[null,"",""]
[null,"",""]
[null,"",""]
[null,"",""]
[null,"",""]
[null,"",""]
[null,"",""]
[null,"",""]
[null,"",""]
[null,"",""]
[null,"",""]
[null,"",""]
[null,"",""]
[null,"",""]
[null,"",""]
[null,"",""]
[null,"",""]
[null,"",""]
[null,"",""]
[null,"",""]
[null,"",""]
[null,"",""]
[null,"",""]
[null,"",""]
[null,"",""]
[null,"",""]
[null,"",""]
[null,"",""]
[null,"",""]
[null,"",""]
[null,"",""]
[null,"",""]
[null,"",""]
[null,"",""]
[null,"",""]
[null,{"$f":"IFERROR(VLOOKUP($A3396,Common_LU,2,0),\"\")","v":""},{"$f":"IFERROR(VLOOKUP($A3396,Common_LU,3,0),\"\")","v":""}]
[null,"",""]
[null,"",""]
[null,"",""]
[null,"",""]
[null,"",""]
[null,"",""]
[null,"",""]
[null,"",""]
[null,"",""]
[null,"",""]
[null,"",""]
[null,"",""]
[null,"",""]
[null,"",""]
[null,"",""]
[null,"",""]
[null,"",""]
[null,"",""]
[null,"",""]
[null,"",""]
[null,"",""]
[null,"",""]
[null,"",""]
[null,"",""]
[null,"",""]
[null,"",""]
[null,"",""]
[null,"",""]
[null,"",""]
[null,"",""]
[null,"",""]
[null,"",""]
[null,"",""]
[null,"",""]
[null,"",""]
[null,"",""]
[null,"",""]
[null,"",""]
[null,"",""]
[null,"",""]
[null,"",""]
[null,"",""]
[null,"",""]
[null,"",""]
[null,"",""]
[null,"",""]
[null,"",""]
[null,"",""]
[null,"",""]
[null,"",""]
[null,"",""]
[null,"",""]
[null,"",""]
[null,"",""]
[null,"",""]
[null,"",""]
[null,"",""]
[null,"",""]
[null,"",""]
[null,"",""]
[null,"",""]
[null,"",""]
[null,"",""]
[null,{"$f":"IFERROR(VLOOKUP($A3460,Common_LU,2,0),\"\")","v":""},{"$f":"IFERROR(VLOOKUP($A3460,Common_LU,3,0),\"\")","v":""}]
[null,"",""]
[null,"",""]
[null,"",""]
[null,"",""]
[null,"",""]
[null,"",""]
[null,"",""]
[null,"",""]
[null,"",""]
[null,"",""]
[null,"",""]
[null,"",""]
[null,"",""]
[null,"",""]
[null,"",""]
[null,"",""]
[null,"",""]
[null,"",""]
[null,"",""]
[null,"",""]
[null,"",""]
[null,"",""]
[null,"",""]
[null,"",""]
[null,"",""]
[null,"",""]
[null,"",""]
[null,"",""]
[null,"",""]
[null,"",""]
[null,"",""]
[null,"",""]
[null,"",""]
[null,"",""]
[null,"",""]
[null,"",""]
[null,"",""]
[null,"",""]
[null,"",""]
[null,"",""]
[null,"",""]
[null,"",""]
[null,"",""]
[null,"",""]
[null,"",""]
[null,"",""]
[null,"",""]
[null,"",""]
[null,"",""]
[null,"",""]
[null,"",""]
[null,"",""]
[null,"",""]
[null,"",""]
[null,"",""]
[null,"",""]
[null,"",""]
[null,"",""]
[null,"",""]
[null,"",""]
[null,"",""]
[null,"",""]
[null,"",""]
[null,{"$f":"IFERROR(VLOOKUP($A3524,Common_LU,2,0),\"\")","v":""},{"$f":"IFERROR(VLOOKUP($A3524,Common_LU,3,0),\"\")","v":""}]
[null,"",""]
[null,"",""]
[null,"",""]
[null,"",""]
[null,"",""]
[null,"",""]
[null,"",""]
[null,"",""]
[null,"",""]
[null,"",""]
[null,"",""]
[null,"",""]
[null,"",""]
[null,"",""]
[null,"",""]
[null,"",""]
[null,"",""]
[null,"",""]
[null,"",""]
[null,"",""]
[null,"",""]
[null,"",""]
[null,"",""]
[null,"",""]
[null,"",""]
[null,"",""]
[null,"",""]
[null,"",""]
[null,"",""]
[null,"",""]
[null,"",""]
[null,"",""]
[null,"",""]
[null,"",""]
[null,"",""]
[null,"",""]
[null,"",""]
[null,"",""]
[null,"",""]
[null,"",""]
[null,"",""]
[null,"",""]
[null,"",""]
[null,"",""]
[null,"",""]
[null,"",""]
[null,"",""]
[null,"",""]
[null,"",""]
[null,"",""]
[null,"",""]
[null,"",""]
[null,"",""]
[null,"",""]
[null,"",""]
[null,"",""]
[null,"",""]
[null,"",""]
[null,"",""]
[null,"",""]
[null,"",""]
[null,"",""]
[null,"",""]
[null,{"$f":"IFERROR(VLOOKUP($A3588,Common_LU,2,0),\"\")","v":""},{"$f":"IFERROR(VLOOKUP($A3588,Common_LU,3,0),\"\")","v":""}]
[null,"",""]
[null,"",""]
[null,"",""]
[null,"",""]
[null,"",""]
[null,"",""]
[null,"",""]
[null,"",""]
[null,"",""]
[null,"",""]
[null,"",""]
[null,"",""]
[null,"",""]
[null,"",""]
[null,"",""]
[null,"",""]
[null,"",""]
[null,"",""]
[null,"",""]
[null,"",""]
[null,"",""]
[null,"",""]
[null,"",""]
[null,"",""]
[null,"",""]
[null,"",""]
[null,"",""]
[null,"",""]
[null,"",""]
[null,"",""]
[null,"",""]
[null,"",""]
[null,"",""]
[null,"",""]
[null,"",""]
[null,"",""]
[null,"",""]
[null,"",""]
[null,"",""]
[null,"",""]
[null,"",""]
[null,"",""]
[null,"",""]
[null,"",""]
[null,"",""]
[null,"",""]
[null,"",""]
[null,"",""]
[null,"",""]
[null,"",""]
[null,"",""]
[null,"",""]
[null,"",""]
[null,"",""]
[null,"",""]
[null,"",""]
[null,"",""]
[null,"",""]
[null,"",""]
[null,"",""]
[null,"",""]
[null,"",""]
[null,"",""]
[null,{"$f":"IFERROR(VLOOKUP($A3652,Common_LU,2,0),\"\")","v":""},{"$f":"IFERROR(VLOOKUP($A3652,Common_LU,3,0),\"\")","v":""}]
[null,"",""]
[null,"",""]
[null,"",""]
[null,"",""]
[null,"",""]
[null,"",""]
[null,"",""]
[null,"",""]
[null,"",""]
[null,"",""]
[null,"",""]
[null,"",""]
[null,"",""]
[null,"",""]
[null,"",""]
[null,"",""]
[null,"",""]
[null,"",""]
[null,"",""]
[null,"",""]
[null,"",""]
[null,"",""]
[null,"",""]
[null,"",""]
[null,"",""]
[null,"",""]
[null,"",""]
[null,"",""]
[null,"",""]
[null,"",""]
[null,"",""]
[null,"",""]
[null,"",""]
[null,"",""]
[null,"",""]
[null,"",""]
[null,"",""]
[null,"",""]
[null,"",""]
[null,"",""]
[null,"",""]
[null,"",""]
[null,"",""]
[null,"",""]
[null,"",""]
[null,"",""]
[null,"",""]
[null,"",""]
[null,"",""]
[null,"",""]
[null,"",""]
[null,"",""]
[null,"",""]
[null,"",""]
[null,"",""]
[null,"",""]
[null,"",""]
[null,"",""]
[null,"",""]
[null,"",""]
[null,"",""]
[null,"",""]
[null,"",""]
[null,{"$f":"IFERROR(VLOOKUP($A3716,Common_LU,2,0),\"\")","v":""},{"$f":"IFERROR(VLOOKUP($A3716,Common_LU,3,0),\"\")","v":""}]
[null,"",""]
[null,"",""]
[null,"",""]
[null,"",""]
[null,"",""]
[null,"",""]
[null,"",""]
[null,"",""]
[null,"",""]
[null,"",""]
[null,"",""]
[null,"",""]
[null,"",""]
[null,"",""]
[null,"",""]
[null,"",""]
[null,"",""]
[null,"",""]
[null,"",""]
[null,"",""]
[null,"",""]
[null,"",""]
[null,"",""]
[null,"",""]
[null,"",""]
[null,"",""]
[null,"",""]
[null,"",""]
[null,"",""]
[null,"",""]
[null,"",""]
[null,"",""]
[null,"",""]
[null,"",""]
[null,"",""]
[null,"",""]
[null,"",""]
[null,"",""]
[null,"",""]
[null,"",""]
[null,"",""]
[null,"",""]
[null,"",""]
[null,"",""]
[null,"",""]
[null,"",""]
[null,"",""]
[null,"",""]
[null,"",""]
[null,"",""]
[null,"",""]
[null,"",""]
[null,"",""]
[null,"",""]
[null,"",""]
[null,"",""]
[null,"",""]
[null,"",""]
[null,"",""]
[null,"",""]
[null,"",""]
[null,"",""]
[null,"",""]
[null,{"$f":"IFERROR(VLOOKUP($A3780,Common_LU,2,0),\"\")","v":""},{"$f":"IFERROR(VLOOKUP($A3780,Common_LU,3,0),\"\")","v":""}]
[null,"",""]
[null,"",""]
[null,"",""]
[null,"",""]
[null,"",""]
[null,"",""]
[null,"",""]
[null,"",""]
[null,"",""]
[null,"",""]
[null,"",""]
[null,"",""]
[null,"",""]
[null,"",""]
[null,"",""]
[null,"",""]
[null,"",""]
[null,"",""]
[null,"",""]
[null,"",""]
[null,"",""]
[null,"",""]
[null,"",""]
[null,"",""]
[null,"",""]
[null,"",""]
[null,"",""]
[null,"",""]
[null,"",""]
[null,"",""]
[null,"",""]
[null,"",""]
[null,"",""]
[null,"",""]
[null,"",""]
[null,"",""]
[null,"",""]
[null,"",""]
[null,"",""]
[null,"",""]
[null,"",""]
[null,"",""]
[null,"",""]
[null,"",""]
[null,"",""]
[null,"",""]
[null,"",""]
[null,"",""]
[null,"",""]
[null,"",""]
[null,"",""]
[null,"",""]
[null,"",""]
[null,"",""]
[null,"",""]
[null,"",""]
[null,"",""]
[null,"",""]
[null,"",""]
[null,"",""]
[null,"",""]
[null,"",""]
[null,"",""]
[null,{"$f":"IFERROR(VLOOKUP($A3844,Common_LU,2,0),\"\")","v":""},{"$f":"IFERROR(VLOOKUP($A3844,Common_LU,3,0),\"\")","v":""}]
[null,"",""]
[null,"",""]
[null,"",""]
[null,"",""]
[null,"",""]
[null,"",""]
[null,"",""]
[null,"",""]
[null,"",""]
[null,"",""]
[null,"",""]
[null,"",""]
[null,"",""]
[null,"",""]
[null,"",""]
[null,"",""]
[null,"",""]
[null,"",""]
[null,"",""]
[null,"",""]
[null,"",""]
[null,"",""]
[null,"",""]
[null,"",""]
[null,"",""]
[null,"",""]
[null,"",""]
[null,"",""]
[null,"",""]
[null,"",""]
[null,"",""]
[null,"",""]
[null,"",""]
[null,"",""]
[null,"",""]
[null,"",""]
[null,"",""]
[null,"",""]
[null,"",""]
[null,"",""]
[null,"",""]
[null,"",""]
[null,"",""]
[null,"",""]
[null,"",""]
[null,"",""]
[null,"",""]
[null,"",""]
[null,"",""]
[null,"",""]
[null,"",""]
[null,"",""]
[null,"",""]
[null,"",""]
[null,"",""]
[null,"",""]
[null,"",""]
[null,"",""]
[null,"",""]
[null,"",""]
[null,"",""]
[null,"",""]
[null,"",""]
[null,{"$f":"IFERROR(VLOOKUP($A3908,Common_LU,2,0),\"\")","v":""},{"$f":"IFERROR(VLOOKUP($A3908,Common_LU,3,0),\"\")","v":""}]
[null,"",""]
[null,"",""]
[null,"",""]
[null,"",""]
[null,"",""]
[null,"",""]
[null,"",""]
[null,"",""]
[null,"",""]
[null,"",""]
[null,"",""]
[null,"",""]
[null,"",""]
[null,"",""]
[null,"",""]
[null,"",""]
[null,"",""]
[null,"",""]
[null,"",""]
[null,"",""]
[null,"",""]
[null,"",""]
[null,"",""]
[null,"",""]
[null,"",""]
[null,"",""]
[null,"",""]
[null,"",""]
[null,"",""]
[null,"",""]
[null,"",""]
[null,"",""]
[null,"",""]
[null,"",""]
[null,"",""]
[null,"",""]
[null,"",""]
[null,"",""]
[null,"",""]
[null,"",""]
[null,"",""]
[null,"",""]
[null,"",""]
[null,"",""]
[null,"",""]
[null,"",""]
[null,"",""]
[null,"",""]
[null,"",""]
[null,"",""]
[null,"",""]
[null,"",""]
[null,"",""]
[null,"",""]
[null,"",""]
[null,"",""]
[null,"",""]
[null,"",""]
[null,"",""]
[null,"",""]
[null,"",""]
[null,"",""]
[null,"",""]
[null,{"$f":"IFERROR(VLOOKUP($A3972,Common_LU,2,0),\"\")","v":""},{"$f":"IFERROR(VLOOKUP($A3972,Common_LU,3,0),\"\")","v":""}]
[null,"",""]
[null,"",""]
[null,"",""]
[null,"",""]
[null,"",""]
[null,"",""]
[null,"",""]
[null,"",""]
[null,"",""]
[null,"",""]
[null,"",""]
[null,"",""]
[null,"",""]
[null,"",""]
[null,"",""]
[null,"",""]
[null,"",""]
[null,"",""]
[null,"",""]
[null,"",""]
[null,"",""]
[null,"",""]
[null,"",""]
[null,"",""]
[null,"",""]
[null,"",""]
[null,"",""]
[null,"",""]
[null,"",""]
[null,"",""]
[null,"",""]
[null,"",""]
[null,"",""]
[null,"",""]
[null,"",""]
[null,"",""]
[null,"",""]
[null,"",""]
[null,"",""]
[null,"",""]
[null,"",""]
[null,"",""]
[null,"",""]
[null,"",""]
[null,"",""]
[null,"",""]
[null,"",""]
[null,"",""]
[null,"",""]
[null,"",""]
[null,"",""]
[null,"",""]
[null,"",""]
[null,"",""]
[null,"",""]
[null,"",""]
[null,"",""]
[null,"",""]
[null,"",""]
[null,"",""]
[null,"",""]
[null,"",""]
[null,"",""]
[null,{"$f":"IFERROR(VLOOKUP($A4036,Common_LU,2,0),\"\")","v":""},{"$f":"IFERROR(VLOOKUP($A4036,Common_LU,3,0),\"\")","v":""}]
[null,"",""]
[null,"",""]
[null,"",""]
[null,"",""]
[null,"",""]
[null,"",""]
[null,"",""]
[null,"",""]
[null,"",""]
[null,"",""]
[null,"",""]
[null,"",""]
[null,"",""]
[null,"",""]
[null,"",""]
[null,"",""]
[null,"",""]
[null,"",""]
[null,"",""]
[null,"",""]
[null,"",""]
[null,"",""]
[null,"",""]
[null,"",""]
[null,"",""]
[null,"",""]
[null,"",""]
[null,"",""]
[null,"",""]
[null,"",""]
[null,"",""]
[null,"",""]
[null,"",""]
[null,"",""]
[null,"",""]
[null,"",""]
[null,"",""]
[null,"",""]
[null,"",""]
[null,"",""]
[null,"",""]
[null,"",""]
[null,"",""]
[null,"",""]
[null,"",""]
[null,"",""]
[null,"",""]
[null,"",""]
[null,"",""]
[null,"",""]
[null,"",""]
[null,"",""]
[null,"",""]
[null,"",""]
[null,"",""]
[null,"",""]
[null,"",""]
[null,"",""]
[null,"",""]
[null,"",""]
[null,"",""]
[null,"",""]
[null,"",""]
[null,{"$f":"IFERROR(VLOOKUP($A4100,Common_LU,2,0),\"\")","v":""},{"$f":"IFERROR(VLOOKUP($A4100,Common_LU,3,0),\"\")","v":""}]
[null,"",""]
[null,"",""]
[null,"",""]
[null,"",""]
[null,"",""]
[null,"",""]
[null,"",""]
[null,"",""]
[null,"",""]
[null,"",""]
[null,"",""]
[null,"",""]
[null,"",""]
[null,"",""]
[null,"",""]
[null,"",""]
[null,"",""]
[null,"",""]
[null,"",""]
[null,"",""]
[null,"",""]
[null,"",""]
[null,"",""]
[null,"",""]
[null,"",""]
[null,"",""]
[null,"",""]
[null,"",""]
[null,"",""]
[null,"",""]
[null,"",""]
[null,"",""]
[null,"",""]
[null,"",""]
[null,"",""]
[null,"",""]
[null,"",""]
[null,"",""]
[null,"",""]
[null,"",""]
[null,"",""]
[null,"",""]
[null,"",""]
[null,"",""]
[null,"",""]
[null,"",""]
[null,"",""]
[null,"",""]
[null,"",""]
[null,"",""]
[null,"",""]
[null,"",""]
[null,"",""]
[null,"",""]
[null,"",""]
[null,"",""]
[null,"",""]
[null,"",""]
[null,"",""]
[null,"",""]
[null,"",""]
[null,"",""]
[null,"",""]
[null,{"$f":"IFERROR(VLOOKUP($A4164,Common_LU,2,0),\"\")","v":""},{"$f":"IFERROR(VLOOKUP($A4164,Common_LU,3,0),\"\")","v":""}]
[null,"",""]
[null,"",""]
[null,"",""]
[null,"",""]
[null,"",""]
[null,"",""]
[null,"",""]
[null,"",""]
[null,"",""]
[null,"",""]
[null,"",""]
[null,"",""]
[null,"",""]
[null,"",""]
[null,"",""]
[null,"",""]
[null,"",""]
[null,"",""]
[null,"",""]
[null,"",""]
[null,"",""]
[null,"",""]
[null,"",""]
[null,"",""]
[null,"",""]
[null,"",""]
[null,"",""]
[null,"",""]
[null,"",""]
[null,"",""]
[null,"",""]
[null,"",""]
[null,"",""]
[null,"",""]
[null,"",""]
[null,"",""]
[null,"",""]
[null,"",""]
[null,"",""]
[null,"",""]
[null,"",""]
[null,"",""]
[null,"",""]
[null,"",""]
[null,"",""]
[null,"",""]
[null,"",""]
[null,"",""]
[null,"",""]
[null,"",""]
[null,"",""]
[null,"",""]
[null,"",""]
[null,"",""]
[null,"",""]
[null,"",""]
[null,"",""]
[null,"",""]
[null,"",""]
[null,"",""]
[null,"",""]
[null,"",""]
[null,"",""]
[null,{"$f":"IFERROR(VLOOKUP($A4228,Common_LU,2,0),\"\")","v":""},{"$f":"IFERROR(VLOOKUP($A4228,Common_LU,3,0),\"\")","v":""}]
[null,"",""]
[null,"",""]
[null,"",""]
[null,"",""]
[null,"",""]
[null,"",""]
[null,"",""]
[null,"",""]
[null,"",""]
[null,"",""]
[null,"",""]
[null,"",""]
[null,"",""]
[null,"",""]
[null,"",""]
[null,"",""]
[null,"",""]
[null,"",""]
[null,"",""]
[null,"",""]
[null,"",""]
[null,"",""]
[null,"",""]
[null,"",""]
[null,"",""]
[null,"",""]
[null,"",""]
[null,"",""]
[null,"",""]
[null,"",""]
[null,"",""]
[null,"",""]
[null,"",""]
[null,"",""]
[null,"",""]
[null,"",""]
[null,"",""]
[null,"",""]
[null,"",""]
[null,"",""]
[null,"",""]
[null,"",""]
[null,"",""]
[null,"",""]
[null,"",""]
[null,"",""]
[null,"",""]
[null,"",""]
[null,"",""]
[null,"",""]
[null,"",""]
[null,"",""]
[null,"",""]
[null,"",""]
[null,"",""]
[null,"",""]
[null,"",""]
[null,"",""]
[null,"",""]
[null,"",""]
[null,"",""]
[null,"",""]
[null,"",""]
[null,{"$f":"IFERROR(VLOOKUP($A4292,Common_LU,2,0),\"\")","v":""},{"$f":"IFERROR(VLOOKUP($A4292,Common_LU,3,0),\"\")","v":""}]
[null,"",""]
[null,"",""]
[null,"",""]
[null,"",""]
[null,"",""]
[null,"",""]
[null,"",""]
[null,"",""]
[null,"",""]
[null,"",""]
[null,"",""]
[null,"",""]
[null,"",""]
[null,"",""]
[null,"",""]
[null,"",""]
[null,"",""]
[null,"",""]
[null,"",""]
[null,"",""]
[null,"",""]
[null,"",""]
[null,"",""]
[null,"",""]
[null,"",""]
[null,"",""]
[null,"",""]
[null,"",""]
[null,"",""]
[null,"",""]
[null,"",""]
[null,"",""]
[null,"",""]
[null,"",""]
[null,"",""]
[null,"",""]
[null,"",""]
[null,"",""]
[null,"",""]
[null,"",""]
[null,"",""]
[null,"",""]
[null,"",""]
[null,"",""]
[null,"",""]
[null,"",""]
[null,"",""]
[null,"",""]
[null,"",""]
[null,"",""]
[null,"",""]
[null,"",""]
[null,"",""]
[null,"",""]
[null,"",""]
[null,"",""]
[null,"",""]
[null,"",""]
[null,"",""]
[null,"",""]
[null,"",""]
[null,"",""]
[null,"",""]
[null,{"$f":"IFERROR(VLOOKUP($A4356,Common_LU,2,0),\"\")","v":""},{"$f":"IFERROR(VLOOKUP($A4356,Common_LU,3,0),\"\")","v":""}]
[null,"",""]
[null,"",""]
[null,"",""]
[null,"",""]
[null,"",""]
[null,"",""]
[null,"",""]
[null,"",""]
[null,"",""]
[null,"",""]
[null,"",""]
[null,"",""]
[null,"",""]
[null,"",""]
[null,"",""]
[null,"",""]
[null,"",""]
[null,"",""]
[null,"",""]
[null,"",""]
[null,"",""]
[null,"",""]
[null,"",""]
[null,"",""]
[null,"",""]
[null,"",""]
[null,"",""]
[null,"",""]
[null,"",""]
[null,"",""]
[null,"",""]
[null,"",""]
[null,"",""]
[null,"",""]
[null,"",""]
[null,"",""]
[null,"",""]
[null,"",""]
[null,"",""]
[null,"",""]
[null,"",""]
[null,"",""]
[null,"",""]
[null,"",""]
[null,"",""]
[null,"",""]
[null,"",""]
[null,"",""]
[null,"",""]
[null,"",""]
[null,"",""]
[null,"",""]
[null,"",""]
[null,"",""]
[null,"",""]
[null,"",""]
[null,"",""]
[null,"",""]
[null,"",""]
[null,"",""]
[null,"",""]
[null,"",""]
[null,"",""]
[null,{"$f":"IFERROR(VLOOKUP($A4420,Common_LU,2,0),\"\")","v":""},{"$f":"IFERROR(VLOOKUP($A4420,Common_LU,3,0),\"\")","v":""}]
[null,"",""]
[null,"",""]
[null,"",""]
[null,"",""]
[null,"",""]
[null,"",""]
[null,"",""]
[null,"",""]
[null,"",""]
[null,"",""]
[null,"",""]
[null,"",""]
[null,"",""]
[null,"",""]
[null,"",""]
[null,"",""]
[null,"",""]
[null,"",""]
[null,"",""]
[null,"",""]
[null,"",""]
[null,"",""]
[null,"",""]
[null,"",""]
[null,"",""]
[null,"",""]
[null,"",""]
[null,"",""]
[null,"",""]
[null,"",""]
[null,"",""]
[null,"",""]
[null,"",""]
[null,"",""]
[null,"",""]
[null,"",""]
[null,"",""]
[null,"",""]
[null,"",""]
[null,"",""]
[null,"",""]
[null,"",""]
[null,"",""]
[null,"",""]
[null,"",""]
[null,"",""]
[null,"",""]
[null,"",""]
[null,"",""]
[null,"",""]
[null,"",""]
[null,"",""]
[null,"",""]
[null,"",""]
[null,"",""]
[null,"",""]
[null,"",""]
[null,"",""]
[null,"",""]
[null,"",""]
[null,"",""]
[null,"",""]
[null,"",""]
[null,{"$f":"IFERROR(VLOOKUP($A4484,Common_LU,2,0),\"\")","v":""},{"$f":"IFERROR(VLOOKUP($A4484,Common_LU,3,0),\"\")","v":""}]
[null,"",""]
[null,"",""]
[null,"",""]
[null,"",""]
[null,"",""]
[null,"",""]
[null,"",""]
[null,"",""]
[null,"",""]
[null,"",""]
[null,"",""]
[null,"",""]
[null,"",""]
[null,"",""]
[null,"",""]
[null,"",""]
[null,"",""]
[null,"",""]
[null,"",""]
[null,"",""]
[null,"",""]
[null,"",""]
[null,"",""]
[null,"",""]
[null,"",""]
[null,"",""]
[null,"",""]
[null,"",""]
[null,"",""]
[null,"",""]
[null,"",""]
[null,"",""]
[null,"",""]
[null,"",""]
[null,"",""]
[null,"",""]
[null,"",""]
[null,"",""]
[null,"",""]
[null,"",""]
[null,"",""]
[null,"",""]
[null,"",""]
[null,"",""]
[null,"",""]
[null,"",""]
[null,"",""]
[null,"",""]
[null,"",""]
[null,"",""]
[null,"",""]
[null,"",""]
[null,"",""]
[null,"",""]
[null,"",""]
[null,"",""]
[null,"",""]
[null,"",""]
[null,"",""]
[null,"",""]
[null,"",""]
[null,"",""]
[null,"",""]
[null,{"$f":"IFERROR(VLOOKUP($A4548,Common_LU,2,0),\"\")","v":""},{"$f":"IFERROR(VLOOKUP($A4548,Common_LU,3,0),\"\")","v":""}]
[null,"",""]
[null,"",""]
[null,"",""]
[null,"",""]
[null,"",""]
[null,"",""]
[null,"",""]
[null,"",""]
[null,"",""]
[null,"",""]
[null,"",""]
[null,"",""]
[null,"",""]
[null,"",""]
[null,"",""]
[null,"",""]
[null,"",""]
[null,"",""]
[null,"",""]
[null,"",""]
[null,"",""]
[null,"",""]
[null,"",""]
[null,"",""]
[null,"",""]
[null,"",""]
[null,"",""]
[null,"",""]
[null,"",""]
[null,"",""]
[null,"",""]
[null,"",""]
[null,"",""]
[null,"",""]
[null,"",""]
[null,"",""]
[null,"",""]
[null,"",""]
[null,"",""]
[null,"",""]
[null,"",""]
[null,"",""]
[null,"",""]
[null,"",""]
[null,"",""]
[null,"",""]
[null,"",""]
[null,"",""]
[null,"",""]
[null,"",""]
[null,"",""]
[null,"",""]
[null,"",""]
[null,"",""]
[null,"",""]
[null,"",""]
[null,"",""]
[null,"",""]
[null,"",""]
[null,"",""]
[null,"",""]
[null,"",""]
[null,"",""]
[null,{"$f":"IFERROR(VLOOKUP($A4612,Common_LU,2,0),\"\")","v":""},{"$f":"IFERROR(VLOOKUP($A4612,Common_LU,3,0),\"\")","v":""}]
[null,"",""]
[null,"",""]
[null,"",""]
[null,"",""]
[null,"",""]
[null,"",""]
[null,"",""]
[null,"",""]
[null,"",""]
[null,"",""]
[null,"",""]
[null,"",""]
[null,"",""]
[null,"",""]
[null,"",""]
[null,"",""]
[null,"",""]
[null,"",""]
[null,"",""]
[null,"",""]
[null,"",""]
[null,"",""]
[null,"",""]
[null,"",""]
[null,"",""]
[null,"",""]
[null,"",""]
[null,"",""]
[null,"",""]
[null,"",""]
[null,"",""]
[null,"",""]
[null,"",""]
[null,"",""]
[null,"",""]
[null,"",""]
[null,"",""]
[null,"",""]
[null,"",""]
[null,"",""]
[null,"",""]
[null,"",""]
[null,"",""]
[null,"",""]
[null,"",""]
[null,"",""]
[null,"",""]
[null,"",""]
[null,"",""]
[null,"",""]
[null,"",""]
[null,"",""]
[null,"",""]
[null,"",""]
[null,"",""]
[null,"",""]
[null,"",""]
[null,"",""]
[null,"",""]
[null,"",""]
[null,"",""]
[null,"",""]
[null,"",""]
[null,{"$f":"IFERROR(VLOOKUP($A4676,Common_LU,2,0),\"\")","v":""},{"$f":"IFERROR(VLOOKUP($A4676,Common_LU,3,0),\"\")","v":""}]
[null,"",""]
[null,"",""]
[null,"",""]
[null,"",""]
[null,"",""]
[null,"",""]
[null,"",""]
[null,"",""]
[null,"",""]
[null,"",""]
[null,"",""]
[null,"",""]
[null,"",""]
[null,"",""]
[null,"",""]
[null,"",""]
[null,"",""]
[null,"",""]
[null,"",""]
[null,"",""]
[null,"",""]
[null,"",""]
[null,"",""]
[null,"",""]
[null,"",""]
[null,"",""]
[null,"",""]
[null,"",""]
[null,"",""]
[null,"",""]
[null,"",""]
[null,"",""]
[null,"",""]
[null,"",""]
[null,"",""]
[null,"",""]
[null,"",""]
[null,"",""]
[null,"",""]
[null,"",""]
[null,"",""]
[null,"",""]
[null,"",""]
[null,"",""]
[null,"",""]
[null,"",""]
[null,"",""]
[null,"",""]
[null,"",""]
[null,"",""]
[null,"",""]
[null,"",""]
[null,"",""]
[null,"",""]
[null,"",""]
[null,"",""]
[null,"",""]
[null,"",""]
[null,"",""]
[null,"",""]
[null,"",""]
[null,"",""]
[null,"",""]
[null,{"$f":"IFERROR(VLOOKUP($A4740,Common_LU,2,0),\"\")","v":""},{"$f":"IFERROR(VLOOKUP($A4740,Common_LU,3,0),\"\")","v":""}]
[null,"",""]
[null,"",""]
[null,"",""]
[null,"",""]
[null,"",""]
[null,"",""]
[null,"",""]
[null,"",""]
[null,"",""]
[null,"",""]
[null,"",""]
[null,"",""]
[null,"",""]
[null,"",""]
[null,"",""]
[null,"",""]
[null,"",""]
[null,"",""]
[null,"",""]
[null,"",""]
[null,"",""]
[null,"",""]
[null,"",""]
[null,"",""]
[null,"",""]
[null,"",""]
[null,"",""]
[null,"",""]
[null,"",""]
[null,"",""]
[null,"",""]
[null,"",""]
[null,"",""]
[null,"",""]
[null,"",""]
[null,"",""]
[null,"",""]
[null,"",""]
[null,"",""]
[null,"",""]
[null,"",""]
[null,"",""]
[null,"",""]
[null,"",""]
[null,"",""]
[null,"",""]
[null,"",""]
[null,"",""]
[null,"",""]
[null,"",""]
[null,"",""]
[null,"",""]
[null,"",""]
[null,"",""]
[null,"",""]
[null,"",""]
[null,"",""]
[null,"",""]
[null,"",""]
[null,"",""]
[null,"",""]
[null,"",""]
[null,"",""]
[null,{"$f":"IFERROR(VLOOKUP($A4804,Common_LU,2,0),\"\")","v":""},{"$f":"IFERROR(VLOOKUP($A4804,Common_LU,3,0),\"\")","v":""}]
[null,"",""]
[null,"",""]
[null,"",""]
[null,"",""]
[null,"",""]
[null,"",""]
[null,"",""]
[null,"",""]
[null,"",""]
[null,"",""]
[null,"",""]
[null,"",""]
[null,"",""]
[null,"",""]
[null,"",""]
[null,"",""]
[null,"",""]
[null,"",""]
[null,"",""]
[null,"",""]
[null,"",""]
[null,"",""]
[null,"",""]
[null,"",""]
[null,"",""]
[null,"",""]
[null,"",""]
[null,"",""]
[null,"",""]
[null,"",""]
[null,"",""]
[null,"",""]
[null,"",""]
[null,"",""]
[null,"",""]
[null,"",""]
[null,"",""]
[null,"",""]
[null,"",""]
[null,"",""]
[null,"",""]
[null,"",""]
[null,"",""]
[null,"",""]
[null,"",""]
[null,"",""]
[null,"",""]
[null,"",""]
[null,"",""]
[null,"",""]
[null,"",""]
[null,"",""]
[null,"",""]
[null,"",""]
[null,"",""]
[null,"",""]
[null,"",""]
[null,"",""]
[null,"",""]
[null,"",""]
[null,"",""]
[null,"",""]
[null,"",""]
[null,{"$f":"IFERROR(VLOOKUP($A4868,Common_LU,2,0),\"\")","v":""},{"$f":"IFERROR(VLOOKUP($A4868,Common_LU,3,0),\"\")","v":""}]
[null,"",""]
[null,"",""]
[null,"",""]
[null,"",""]
[null,"",""]
[null,"",""]
[null,"",""]
[null,"",""]
[null,"",""]
[null,"",""]
[null,"",""]
[null,"",""]
[null,"",""]
[null,"",""]
[null,"",""]
[null,"",""]
[null,"",""]
[null,"",""]
[null,"",""]
[null,"",""]
[null,"",""]
[null,"",""]
[null,"",""]
[null,"",""]
[null,"",""]
[null,"",""]
[null,"",""]
[null,"",""]
[null,"",""]
[null,"",""]
[null,"",""]
[null,"",""]
[null,"",""]
[null,"",""]
[null,"",""]
[null,"",""]
[null,"",""]
[null,"",""]
[null,"",""]
[null,"",""]
[null,"",""]
[null,"",""]
[null,"",""]
[null,"",""]
[null,"",""]
[null,"",""]
[null,"",""]
[null,"",""]
[null,"",""]
[null,"",""]
[null,"",""]
[null,"",""]
[null,"",""]
[null,"",""]
[null,"",""]
[null,"",""]
[null,"",""]
[null,"",""]
[null,"",""]
[null,"",""]
[null,"",""]
[null,"",""]
[null,"",""]
[null,{"$f":"IFERROR(VLOOKUP($A4932,Common_LU,2,0),\"\")","v":""},{"$f":"IFERROR(VLOOKUP($A4932,Common_LU,3,0),\"\")","v":""}]
[null,"",""]
[null,"",""]
[null,"",""]
[null,"",""]
[null,"",""]
[null,"",""]
[null,"",""]
[null,"",""]
[null,"",""]
[null,"",""]
[null,"",""]
[null,"",""]
[null,"",""]
[null,"",""]
[null,"",""]
[null,"",""]
[null,"",""]
[null,"",""]
[null,"",""]
[null,"",""]
[null,"",""]
[null,"",""]
[null,"",""]
[null,"",""]
[null,"",""]
[null,"",""]
[null,"",""]
[null,"",""]
[null,"",""]
[null,"",""]
[null,"",""]
[null,"",""]
[null,"",""]
[null,"",""]
[null,"",""]
[null,"",""]
[null,"",""]
[null,"",""]
[null,"",""]
[null,"",""]
[null,"",""]
[null,"",""]
[null,"",""]
[null,"",""]
[null,"",""]
[null,"",""]
[null,"",""]
[null,"",""]
[null,"",""]
[null,"",""]
[null,"",""]
[null,"",""]
[null,"",""]
[null,"",""]
[null,"",""]
[null,"",""]
[null,"",""]
[null,"",""]
[null,"",""]
[null,"",""]
[null,"",""]
[null,"",""]
[null,"",""]
[null,{"$f":"IFERROR(VLOOKUP($A4996,Common_LU,2,0),\"\")","v":""},{"$f":"IFERROR(VLOOKUP($A4996,Common_LU,3,0),\"\")","v":""}]
[null,"",""]
[null,"",""]
[null,"",""]
[null,"",""]
[null,"",""]
[null,"",""]
[null,"",""]
[null,"",""]
[null,"",""]
[null,"",""]
[null,"",""]
[null,"",""]
[null,"",""]
[null,"",""]
[null,"",""]
[null,"",""]
[null,"",""]
[null,"",""]
[null,"",""]
[null,"",""]
[null,"",""]
[null,"",""]
[null,"",""]
[null,"",""]
[null,"",""]
[null,"",""]
[null,"",""]
[null,"",""]
[null,"",""]
[null,"",""]
[null,"",""]
[null,"",""]
[null,"",""]
[null,"",""]
[null,"",""]
[null,"",""]
[null,"",""]
[null,"",""]
[null,"",""]
[null,"",""]
[null,"",""]
[null,"",""]
[null,"",""]
[null,"",""]
[null,"",""]
[null,"",""]
[null,"",""]
[null,"",""]
[null,"",""]
[null,"",""]
[null,"",""]
[null,"",""]
[null,"",""]
[null,"",""]
[null,"",""]
[null,"",""]
[null,"",""]
[null,"",""]
[null,"",""]
[null,"",""]
[null,"",""]
[null,"",""]
[null,"",""]
[null,{"$f":"IFERROR(VLOOKUP($A5060,Common_LU,2,0),\"\")","v":""},{"$f":"IFERROR(VLOOKUP($A5060,Common_LU,3,0),\"\")","v":""}]
[null,"",""]
[null,"",""]
[null,"",""]
[null,"",""]
[null,"",""]
[null,"",""]
[null,"",""]
[null,"",""]
[null,"",""]
[null,"",""]
[null,"",""]
[null,"",""]
[null,"",""]
[null,"",""]
[null,"",""]
[null,"",""]
[null,"",""]
[null,"",""]
[null,"",""]
[null,"",""]
[null,"",""]
[null,"",""]
[null,"",""]
[null,"",""]
[null,"",""]
[null,"",""]
[null,"",""]
[null,"",""]
[null,"",""]
[null,"",""]
[null,"",""]
[null,"",""]
[null,"",""]
[null,"",""]
[null,"",""]
[null,"",""]
[null,"",""]
[null,"",""]
[null,"",""]
[null,"",""]
[null,"",""]
[null,"",""]
[null,"",""]
[null,"",""]
[null,"",""]
[null,"",""]
[null,"",""]
[null,"",""]
[null,"",""]
[null,"",""]
[null,"",""]
[null,"",""]
[null,"",""]
[null,"",""]
[null,"",""]
[null,"",""]
[null,"",""]
[null,"",""]
[null,"",""]
[null,"",""]
[null,"",""]
[null,"",""]
[null,"",""]
[null,{"$f":"IFERROR(VLOOKUP($A5124,Common_LU,2,0),\"\")","v":""},{"$f":"IFERROR(VLOOKUP($A5124,Common_LU,3,0),\"\")","v":""}]
[null,"",""]
[null,"",""]
[null,"",""]
[null,"",""]
[null,"",""]
[null,"",""]
[null,"",""]
[null,"",""]
[null,"",""]
[null,"",""]
[null,"",""]
[null,"",""]
[null,"",""]
[null,"",""]
[null,"",""]
[null,"",""]
[null,"",""]
[null,"",""]
[null,"",""]
[null,"",""]
[null,"",""]
[null,"",""]
[null,"",""]
[null,"",""]
[null,"",""]
[null,"",""]
[null,"",""]
[null,"",""]
[null,"",""]
[null,"",""]
[null,"",""]
[null,"",""]
[null,"",""]
[null,"",""]
[null,"",""]
[null,"",""]
[null,"",""]
[null,"",""]
[null,"",""]
[null,"",""]
[null,"",""]
[null,"",""]
[null,"",""]
[null,"",""]
[null,"",""]
[null,"",""]
[null,"",""]
[null,"",""]
[null,"",""]
[null,"",""]
[null,"",""]
[null,"",""]
[null,"",""]
[null,"",""]
[null,"",""]
[null,"",""]
[null,"",""]
[null,"",""]
[null,"",""]
[null,"",""]
[null,"",""]
[null,"",""]
[null,"",""]
[null,{"$f":"IFERROR(VLOOKUP($A5188,Common_LU,2,0),\"\")","v":""},{"$f":"IFERROR(VLOOKUP($A5188,Common_LU,3,0),\"\")","v":""}]
[null,"",""]
[null,"",""]
[null,"",""]
[null,"",""]
[null,"",""]
[null,"",""]
[null,"",""]
[null,"",""]
[null,"",""]
[null,"",""]
[null,"",""]
[null,"",""]
[null,"",""]
[null,"",""]
[null,"",""]
[null,"",""]
[null,"",""]
[null,"",""]
[null,"",""]
[null,"",""]
[null,"",""]
[null,"",""]
[null,"",""]
[null,"",""]
[null,"",""]
[null,"",""]
[null,"",""]
[null,"",""]
[null,"",""]
[null,"",""]
[null,"",""]
[null,"",""]
[null,"",""]
[null,"",""]
[null,"",""]
[null,"",""]
[null,"",""]
[null,"",""]
[null,"",""]
[null,"",""]
[null,"",""]
[null,"",""]
[null,"",""]
[null,"",""]
[null,"",""]
[null,"",""]
[null,"",""]
[null,"",""]
[null,"",""]
[null,"",""]
[null,"",""]
[null,"",""]
[null,"",""]
[null,"",""]
[null,"",""]
[null,"",""]
[null,"",""]
[null,"",""]
[null,"",""]
[null,"",""]
[null,"",""]
[null,"",""]
[null,"",""]
[null,{"$f":"IFERROR(VLOOKUP($A5252,Common_LU,2,0),\"\")","v":""},{"$f":"IFERROR(VLOOKUP($A5252,Common_LU,3,0),\"\")","v":""}]
[null,"",""]
[null,"",""]
[null,"",""]
[null,"",""]
[null,"",""]
[null,"",""]
[null,"",""]
[null,"",""]
[null,"",""]
[null,"",""]
[null,"",""]
[null,"",""]
[null,"",""]
[null,"",""]
[null,"",""]
[null,"",""]
[null,"",""]
[null,"",""]
[null,"",""]
[null,"",""]
[null,"",""]
[null,"",""]
[null,"",""]
[null,"",""]
[null,"",""]
[null,"",""]
[null,"",""]
[null,"",""]
[null,"",""]
[null,"",""]
[null,"",""]
[null,"",""]
[null,"",""]
[null,"",""]
[null,"",""]
[null,"",""]
[null,"",""]
[null,"",""]
[null,"",""]
[null,"",""]
[null,"",""]
[null,"",""]
[null,"",""]
[null,"",""]
[null,"",""]
[null,"",""]
[null,"",""]
[null,"",""]
[null,"",""]
[null,"",""]
[null,"",""]
[null,"",""]
[null,"",""]
[null,"",""]
[null,"",""]
[null,"",""]
[null,"",""]
[null,"",""]
[null,"",""]
[null,"",""]
[null,"",""]
[null,"",""]
[null,"",""]
[null,{"$f":"IFERROR(VLOOKUP($A5316,Common_LU,2,0),\"\")","v":""},{"$f":"IFERROR(VLOOKUP($A5316,Common_LU,3,0),\"\")","v":""}]
[null,"",""]
[null,"",""]
[null,"",""]
[null,"",""]
[null,"",""]
[null,"",""]
[null,"",""]
[null,"",""]
[null,"",""]
[null,"",""]
[null,"",""]
[null,"",""]
[null,"",""]
[null,"",""]
[null,"",""]
[null,"",""]
[null,"",""]
[null,"",""]
[null,"",""]
[null,"",""]
[null,"",""]
[null,"",""]
[null,"",""]
[null,"",""]
[null,"",""]
[null,"",""]
[null,"",""]
[null,"",""]
[null,"",""]
[null,"",""]
[null,"",""]
[null,"",""]
[null,"",""]
[null,"",""]
[null,"",""]
[null,"",""]
[null,"",""]
[null,"",""]
[null,"",""]
[null,"",""]
[null,"",""]
[null,"",""]
[null,"",""]
[null,"",""]
[null,"",""]
[null,"",""]
[null,"",""]
[null,"",""]
[null,"",""]
[null,"",""]
[null,"",""]
[null,"",""]
[null,"",""]
[null,"",""]
[null,"",""]
[null,"",""]
[null,"",""]
[null,"",""]
[null,"",""]
[null,"",""]
[null,"",""]
[null,"",""]
[null,"",""]
[null,{"$f":"IFERROR(VLOOKUP($A5380,Common_LU,2,0),\"\")","v":""},{"$f":"IFERROR(VLOOKUP($A5380,Common_LU,3,0),\"\")","v":""}]
[null,"",""]
[null,"",""]
[null,"",""]
[null,"",""]
[null,"",""]
[null,"",""]
[null,"",""]
[null,"",""]
[null,"",""]
[null,"",""]
[null,"",""]
[null,"",""]
[null,"",""]
[null,"",""]
[null,"",""]
[null,"",""]
[null,"",""]
[null,"",""]
[null,"",""]
[null,"",""]
[null,"",""]
[null,"",""]
[null,"",""]
[null,"",""]
[null,"",""]
[null,"",""]
[null,"",""]
[null,"",""]
[null,"",""]
[null,"",""]
[null,"",""]
[null,"",""]
[null,"",""]
[null,"",""]
[null,"",""]
[null,"",""]
[null,"",""]
[null,"",""]
[null,"",""]
[null,"",""]
[null,"",""]
[null,"",""]
[null,"",""]
[null,"",""]
[null,"",""]
[null,"",""]
[null,"",""]
[null,"",""]
[null,"",""]
[null,"",""]
[null,"",""]
[null,"",""]
[null,"",""]
[null,"",""]
[null,"",""]
[null,"",""]
[null,"",""]
[null,"",""]
[null,"",""]
[null,"",""]
[null,"",""]
[null,"",""]
[null,"",""]
[null,{"$f":"IFERROR(VLOOKUP($A5444,Common_LU,2,0),\"\")","v":""},{"$f":"IFERROR(VLOOKUP($A5444,Common_LU,3,0),\"\")","v":""}]
[null,"",""]
[null,"",""]
[null,"",""]
[null,"",""]
[null,"",""]
[null,"",""]
[null,"",""]
[null,"",""]
[null,"",""]
[null,"",""]
[null,"",""]
[null,"",""]
[null,"",""]
[null,"",""]
[null,"",""]
[null,"",""]
[null,"",""]
[null,"",""]
[null,"",""]
[null,"",""]
[null,"",""]
[null,"",""]
[null,"",""]
[null,"",""]
[null,"",""]
[null,"",""]
[null,"",""]
[null,"",""]
[null,"",""]
[null,"",""]
[null,"",""]
[null,"",""]
[null,"",""]
[null,"",""]
[null,"",""]
[null,"",""]
[null,"",""]
[null,"",""]
[null,"",""]
[null,"",""]
[null,"",""]
[null,"",""]
[null,"",""]
[null,"",""]
[null,"",""]
[null,"",""]
[null,"",""]
[null,"",""]
[null,"",""]
[null,"",""]
[null,"",""]
[null,"",""]
[null,"",""]
[null,"",""]
[null,"",""]
[null,"",""]
[null,"",""]
[null,"",""]
[null,"",""]
[null,"",""]
[null,"",""]
[null,"",""]
[null,"",""]
[null,{"$f":"IFERROR(VLOOKUP($A5508,Common_LU,2,0),\"\")","v":""},{"$f":"IFERROR(VLOOKUP($A5508,Common_LU,3,0),\"\")","v":""}]
[null,"",""]
[null,"",""]
[null,"",""]
[null,"",""]
[null,"",""]
[null,"",""]
[null,"",""]
[null,"",""]
[null,"",""]
[null,"",""]
[null,"",""]
[null,"",""]
[null,"",""]
[null,"",""]
[null,"",""]
[null,"",""]
[null,"",""]
[null,"",""]
[null,"",""]
[null,"",""]
[null,"",""]
[null,"",""]
[null,"",""]
[null,"",""]
[null,"",""]
[null,"",""]
[null,"",""]
[null,"",""]
[null,"",""]
[null,"",""]
[null,"",""]
[null,"",""]
[null,"",""]
[null,"",""]
[null,"",""]
[null,"",""]
[null,"",""]
[null,"",""]
[null,"",""]
[null,"",""]
[null,"",""]
[null,"",""]
[null,"",""]
[null,"",""]
[null,"",""]
[null,"",""]
[null,"",""]
[null,"",""]
[null,"",""]
[null,"",""]
[null,"",""]
[null,"",""]
[null,"",""]
[null,"",""]
[null,"",""]
[null,"",""]
[null,"",""]
[null,"",""]
[null,"",""]
[null,"",""]
[null,"",""]
[null,"",""]
[null,"",""]
[null,{"$f":"IFERROR(VLOOKUP($A5572,Common_LU,2,0),\"\")","v":""},{"$f":"IFERROR(VLOOKUP($A5572,Common_LU,3,0),\"\")","v":""}]
[null,"",""]
[null,"",""]
[null,"",""]
[null,"",""]
[null,"",""]
[null,"",""]
[null,"",""]
[null,"",""]
[null,"",""]
[null,"",""]
[null,"",""]
[null,"",""]
[null,"",""]
[null,"",""]
[null,"",""]
[null,"",""]
[null,"",""]
[null,"",""]
[null,"",""]
[null,"",""]
[null,"",""]
[null,"",""]
[null,"",""]
[null,"",""]
[null,"",""]
[null,"",""]
[null,"",""]
[null,"",""]
[null,"",""]
[null,"",""]
[null,"",""]
[null,"",""]
[null,"",""]
[null,"",""]
[null,"",""]
[null,"",""]
[null,"",""]
[null,"",""]
[null,"",""]
[null,"",""]
[null,"",""]
[null,"",""]
[null,"",""]
[null,"",""]
[null,"",""]
[null,"",""]
[null,"",""]
[null,"",""]
[null,"",""]
[null,"",""]
[null,"",""]
[null,"",""]
[null,"",""]
[null,"",""]
[null,"",""]
[null,"",""]
[null,"",""]
[null,"",""]
[null,"",""]
[null,"",""]
[null,"",""]
[null,"",""]
[null,"",""]
[null,{"$f":"IFERROR(VLOOKUP($A5636,Common_LU,2,0),\"\")","v":""},{"$f":"IFERROR(VLOOKUP($A5636,Common_LU,3,0),\"\")","v":""}]
[null,"",""]
[null,"",""]
[null,"",""]
[null,"",""]
[null,"",""]
[null,"",""]
[null,"",""]
[null,"",""]
[null,"",""]
[null,"",""]
[null,"",""]
[null,"",""]
[null,"",""]
[null,"",""]
[null,"",""]
[null,"",""]
[null,"",""]
[null,"",""]
[null,"",""]
[null,"",""]
[null,"",""]
[null,"",""]
[null,"",""]
[null,"",""]
[null,"",""]
[null,"",""]
[null,"",""]
[null,"",""]
[null,"",""]
[null,"",""]
[null,"",""]
[null,"",""]
[null,"",""]
[null,"",""]
[null,"",""]
[null,"",""]
[null,"",""]
[null,"",""]
[null,"",""]
[null,"",""]
[null,"",""]
[null,"",""]
[null,"",""]
[null,"",""]
[null,"",""]
[null,"",""]
[null,"",""]
[null,"",""]
[null,"",""]
[null,"",""]
[null,"",""]
[null,"",""]
[null,"",""]
[null,"",""]
[null,"",""]
[null,"",""]
[null,"",""]
[null,"",""]
[null,"",""]
[null,"",""]
[null,"",""]
[null,"",""]
[null,"",""]
[null,{"$f":"IFERROR(VLOOKUP($A5700,Common_LU,2,0),\"\")","v":""},{"$f":"IFERROR(VLOOKUP($A5700,Common_LU,3,0),\"\")","v":""}]
[null,"",""]
[null,"",""]
[null,"",""]
[null,"",""]
[null,"",""]
[null,"",""]
[null,"",""]
[null,"",""]
[null,"",""]
[null,"",""]
[null,"",""]
[null,"",""]
[null,"",""]
[null,"",""]
[null,"",""]
[null,"",""]
[null,"",""]
[null,"",""]
[null,"",""]
[null,"",""]
[null,"",""]
[null,"",""]
[null,"",""]
[null,"",""]
[null,"",""]
[null,"",""]
[null,"",""]
[null,"",""]
[null,"",""]
[null,"",""]
[null,"",""]
[null,"",""]
[null,"",""]
[null,"",""]
[null,"",""]
[null,"",""]
[null,"",""]
[null,"",""]
[null,"",""]
[null,"",""]
[null,"",""]
[null,"",""]
[null,"",""]
[null,"",""]
[null,"",""]
[null,"",""]
[null,"",""]
[null,"",""]
[null,"",""]
[null,"",""]
[null,"",""]
[null,"",""]
[null,"",""]
[null,"",""]
[null,"",""]
[null,"",""]
[null,"",""]
[null,"",""]
[null,"",""]
[null,"",""]
[null,"",""]
[null,"",""]
[null,"",""]
[null,{"$f":"IFERROR(VLOOKUP($A5764,Common_LU,2,0),\"\")","v":""},{"$f":"IFERROR(VLOOKUP($A5764,Common_LU,3,0),\"\")","v":""}]
[null,"",""]
[null,"",""]
[null,"",""]
[null,"",""]
[null,"",""]
[null,"",""]
[null,"",""]
[null,"",""]
[null,"",""]
[null,"",""]
[null,"",""]
[null,"",""]
[null,"",""]
[null,"",""]
[null,"",""]
[null,"",""]
[null,"",""]
[null,"",""]
[null,"",""]
[null,"",""]
[null,"",""]
[null,"",""]
[null,"",""]
[null,"",""]
[null,"",""]
[null,"",""]
[null,"",""]
[null,"",""]
[null,"",""]
[null,"",""]
[null,"",""]
[null,"",""]
[null,"",""]
[null,"",""]
[null,"",""]
[null,"",""]
[null,"",""]
[null,"",""]
[null,"",""]
[null,"",""]
[null,"",""]
[null,"",""]
[null,"",""]
[null,"",""]
[null,"",""]
[null,"",""]
[null,"",""]
[null,"",""]
[null,"",""]
[null,"",""]
[null,"",""]
[null,"",""]
[null,"",""]
[null,"",""]
[null,"",""]
[null,"",""]
[null,"",""]
[null,"",""]
[null,"",""]
[null,"",""]
[null,"",""]
[null,"",""]
[null,"",""]
[null,{"$f":"IFERROR(VLOOKUP($A5828,Common_LU,2,0),\"\")","v":""},{"$f":"IFERROR(VLOOKUP($A5828,Common_LU,3,0),\"\")","v":""}]
[null,"",""]
[null,"",""]
[null,"",""]
[null,"",""]
[null,"",""]
[null,"",""]
[null,"",""]
[null,"",""]
[null,"",""]
[null,"",""]
[null,"",""]
[null,"",""]
[null,"",""]
[null,"",""]
[null,"",""]
[null,"",""]
[null,"",""]
[null,"",""]
[null,"",""]
[null,"",""]
[null,"",""]
[null,"",""]
[null,"",""]
[null,"",""]
[null,"",""]
[null,"",""]
[null,"",""]
[null,"",""]
[null,"",""]
[null,"",""]
[null,"",""]
[null,"",""]
[null,"",""]
[null,"",""]
[null,"",""]
[null,"",""]
[null,"",""]
[null,"",""]
[null,"",""]
[null,"",""]
[null,"",""]
[null,"",""]
[null,"",""]
[null,"",""]
[null,"",""]
[null,"",""]
[null,"",""]
[null,"",""]
[null,"",""]
[null,"",""]
[null,"",""]
[null,"",""]
[null,"",""]
[null,"",""]
[null,"",""]
[null,"",""]
[null,"",""]
[null,"",""]
[null,"",""]
[null,"",""]
[null,"",""]
[null,"",""]
[null,"",""]
[null,{"$f":"IFERROR(VLOOKUP($A5892,Common_LU,2,0),\"\")","v":""},{"$f":"IFERROR(VLOOKUP($A5892,Common_LU,3,0),\"\")","v":""}]
[null,"",""]
[null,"",""]
[null,"",""]
[null,"",""]
[null,"",""]
[null,"",""]
[null,"",""]
[null,"",""]
[null,"",""]
[null,"",""]
[null,"",""]
[null,"",""]
[null,"",""]
[null,"",""]
[null,"",""]
[null,"",""]
[null,"",""]
[null,"",""]
[null,"",""]
[null,"",""]
[null,"",""]
[null,"",""]
[null,"",""]
[null,"",""]
[null,"",""]
[null,"",""]
[null,"",""]
[null,"",""]
[null,"",""]
[null,"",""]
[null,"",""]
[null,"",""]
[null,"",""]
[null,"",""]
[null,"",""]
[null,"",""]
[null,"",""]
[null,"",""]
[null,"",""]
[null,"",""]
[null,"",""]
[null,"",""]
[null,"",""]
[null,"",""]
[null,"",""]
[null,"",""]
[null,"",""]
[null,"",""]
[null,"",""]
[null,"",""]
[null,"",""]
[null,"",""]
[null,"",""]
[null,"",""]
[null,"",""]
[null,"",""]
[null,"",""]
[null,"",""]
[null,"",""]
[null,"",""]
[null,"",""]
[null,"",""]
[null,"",""]
[null,{"$f":"IFERROR(VLOOKUP($A5956,Common_LU,2,0),\"\")","v":""},{"$f":"IFERROR(VLOOKUP($A5956,Common_LU,3,0),\"\")","v":""}]
[null,"",""]
[null,"",""]
[null,"",""]
[null,"",""]
[null,"",""]
[null,"",""]
[null,"",""]
[null,"",""]
[null,"",""]
[null,"",""]
[null,"",""]
[null,"",""]
[null,"",""]
[null,"",""]
[null,"",""]
[null,"",""]
[null,"",""]
[null,"",""]
[null,"",""]
[null,"",""]
[null,"",""]
[null,"",""]
[null,"",""]
[null,"",""]
[null,"",""]
[null,"",""]
[null,"",""]
[null,"",""]
[null,"",""]
[null,"",""]
[null,"",""]
[null,"",""]
[null,"",""]
[null,"",""]
[null,"",""]
[null,"",""]
[null,"",""]
[null,"",""]
[null,"",""]
[null,"",""]
[null,"",""]
[null,"",""]
[null,"",""]
[null,"",""]
[null,"",""]
[null,"",""]
[null,"",""]
[null,"",""]
[null,"",""]
[null,"",""]
[null,"",""]
[null,"",""]
[null,"",""]
[null,"",""]
[null,"",""]
[null,"",""]
[null,"",""]
[null,"",""]
[null,"",""]
[null,"",""]
[null,"",""]
[null,"",""]
[null,"",""]
[null,{"$f":"IFERROR(VLOOKUP($A6020,Common_LU,2,0),\"\")","v":""},{"$f":"IFERROR(VLOOKUP($A6020,Common_LU,3,0),\"\")","v":""}]
[null,"",""]
[null,"",""]
[null,"",""]
[null,"",""]
[null,"",""]
[null,"",""]
[null,"",""]
[null,"",""]
[null,"",""]
[null,"",""]
[null,"",""]
[null,"",""]
[null,"",""]
[null,"",""]
[null,"",""]
[null,"",""]
[null,"",""]
[null,"",""]
[null,"",""]
[null,"",""]
[null,"",""]
[null,"",""]
[null,"",""]
[null,"",""]
[null,"",""]
[null,"",""]
[null,"",""]
[null,"",""]
[null,"",""]
[null,"",""]
[null,"",""]
[null,"",""]
[null,"",""]
[null,"",""]
[null,"",""]
[null,"",""]
[null,"",""]
[null,"",""]
[null,"",""]
[null,"",""]
[null,"",""]
[null,"",""]
[null,"",""]
[null,"",""]
[null,"",""]
[null,"",""]
[null,"",""]
[null,"",""]
[null,"",""]
[null,"",""]
[null,"",""]
[null,"",""]
[null,"",""]
[null,"",""]
[null,"",""]
[null,"",""]
[null,"",""]
[null,"",""]
[null,"",""]
[null,"",""]
[null,"",""]
[null,"",""]
[null,"",""]
[null,{"$f":"IFERROR(VLOOKUP($A6084,Common_LU,2,0),\"\")","v":""},{"$f":"IFERROR(VLOOKUP($A6084,Common_LU,3,0),\"\")","v":""}]
[null,"",""]
[null,"",""]
[null,"",""]
[null,"",""]
[null,"",""]
[null,"",""]
[null,"",""]
[null,"",""]
[null,"",""]
[null,"",""]
[null,"",""]
[null,"",""]
[null,"",""]
[null,"",""]
[null,"",""]
[null,"",""]
[null,"",""]
[null,"",""]
[null,"",""]
[null,"",""]
[null,"",""]
[null,"",""]
[null,"",""]
[null,"",""]
[null,"",""]
[null,"",""]
[null,"",""]
[null,"",""]
[null,"",""]
[null,"",""]
[null,"",""]
[null,"",""]
[null,"",""]
[null,"",""]
[null,"",""]
[null,"",""]
[null,"",""]
[null,"",""]
[null,"",""]
[null,"",""]
[null,"",""]
[null,"",""]
[null,"",""]
[null,"",""]
[null,"",""]
[null,"",""]
[null,"",""]
[null,"",""]
[null,"",""]
[null,"",""]
[null,"",""]
[null,"",""]
[null,"",""]
[null,"",""]
[null,"",""]
[null,"",""]
[null,"",""]
[null,"",""]
[null,"",""]
[null,"",""]
[null,"",""]
[null,"",""]
[null,"",""]
[null,{"$f":"IFERROR(VLOOKUP($A6148,Common_LU,2,0),\"\")","v":""},{"$f":"IFERROR(VLOOKUP($A6148,Common_LU,3,0),\"\")","v":""}]
[null,"",""]
[null,"",""]
[null,"",""]
[null,"",""]
[null,"",""]
[null,"",""]
[null,"",""]
[null,"",""]
[null,"",""]
[null,"",""]
[null,"",""]
[null,"",""]
[null,"",""]
[null,"",""]
[null,"",""]
[null,"",""]
[null,"",""]
[null,"",""]
[null,"",""]
[null,"",""]
[null,"",""]
[null,"",""]
[null,"",""]
[null,"",""]
[null,"",""]
[null,"",""]
[null,"",""]
[null,"",""]
[null,"",""]
[null,"",""]
[null,"",""]
[null,"",""]
[null,"",""]
[null,"",""]
[null,"",""]
[null,"",""]
[null,"",""]
[null,"",""]
[null,"",""]
[null,"",""]
[null,"",""]
[null,"",""]
[null,"",""]
[null,"",""]
[null,"",""]
[null,"",""]
[null,"",""]
[null,"",""]
[null,"",""]
[null,"",""]
[null,"",""]
[null,"",""]
[null,"",""]
[null,"",""]
[null,"",""]
[null,"",""]
[null,"",""]
[null,"",""]
[null,"",""]
[null,"",""]
[null,"",""]
[null,"",""]
[null,"",""]
[null,{"$f":"IFERROR(VLOOKUP($A6212,Common_LU,2,0),\"\")","v":""},{"$f":"IFERROR(VLOOKUP($A6212,Common_LU,3,0),\"\")","v":""}]
[null,"",""]
[null,"",""]
[null,"",""]
[null,"",""]
[null,"",""]
[null,"",""]
[null,"",""]
[null,"",""]
[null,"",""]
[null,"",""]
[null,"",""]
[null,"",""]
[null,"",""]
[null,"",""]
[null,"",""]
[null,"",""]
[null,"",""]
[null,"",""]
[null,"",""]
[null,"",""]
[null,"",""]
[null,"",""]
[null,"",""]
[null,"",""]
[null,"",""]
[null,"",""]
[null,"",""]
[null,"",""]
[null,"",""]
[null,"",""]
[null,"",""]
[null,"",""]
[null,"",""]
[null,"",""]
[null,"",""]
[null,"",""]
[null,"",""]
[null,"",""]
[null,"",""]
[null,"",""]
[null,"",""]
[null,"",""]
[null,"",""]
[null,"",""]
[null,"",""]
[null,"",""]
[null,"",""]
[null,"",""]
[null,"",""]
[null,"",""]
[null,"",""]
[null,"",""]
[null,"",""]
[null,"",""]
[null,"",""]
[null,"",""]
[null,"",""]
[null,"",""]
[null,"",""]
[null,"",""]
[null,"",""]
[null,"",""]
[null,"",""]
[null,{"$f":"IFERROR(VLOOKUP($A6276,Common_LU,2,0),\"\")","v":""},{"$f":"IFERROR(VLOOKUP($A6276,Common_LU,3,0),\"\")","v":""}]
[null,"",""]
[null,"",""]
[null,"",""]
[null,"",""]
[null,"",""]
[null,"",""]
[null,"",""]
[null,"",""]
[null,"",""]
[null,"",""]
[null,"",""]
[null,"",""]
[null,"",""]
[null,"",""]
[null,"",""]
[null,"",""]
[null,"",""]
[null,"",""]
[null,"",""]
[null,"",""]
[null,"",""]
[null,"",""]
[null,"",""]
[null,"",""]
[null,"",""]
[null,"",""]
[null,"",""]
[null,"",""]
[null,"",""]
[null,"",""]
[null,"",""]
[null,"",""]
[null,"",""]
[null,"",""]
[null,"",""]
[null,"",""]
[null,"",""]
[null,"",""]
[null,"",""]
[null,"",""]
[null,"",""]
[null,"",""]
[null,"",""]
[null,"",""]
[null,"",""]
[null,"",""]
[null,"",""]
[null,"",""]
[null,"",""]
[null,"",""]
[null,"",""]
[null,"",""]
[null,"",""]
[null,"",""]
[null,"",""]
[null,"",""]
[null,"",""]
[null,"",""]
[null,"",""]
[null,"",""]
[null,"",""]
[null,"",""]
[null,"",""]
[null,{"$f":"IFERROR(VLOOKUP($A6340,Common_LU,2,0),\"\")","v":""},{"$f":"IFERROR(VLOOKUP($A6340,Common_LU,3,0),\"\")","v":""}]
[null,"",""]
[null,"",""]
[null,"",""]
[null,"",""]
[null,"",""]
[null,"",""]
[null,"",""]
[null,"",""]
[null,"",""]
[null,"",""]
[null,"",""]
[null,"",""]
[null,"",""]
[null,"",""]
[null,"",""]
[null,"",""]
[null,"",""]
[null,"",""]
[null,"",""]
[null,"",""]
[null,"",""]
[null,"",""]
[null,"",""]
[null,"",""]
[null,"",""]
[null,"",""]
[null,"",""]
[null,"",""]
[null,"",""]
[null,"",""]
[null,"",""]
[null,"",""]
[null,"",""]
[null,"",""]
[null,"",""]
[null,"",""]
[null,"",""]
[null,"",""]
[null,"",""]
[null,"",""]
[null,"",""]
[null,"",""]
[null,"",""]
[null,"",""]
[null,"",""]
[null,"",""]
[null,"",""]
[null,"",""]
[null,"",""]
[null,"",""]
[null,"",""]
[null,"",""]
[null,"",""]
[null,"",""]
[null,"",""]
[null,"",""]
[null,"",""]
[null,"",""]
[null,"",""]
[null,"",""]
[null,"",""]
[null,"",""]
[null,"",""]
[null,{"$f":"IFERROR(VLOOKUP($A6404,Common_LU,2,0),\"\")","v":""},{"$f":"IFERROR(VLOOKUP($A6404,Common_LU,3,0),\"\")","v":""}]
[null,"",""]
[null,"",""]
[null,"",""]
[null,"",""]
[null,"",""]
[null,"",""]
[null,"",""]
[null,"",""]
[null,"",""]
[null,"",""]
[null,"",""]
[null,"",""]
[null,"",""]
[null,"",""]
[null,"",""]
[null,"",""]
[null,"",""]
[null,"",""]
[null,"",""]
[null,"",""]
[null,"",""]
[null,"",""]
[null,"",""]
[null,"",""]
[null,"",""]
[null,"",""]
[null,"",""]
[null,"",""]
[null,"",""]
[null,"",""]
[null,"",""]
[null,"",""]
[null,"",""]
[null,"",""]
[null,"",""]
[null,"",""]
[null,"",""]
[null,"",""]
[null,"",""]
[null,"",""]
[null,"",""]
[null,"",""]
[null,"",""]
[null,"",""]
[null,"",""]
[null,"",""]
[null,"",""]
[null,"",""]
[null,"",""]
[null,"",""]
[null,"",""]
[null,"",""]
[null,"",""]
[null,"",""]
[null,"",""]
[null,"",""]
[null,"",""]
[null,"",""]
[null,"",""]
[null,"",""]
[null,"",""]
[null,"",""]
[null,"",""]
[null,{"$f":"IFERROR(VLOOKUP($A6468,Common_LU,2,0),\"\")","v":""},{"$f":"IFERROR(VLOOKUP($A6468,Common_LU,3,0),\"\")","v":""}]
[null,"",""]
[null,"",""]
[null,"",""]
[null,"",""]
[null,"",""]
[null,"",""]
[null,"",""]
[null,"",""]
[null,"",""]
[null,"",""]
[null,"",""]
[null,"",""]
[null,"",""]
[null,"",""]
[null,"",""]
[null,"",""]
[null,"",""]
[null,"",""]
[null,"",""]
[null,"",""]
[null,"",""]
[null,"",""]
[null,"",""]
[null,"",""]
[null,"",""]
[null,"",""]
[null,"",""]
[null,"",""]
[null,"",""]
[null,"",""]
[null,"",""]
[null,"",""]
[null,"",""]
[null,"",""]
[null,"",""]
[null,"",""]
[null,"",""]
[null,"",""]
[null,"",""]
[null,"",""]
[null,"",""]
[null,"",""]
[null,"",""]
[null,"",""]
[null,"",""]
[null,"",""]
[null,"",""]
[null,"",""]
[null,"",""]
[null,"",""]
[null,"",""]
[null,"",""]
[null,"",""]
[null,"",""]
[null,"",""]
[null,"",""]
[null,"",""]
[null,"",""]
[null,"",""]
[null,"",""]
[null,"",""]
[null,"",""]
[null,"",""]
[null,{"$f":"IFERROR(VLOOKUP($A6532,Common_LU,2,0),\"\")","v":""},{"$f":"IFERROR(VLOOKUP($A6532,Common_LU,3,0),\"\")","v":""}]
[null,"",""]
[null,"",""]
[null,"",""]
[null,"",""]
[null,"",""]
[null,"",""]
[null,"",""]
[null,"",""]
[null,"",""]
[null,"",""]
[null,"",""]
[null,"",""]
[null,"",""]
[null,"",""]
[null,"",""]
[null,"",""]
[null,"",""]
[null,"",""]
[null,"",""]
[null,"",""]
[null,"",""]
[null,"",""]
[null,"",""]
[null,"",""]
[null,"",""]
[null,"",""]
[null,"",""]
[null,"",""]
[null,"",""]
[null,"",""]
[null,"",""]
[null,"",""]
[null,"",""]
[null,"",""]
[null,"",""]
[null,"",""]
[null,"",""]
[null,"",""]
[null,"",""]
[null,"",""]
[null,"",""]
[null,"",""]
[null,"",""]
[null,"",""]
[null,"",""]
[null,"",""]
[null,"",""]
[null,"",""]
[null,"",""]
[null,"",""]
[null,"",""]
[null,"",""]
[null,"",""]
[null,"",""]
[null,"",""]
[null,"",""]
[null,"",""]
[null,"",""]
[null,"",""]
[null,"",""]
[null,"",""]
[null,"",""]
[null,"",""]
[null,{"$f":"IFERROR(VLOOKUP($A6596,Common_LU,2,0),\"\")","v":""},{"$f":"IFERROR(VLOOKUP($A6596,Common_LU,3,0),\"\")","v":""}]
[null,"",""]
[null,"",""]
[null,"",""]
[null,"",""]
[null,"",""]
[null,"",""]
[null,"",""]
[null,"",""]
[null,"",""]
[null,"",""]
[null,"",""]
[null,"",""]
[null,"",""]
[null,"",""]
[null,"",""]
[null,"",""]
[null,"",""]
[null,"",""]
[null,"",""]
[null,"",""]
[null,"",""]
[null,"",""]
[null,"",""]
[null,"",""]
[null,"",""]
[null,"",""]
[null,"",""]
[null,"",""]
[null,"",""]
[null,"",""]
[null,"",""]
[null,"",""]
[null,"",""]
[null,"",""]
[null,"",""]
[null,"",""]
[null,"",""]
[null,"",""]
[null,"",""]
[null,"",""]
[null,"",""]
[null,"",""]
[null,"",""]
[null,"",""]
[null,"",""]
[null,"",""]
[null,"",""]
[null,"",""]
[null,"",""]
[null,"",""]
[null,"",""]
[null,"",""]
[null,"",""]
[null,"",""]
[null,"",""]
[null,"",""]
[null,"",""]
[null,"",""]
[null,"",""]
[null,"",""]
[null,"",""]
[null,"",""]
[null,"",""]
[null,{"$f":"IFERROR(VLOOKUP($A6660,Common_LU,2,0),\"\")","v":""},{"$f":"IFERROR(VLOOKUP($A6660,Common_LU,3,0),\"\")","v":""}]
[null,"",""]
[null,"",""]
[null,"",""]
[null,"",""]
[null,"",""]
[null,"",""]
[null,"",""]
[null,"",""]
[null,"",""]
[null,"",""]
[null,"",""]
[null,"",""]
[null,"",""]
[null,"",""]
[null,"",""]
[null,"",""]
[null,"",""]
[null,"",""]
[null,"",""]
[null,"",""]
[null,"",""]
[null,"",""]
[null,"",""]
[null,"",""]
[null,"",""]
[null,"",""]
[null,"",""]
[null,"",""]
[null,"",""]
[null,"",""]
[null,"",""]
[null,"",""]
[null,"",""]
[null,"",""]
[null,"",""]
[null,"",""]
[null,"",""]
[null,"",""]
[null,"",""]
[null,"",""]
[null,"",""]
[null,"",""]
[null,"",""]
[null,"",""]
[null,"",""]
[null,"",""]
[null,"",""]
[null,"",""]
[null,"",""]
[null,"",""]
[null,"",""]
[null,"",""]
[null,"",""]
[null,"",""]
[null,"",""]
[null,"",""]
[null,"",""]
[null,"",""]
[null,"",""]
[null,"",""]
[null,"",""]
[null,"",""]
[null,"",""]
[null,{"$f":"IFERROR(VLOOKUP($A6724,Common_LU,2,0),\"\")","v":""},{"$f":"IFERROR(VLOOKUP($A6724,Common_LU,3,0),\"\")","v":""}]
[null,"",""]
[null,"",""]
[null,"",""]
[null,"",""]
[null,"",""]
[null,"",""]
[null,"",""]
[null,"",""]
[null,"",""]
[null,"",""]
[null,"",""]
[null,"",""]
[null,"",""]
[null,"",""]
[null,"",""]
[null,"",""]
[null,"",""]
[null,"",""]
[null,"",""]
[null,"",""]
[null,"",""]
[null,"",""]
[null,"",""]
[null,"",""]
[null,"",""]
[null,"",""]
[null,"",""]
[null,"",""]
[null,"",""]
[null,"",""]
[null,"",""]
[null,"",""]
[null,"",""]
[null,"",""]
[null,"",""]
[null,"",""]
[null,"",""]
[null,"",""]
[null,"",""]
[null,"",""]
[null,"",""]
[null,"",""]
[null,"",""]
[null,"",""]
[null,"",""]
[null,"",""]
[null,"",""]
[null,"",""]
[null,"",""]
[null,"",""]
[null,"",""]
[null,"",""]
[null,"",""]
[null,"",""]
[null,"",""]
[null,"",""]
[null,"",""]
[null,"",""]
[null,"",""]
[null,"",""]
[null,"",""]
[null,"",""]
[null,"",""]
[null,{"$f":"IFERROR(VLOOKUP($A6788,Common_LU,2,0),\"\")","v":""},{"$f":"IFERROR(VLOOKUP($A6788,Common_LU,3,0),\"\")","v":""}]
[null,"",""]
[null,"",""]
[null,"",""]
[null,"",""]
[null,"",""]
[null,"",""]
[null,"",""]
[null,"",""]
[null,"",""]
[null,"",""]
[null,"",""]
[null,"",""]
[null,"",""]
[null,"",""]
[null,"",""]
[null,"",""]
[null,"",""]
[null,"",""]
[null,"",""]
[null,"",""]
[null,"",""]
[null,"",""]
[null,"",""]
[null,"",""]
[null,"",""]
[null,"",""]
[null,"",""]
[null,"",""]
[null,"",""]
[null,"",""]
[null,"",""]
[null,"",""]
[null,"",""]
[null,"",""]
[null,"",""]
[null,"",""]
[null,"",""]
[null,"",""]
[null,"",""]
[null,"",""]
[null,"",""]
[null,"",""]
[null,"",""]
[null,"",""]
[null,"",""]
[null,"",""]
[null,"",""]
[null,"",""]
[null,"",""]
[null,"",""]
[null,"",""]
[null,"",""]
[null,"",""]
[null,"",""]
[null,"",""]
[null,"",""]
[null,"",""]
[null,"",""]
[null,"",""]
[null,"",""]
[null,"",""]
[null,"",""]
[null,"",""]
[null,{"$f":"IFERROR(VLOOKUP($A6852,Common_LU,2,0),\"\")","v":""},{"$f":"IFERROR(VLOOKUP($A6852,Common_LU,3,0),\"\")","v":""}]
[null,"",""]
[null,"",""]
[null,"",""]
[null,"",""]
[null,"",""]
[null,"",""]
[null,"",""]
[null,"",""]
[null,"",""]
[null,"",""]
[null,"",""]
[null,"",""]
[null,"",""]
[null,"",""]
[null,"",""]
[null,"",""]
[null,"",""]
[null,"",""]
[null,"",""]
[null,"",""]
[null,"",""]
[null,"",""]
[null,"",""]
[null,"",""]
[null,"",""]
[null,"",""]
[null,"",""]
[null,"",""]
[null,"",""]
[null,"",""]
[null,"",""]
[null,"",""]
[null,"",""]
[null,"",""]
[null,"",""]
[null,"",""]
[null,"",""]
[null,"",""]
[null,"",""]
[null,"",""]
[null,"",""]
[null,"",""]
[null,"",""]
[null,"",""]
[null,"",""]
[null,"",""]
[null,"",""]
[null,"",""]
[null,"",""]
[null,"",""]
[null,"",""]
[null,"",""]
[null,"",""]
[null,"",""]
[null,"",""]
[null,"",""]
[null,"",""]
[null,"",""]
[null,"",""]
[null,"",""]
[null,"",""]
[null,"",""]
[null,"",""]
[null,{"$f":"IFERROR(VLOOKUP($A6916,Common_LU,2,0),\"\")","v":""},{"$f":"IFERROR(VLOOKUP($A6916,Common_LU,3,0),\"\")","v":""}]
[null,"",""]
[null,"",""]
[null,"",""]
[null,"",""]
[null,"",""]
[null,"",""]
[null,"",""]
[null,"",""]
[null,"",""]
[null,"",""]
[null,"",""]
[null,"",""]
[null,"",""]
[null,"",""]
[null,"",""]
[null,"",""]
[null,"",""]
[null,"",""]
[null,"",""]
[null,"",""]
[null,"",""]
[null,"",""]
[null,"",""]
[null,"",""]
[null,"",""]
[null,"",""]
[null,"",""]
[null,"",""]
[null,"",""]
[null,"",""]
[null,"",""]
[null,"",""]
[null,"",""]
[null,"",""]
[null,"",""]
[null,"",""]
[null,"",""]
[null,"",""]
[null,"",""]
[null,"",""]
[null,"",""]
[null,"",""]
[null,"",""]
[null,"",""]
[null,"",""]
[null,"",""]
[null,"",""]
[null,"",""]
[null,"",""]
[null,"",""]
[null,"",""]
[null,"",""]
[null,"",""]
[null,"",""]
[null,"",""]
[null,"",""]
[null,"",""]
[null,"",""]
[null,"",""]
[null,"",""]
[null,"",""]
[null,"",""]
[null,"",""]
[null,{"$f":"IFERROR(VLOOKUP($A6980,Common_LU,2,0),\"\")","v":""},{"$f":"IFERROR(VLOOKUP($A6980,Common_LU,3,0),\"\")","v":""}]
[null,"",""]
[null,"",""]
[null,"",""]
[null,"",""]
[null,"",""]
[null,"",""]
[null,"",""]
[null,"",""]
[null,"",""]
[null,"",""]
[null,"",""]
[null,"",""]
[null,"",""]
[null,"",""]
[null,"",""]
[null,"",""]
[null,"",""]
[null,"",""]
[null,"",""]
[null,"",""]
[null,"",""]
[null,"",""]
[null,"",""]
[null,"",""]
[null,"",""]
[null,"",""]
[null,"",""]
[null,"",""]
[null,"",""]
[null,"",""]
[null,"",""]
[null,"",""]
[null,"",""]
[null,"",""]
[null,"",""]
[null,"",""]
[null,"",""]
[null,"",""]
[null,"",""]
[null,"",""]
[null,"",""]
[null,"",""]
[null,"",""]
[null,"",""]
[null,"",""]
[null,"",""]
[null,"",""]
[null,"",""]
[null,"",""]
[null,"",""]
[null,"",""]
[null,"",""]
[null,"",""]
[null,"",""]
[null,"",""]
[null,"",""]
[null,"",""]
[null,"",""]
[null,"",""]
[null,"",""]
[null,"",""]
[null,"",""]
[null,"",""]
[null,{"$f":"IFERROR(VLOOKUP($A7044,Common_LU,2,0),\"\")","v":""},{"$f":"IFERROR(VLOOKUP($A7044,Common_LU,3,0),\"\")","v":""}]
[null,"",""]
[null,"",""]
[null,"",""]
[null,"",""]
[null,"",""]
[null,"",""]
[null,"",""]
[null,"",""]
[null,"",""]
[null,"",""]
[null,"",""]
[null,"",""]
[null,"",""]
[null,"",""]
[null,"",""]
[null,"",""]
[null,"",""]
[null,"",""]
[null,"",""]
[null,"",""]
[null,"",""]
[null,"",""]
[null,"",""]
[null,"",""]
[null,"",""]
[null,"",""]
[null,"",""]
[null,"",""]
[null,"",""]
[null,"",""]
[null,"",""]
[null,"",""]
[null,"",""]
[null,"",""]
[null,"",""]
[null,"",""]
[null,"",""]
[null,"",""]
[null,"",""]
[null,"",""]
[null,"",""]
[null,"",""]
[null,"",""]
[null,"",""]
[null,"",""]
[null,"",""]
[null,"",""]
[null,"",""]
[null,"",""]
[null,"",""]
[null,"",""]
[null,"",""]
[null,"",""]
[null,"",""]
[null,"",""]
[null,"",""]
[null,"",""]
[null,"",""]
[null,"",""]
[null,"",""]
[null,"",""]
[null,"",""]
[null,"",""]
[null,{"$f":"IFERROR(VLOOKUP($A7108,Common_LU,2,0),\"\")","v":""},{"$f":"IFERROR(VLOOKUP($A7108,Common_LU,3,0),\"\")","v":""}]
[null,"",""]
[null,"",""]
[null,"",""]
[null,"",""]
[null,"",""]
[null,"",""]
[null,"",""]
[null,"",""]
[null,"",""]
[null,"",""]
[null,"",""]
[null,"",""]
[null,"",""]
[null,"",""]
[null,"",""]
[null,"",""]
[null,"",""]
[null,"",""]
[null,"",""]
[null,"",""]
[null,"",""]
[null,"",""]
[null,"",""]
[null,"",""]
[null,"",""]
[null,"",""]
[null,"",""]
[null,"",""]
[null,"",""]
[null,"",""]
[null,"",""]
[null,"",""]
[null,"",""]
[null,"",""]
[null,"",""]
[null,"",""]
[null,"",""]
[null,"",""]
[null,"",""]
[null,"",""]
[null,"",""]
[null,"",""]
[null,"",""]
[null,"",""]
[null,"",""]
[null,"",""]
[null,"",""]
[null,"",""]
[null,"",""]
[null,"",""]
[null,"",""]
[null,"",""]
[null,"",""]
[null,"",""]
[null,"",""]
[null,"",""]
[null,"",""]
[null,"",""]
[null,"",""]
[null,"",""]
[null,"",""]
[null,"",""]
[null,"",""]
[null,{"$f":"IFERROR(VLOOKUP($A7172,Common_LU,2,0),\"\")","v":""},{"$f":"IFERROR(VLOOKUP($A7172,Common_LU,3,0),\"\")","v":""}]
[null,"",""]
[null,"",""]
[null,"",""]
[null,"",""]
[null,"",""]
[null,"",""]
[null,"",""]
[null,"",""]
[null,"",""]
[null,"",""]
[null,"",""]
[null,"",""]
[null,"",""]
[null,"",""]
[null,"",""]
[null,"",""]
[null,"",""]
[null,"",""]
[null,"",""]
[null,"",""]
[null,"",""]
[null,"",""]
[null,"",""]
[null,"",""]
[null,"",""]
[null,"",""]
[null,"",""]
[null,"",""]
[null,"",""]
[null,"",""]
[null,"",""]
[null,"",""]
[null,"",""]
[null,"",""]
[null,"",""]
[null,"",""]
[null,"",""]
[null,"",""]
[null,"",""]
[null,"",""]
[null,"",""]
[null,"",""]
[null,"",""]
[null,"",""]
[null,"",""]
[null,"",""]
[null,"",""]
[null,"",""]
[null,"",""]
[null,"",""]
[null,"",""]
[null,"",""]
[null,"",""]
[null,"",""]
[null,"",""]
[null,"",""]
[null,"",""]
[null,"",""]
[null,"",""]
[null,"",""]
[null,"",""]
[null,"",""]
[null,"",""]
[null,{"$f":"IFERROR(VLOOKUP($A7236,Common_LU,2,0),\"\")","v":""},{"$f":"IFERROR(VLOOKUP($A7236,Common_LU,3,0),\"\")","v":""}]
[null,"",""]
[null,"",""]
[null,"",""]
[null,"",""]
[null,"",""]
[null,"",""]
[null,"",""]
[null,"",""]
[null,"",""]
[null,"",""]
[null,"",""]
[null,"",""]
[null,"",""]
[null,"",""]
[null,"",""]
[null,"",""]
[null,"",""]
[null,"",""]
[null,"",""]
[null,"",""]
[null,"",""]
[null,"",""]
[null,"",""]
[null,"",""]
[null,"",""]
[null,"",""]
[null,"",""]
[null,"",""]
[null,"",""]
[null,"",""]
[null,"",""]
[null,"",""]
[null,"",""]
[null,"",""]
[null,"",""]
[null,"",""]
[null,"",""]
[null,"",""]
[null,"",""]
[null,"",""]
[null,"",""]
[null,"",""]
[null,"",""]
[null,"",""]
[null,"",""]
[null,"",""]
[null,"",""]
[null,"",""]
[null,"",""]
[null,"",""]
[null,"",""]
[null,"",""]
[null,"",""]
[null,"",""]
[null,"",""]
[null,"",""]
[null,"",""]
[null,"",""]
[null,"",""]
[null,"",""]
[null,"",""]
[null,"",""]
[null,"",""]
[null,{"$f":"IFERROR(VLOOKUP($A7300,Common_LU,2,0),\"\")","v":""},{"$f":"IFERROR(VLOOKUP($A7300,Common_LU,3,0),\"\")","v":""}]
[null,"",""]
[null,"",""]
[null,"",""]
[null,"",""]
[null,"",""]
[null,"",""]
[null,"",""]
[null,"",""]
[null,"",""]
[null,"",""]
[null,"",""]
[null,"",""]
[null,"",""]
[null,"",""]
[null,"",""]
[null,"",""]
[null,"",""]
[null,"",""]
[null,"",""]
[null,"",""]
[null,"",""]
[null,"",""]
[null,"",""]
[null,"",""]
[null,"",""]
[null,"",""]
[null,"",""]
[null,"",""]
[null,"",""]
[null,"",""]
[null,"",""]
[null,"",""]
[null,"",""]
[null,"",""]
[null,"",""]
[null,"",""]
[null,"",""]
[null,"",""]
[null,"",""]
[null,"",""]
[null,"",""]
[null,"",""]
[null,"",""]
[null,"",""]
[null,"",""]
[null,"",""]
[null,"",""]
[null,"",""]
[null,"",""]
[null,"",""]
[null,"",""]
[null,"",""]
[null,"",""]
[null,"",""]
[null,"",""]
[null,"",""]
[null,"",""]
[null,"",""]
[null,"",""]
[null,"",""]
[null,"",""]
[null,"",""]
[null,"",""]
[null,{"$f":"IFERROR(VLOOKUP($A7364,Common_LU,2,0),\"\")","v":""},{"$f":"IFERROR(VLOOKUP($A7364,Common_LU,3,0),\"\")","v":""}]
[null,"",""]
[null,"",""]
[null,"",""]
[null,"",""]
[null,"",""]
[null,"",""]
[null,"",""]
[null,"",""]
[null,"",""]
[null,"",""]
[null,"",""]
[null,"",""]
[null,"",""]
[null,"",""]
[null,"",""]
[null,"",""]
[null,"",""]
[null,"",""]
[null,"",""]
[null,"",""]
[null,"",""]
[null,"",""]
[null,"",""]
[null,"",""]
[null,"",""]
[null,"",""]
[null,"",""]
[null,"",""]
[null,"",""]
[null,"",""]
[null,"",""]
[null,"",""]
[null,"",""]
[null,"",""]
[null,"",""]
[null,"",""]
[null,"",""]
[null,"",""]
[null,"",""]
[null,"",""]
[null,"",""]
[null,"",""]
[null,"",""]
[null,"",""]
[null,"",""]
[null,"",""]
[null,"",""]
[null,"",""]
[null,"",""]
[null,"",""]
[null,"",""]
[null,"",""]
[null,"",""]
[null,"",""]
[null,"",""]
[null,"",""]
[null,"",""]
[null,"",""]
[null,"",""]
[null,"",""]
[null,"",""]
[null,"",""]
[null,"",""]
[null,{"$f":"IFERROR(VLOOKUP($A7428,Common_LU,2,0),\"\")","v":""},{"$f":"IFERROR(VLOOKUP($A7428,Common_LU,3,0),\"\")","v":""}]
[null,"",""]
[null,"",""]
[null,"",""]
[null,"",""]
[null,"",""]
[null,"",""]
[null,"",""]
[null,"",""]
[null,"",""]
[null,"",""]
[null,"",""]
[null,"",""]
[null,"",""]
[null,"",""]
[null,"",""]
[null,"",""]
[null,"",""]
[null,"",""]
[null,"",""]
[null,"",""]
[null,"",""]
[null,"",""]
[null,"",""]
[null,"",""]
[null,"",""]
[null,"",""]
[null,"",""]
[null,"",""]
[null,"",""]
[null,"",""]
[null,"",""]
[null,"",""]
[null,"",""]
[null,"",""]
[null,"",""]
[null,"",""]
[null,"",""]
[null,"",""]
[null,"",""]
[null,"",""]
[null,"",""]
[null,"",""]
[null,"",""]
[null,"",""]
[null,"",""]
[null,"",""]
[null,"",""]
[null,"",""]
[null,"",""]
[null,"",""]
[null,"",""]
[null,"",""]
[null,"",""]
[null,"",""]
[null,"",""]
[null,"",""]
[null,"",""]
[null,"",""]
[null,"",""]
[null,"",""]
[null,"",""]
[null,"",""]
[null,"",""]
[null,{"$f":"IFERROR(VLOOKUP($A7492,Common_LU,2,0),\"\")","v":""},{"$f":"IFERROR(VLOOKUP($A7492,Common_LU,3,0),\"\")","v":""}]
[null,"",""]
[null,"",""]
[null,"",""]
[null,"",""]
[null,"",""]
[null,"",""]
[null,"",""]
[null,"",""]
[null,"",""]
[null,"",""]
[null,"",""]
[null,"",""]
[null,"",""]
[null,"",""]
[null,"",""]
[null,"",""]
[null,"",""]
[null,"",""]
[null,"",""]
[null,"",""]
[null,"",""]
[null,"",""]
[null,"",""]
[null,"",""]
[null,"",""]
[null,"",""]
[null,"",""]
[null,"",""]
[null,"",""]
[null,"",""]
[null,"",""]
[null,"",""]
[null,"",""]
[null,"",""]
[null,"",""]
[null,"",""]
[null,"",""]
[null,"",""]
[null,"",""]
[null,"",""]
[null,"",""]
[null,"",""]
[null,"",""]
[null,"",""]
[null,"",""]
[null,"",""]
[null,"",""]
[null,"",""]
[null,"",""]
[null,"",""]
[null,"",""]
[null,"",""]
[null,"",""]
[null,"",""]
[null,"",""]
[null,"",""]
[null,"",""]
[null,"",""]
[null,"",""]
[null,"",""]
[null,"",""]
[null,"",""]
[null,"",""]
[null,{"$f":"IFERROR(VLOOKUP($A7556,Common_LU,2,0),\"\")","v":""},{"$f":"IFERROR(VLOOKUP($A7556,Common_LU,3,0),\"\")","v":""}]
[null,"",""]
[null,"",""]
[null,"",""]
[null,"",""]
[null,"",""]
[null,"",""]
[null,"",""]
[null,"",""]
[null,"",""]
[null,"",""]
[null,"",""]
[null,"",""]
[null,"",""]
[null,"",""]
[null,"",""]
[null,"",""]
[null,"",""]
[null,"",""]
[null,"",""]
[null,"",""]
[null,"",""]
[null,"",""]
[null,"",""]
[null,"",""]
[null,"",""]
[null,"",""]
[null,"",""]
[null,"",""]
[null,"",""]
[null,"",""]
[null,"",""]
[null,"",""]
[null,"",""]
[null,"",""]
[null,"",""]
[null,"",""]
[null,"",""]
[null,"",""]
[null,"",""]
[null,"",""]
[null,"",""]
[null,"",""]
[null,"",""]
[null,"",""]
[null,"",""]
[null,"",""]
[null,"",""]
[null,"",""]
[null,"",""]
[null,"",""]
[null,"",""]
[null,"",""]
[null,"",""]
[null,"",""]
[null,"",""]
[null,"",""]
[null,"",""]
[null,"",""]
[null,"",""]
[null,"",""]
[null,"",""]
[null,"",""]
[null,"",""]
[null,{"$f":"IFERROR(VLOOKUP($A7620,Common_LU,2,0),\"\")","v":""},{"$f":"IFERROR(VLOOKUP($A7620,Common_LU,3,0),\"\")","v":""}]
[null,"",""]
[null,"",""]
[null,"",""]
[null,"",""]
[null,"",""]
[null,"",""]
[null,"",""]
[null,"",""]
[null,"",""]
[null,"",""]
[null,"",""]
[null,"",""]
[null,"",""]
[null,"",""]
[null,"",""]
[null,"",""]
[null,"",""]
[null,"",""]
[null,"",""]
[null,"",""]
[null,"",""]
[null,"",""]
[null,"",""]
[null,"",""]
[null,"",""]
[null,"",""]
[null,"",""]
[null,"",""]
[null,"",""]
[null,"",""]
[null,"",""]
[null,"",""]
[null,"",""]
[null,"",""]
[null,"",""]
[null,"",""]
[null,"",""]
[null,"",""]
[null,"",""]
[null,"",""]
[null,"",""]
[null,"",""]
[null,"",""]
[null,"",""]
[null,"",""]
[null,"",""]
[null,"",""]
[null,"",""]
[null,"",""]
[null,"",""]
[null,"",""]
[null,"",""]
[null,"",""]
[null,"",""]
[null,"",""]
[null,"",""]
[null,"",""]
[null,"",""]
[null,"",""]
[null,"",""]
[null,"",""]
[null,"",""]
[null,"",""]
[null,{"$f":"IFERROR(VLOOKUP($A7684,Common_LU,2,0),\"\")","v":""},{"$f":"IFERROR(VLOOKUP($A7684,Common_LU,3,0),\"\")","v":""}]
[null,"",""]
[null,"",""]
[null,"",""]
[null,"",""]
[null,"",""]
[null,"",""]
[null,"",""]
[null,"",""]
[null,"",""]
[null,"",""]
[null,"",""]
[null,"",""]
[null,"",""]
[null,"",""]
[null,"",""]
[null,"",""]
[null,"",""]
[null,"",""]
[null,"",""]
[null,"",""]
[null,"",""]
[null,"",""]
[null,"",""]
[null,"",""]
[null,"",""]
[null,"",""]
[null,"",""]
[null,"",""]
[null,"",""]
[null,"",""]
[null,"",""]
[null,"",""]
[null,"",""]
[null,"",""]
[null,"",""]
[null,"",""]
[null,"",""]
[null,"",""]
[null,"",""]
[null,"",""]
[null,"",""]
[null,"",""]
[null,"",""]
[null,"",""]
[null,"",""]
[null,"",""]
[null,"",""]
[null,"",""]
[null,"",""]
[null,"",""]
[null,"",""]
[null,"",""]
[null,"",""]
[null,"",""]
[null,"",""]
[null,"",""]
[null,"",""]
[null,"",""]
[null,"",""]
[null,"",""]
[null,"",""]
[null,"",""]
[null,"",""]
[null,{"$f":"IFERROR(VLOOKUP($A7748,Common_LU,2,0),\"\")","v":""},{"$f":"IFERROR(VLOOKUP($A7748,Common_LU,3,0),\"\")","v":""}]
[null,"",""]
[null,"",""]
[null,"",""]
[null,"",""]
[null,"",""]
[null,"",""]
[null,"",""]
[null,"",""]
[null,"",""]
[null,"",""]
[null,"",""]
[null,"",""]
[null,"",""]
[null,"",""]
[null,"",""]
[null,"",""]
[null,"",""]
[null,"",""]
[null,"",""]
[null,"",""]
[null,"",""]
[null,"",""]
[null,"",""]
[null,"",""]
[null,"",""]
[null,"",""]
[null,"",""]
[null,"",""]
[null,"",""]
[null,"",""]
[null,"",""]
[null,"",""]
[null,"",""]
[null,"",""]
[null,"",""]
[null,"",""]
[null,"",""]
[null,"",""]
[null,"",""]
[null,"",""]
[null,"",""]
[null,"",""]
[null,"",""]
[null,"",""]
[null,"",""]
[null,"",""]
[null,"",""]
[null,"",""]
[null,"",""]
[null,"",""]
[null,"",""]
[null,"",""]
[null,"",""]
[null,"",""]
[null,"",""]
[null,"",""]
[null,"",""]
[null,"",""]
[null,"",""]
[null,"",""]
[null,"",""]
[null,"",""]
[null,"",""]
[null,{"$f":"IFERROR(VLOOKUP($A7812,Common_LU,2,0),\"\")","v":""},{"$f":"IFERROR(VLOOKUP($A7812,Common_LU,3,0),\"\")","v":""}]
[null,"",""]
[null,"",""]
[null,"",""]
[null,"",""]
[null,"",""]
[null,"",""]
[null,"",""]
[null,"",""]
[null,"",""]
[null,"",""]
[null,"",""]
[null,"",""]
[null,"",""]
[null,"",""]
[null,"",""]
[null,"",""]
[null,"",""]
[null,"",""]
[null,"",""]
[null,"",""]
[null,"",""]
[null,"",""]
[null,"",""]
[null,"",""]
[null,"",""]
[null,"",""]
[null,"",""]
[null,"",""]
[null,"",""]
[null,"",""]
[null,"",""]
[null,"",""]
[null,"",""]
[null,"",""]
[null,"",""]
[null,"",""]
[null,"",""]
[null,"",""]
[null,"",""]
[null,"",""]
[null,"",""]
[null,"",""]
[null,"",""]
[null,"",""]
[null,"",""]
[null,"",""]
[null,"",""]
[null,"",""]
[null,"",""]
[null,"",""]
[null,"",""]
[null,"",""]
[null,"",""]
[null,"",""]
[null,"",""]
[null,"",""]
[null,"",""]
[null,"",""]
[null,"",""]
[null,"",""]
[null,"",""]
[null,"",""]
[null,"",""]
[null,{"$f":"IFERROR(VLOOKUP($A7876,Common_LU,2,0),\"\")","v":""},{"$f":"IFERROR(VLOOKUP($A7876,Common_LU,3,0),\"\")","v":""}]
[null,"",""]
[null,"",""]
[null,"",""]
[null,"",""]
[null,"",""]
[null,"",""]
[null,"",""]
[null,"",""]
[null,"",""]
[null,"",""]
[null,"",""]
[null,"",""]
[null,"",""]
[null,"",""]
[null,"",""]
[null,"",""]
[null,"",""]
[null,"",""]
[null,"",""]
[null,"",""]
[null,"",""]
[null,"",""]
[null,"",""]
[null,"",""]
[null,"",""]
[null,"",""]
[null,"",""]
[null,"",""]
[null,"",""]
[null,"",""]
[null,"",""]
[null,"",""]
[null,"",""]
[null,"",""]
[null,"",""]
[null,"",""]
[null,"",""]
[null,"",""]
[null,"",""]
[null,"",""]
[null,"",""]
[null,"",""]
[null,"",""]
[null,"",""]
[null,"",""]
[null,"",""]
[null,"",""]
[null,"",""]
[null,"",""]
[null,"",""]
[null,"",""]
[null,"",""]
[null,"",""]
[null,"",""]
[null,"",""]
[null,"",""]
[null,"",""]
[null,"",""]
[null,"",""]
[null,"",""]
[null,"",""]
[null,"",""]
[null,"",""]
[null,{"$f":"IFERROR(VLOOKUP($A7940,Common_LU,2,0),\"\")","v":""},{"$f":"IFERROR(VLOOKUP($A7940,Common_LU,3,0),\"\")","v":""}]
[null,"",""]
[null,"",""]
[null,"",""]
[null,"",""]
[null,"",""]
[null,"",""]
[null,"",""]
[null,"",""]
[null,"",""]
[null,"",""]
[null,"",""]
[null,"",""]
[null,"",""]
[null,"",""]
[null,"",""]
[null,"",""]
[null,"",""]
[null,"",""]
[null,"",""]
[null,"",""]
[null,"",""]
[null,"",""]
[null,"",""]
[null,"",""]
[null,"",""]
[null,"",""]
[null,"",""]
[null,"",""]
[null,"",""]
[null,"",""]
[null,"",""]
[null,"",""]
[null,"",""]
[null,"",""]
[null,"",""]
[null,"",""]
[null,"",""]
[null,"",""]
[null,"",""]
[null,"",""]
[null,"",""]
[null,"",""]
[null,"",""]
[null,"",""]
[null,"",""]
[null,"",""]
[null,"",""]
[null,"",""]
[null,"",""]
[null,"",""]
[null,"",""]
[null,"",""]
[null,"",""]
[null,"",""]
[null,"",""]
[null,"",""]
[null,"",""]
[null,"",""]
[null,"",""]
[null,"",""]

{"sheet":"Species List","index":1,"n_rows":1320,"n_cols":3,"rows_kept":1320,"cut":false,"hidden":false,"merged":[]}
["Common Name","Scientific Name","Bionet Species Code"]
["Rainbow Lorikeet","Trichoglossus haematodus",9947]
["Common Ringtail Possum","Pseudocheirus peregrinus",1129]
["Common Brushtail Possum","Trichosurus vulpecula",1113]
["Australian Magpie","Cracticus tibicen",705]
["Eastern Grey Kangaroo","Macropus giganteus",1265]
["Eastern Blue-tongue","Tiliqua scincoides",2580]
["Laughing Kookaburra","Dacelo novaeguineae",322]
["Tawny Frogmouth","Podargus strigoides",313]
["Red-bellied Black Snake","Pseudechis porphyriacus",2693]
["Grey-headed Flying-fox","Pteropus poliocephalus",1280]
["Noisy Miner","Manorina melanocephala",634]
["Sulphur-crested Cockatoo","Cacatua galerita",269]
["Galah","Eolophus roseicapillus",273]
["Koala","Phascolarctos cinereus",1162]
["Eastern Carpet Python","Morelia spilota mcdowelli",5095]
["Common Wombat","Vombatus ursinus",1165]
["Short-beaked Echidna","Tachyglossus aculeatus",1003]
["Crested Pigeon","Ocyphaps lophotes",43]
["Australian Wood Duck","Chenonetta jubata",202]
["Red-necked Wallaby","Macropus rufogriseus",1261]
["Eastern Brown Snake","Pseudonaja textilis",2699]
["Masked Lapwing","Vanellus miles",133]
["Swamp Wallaby","Wallabia bicolor",1242]
["Magpie-lark","Grallina cyanoleuca",415]
["Australian Brush-turkey","Alectura lathami",8]
["Pacific Black Duck","Anas superciliosa",208]
["Black Flying-fox","Pteropus alecto",1282]
["Common Tree Snake","Dendrelaphis punctulatus",2633]
["Pied Currawong","Strepera graculina",694]
["Eastern Snake-necked Turtle","Chelodina longicollis",2017]
["Agile Antechinus","Antechinus agilis",1668]
["Albatross","Diomedea sp.","T1047"]
["Albert's Lyrebird","Menura alberti",351]
["Alligator Snapping Turtle","Macrochelys temminckii","T982"]
["Alpaca","Vicugna pacos","T258"]
["Alpine She-oak Skink","Cyclodomorphus praealtus",2867]
["Alpine Tree Frog","Litoria verreauxii alpina",3907]
["Alpine Water Skink","Eulamprus kosciuskoi",2550]
["Amazon Tree Boa","Corallus hortulanus","T132"]
["American Alligator","Alligator mississipiensis","ALI"]
["American Corn Snake","Pantherophis guttatus","T441"]
["American Golden Plover","Pluvialis dominicus",9023]
["Antarctic Prion","Pachyptila desolata",84]
["Antipodean Albatross","Diomedea antipodensis",846]
["Apostlebird","Struthidea cinerea",675]
["Arctic Jaeger","Stercorarius parasiticus",128]
["Arctic Tern","Sterna paradisaea",952]
["Audubon's Shearwater","Puffinus lherminieri",912]
["Australasian Bittern","Botaurus poiciloptilus",197]
["Australasian Darter","Anhinga novaehollandiae",8731]
["Australasian Figbird","Sphecotheres vieilloti",432]
["Australasian Gannet","Morus serrator",104]
["Australasian Grebe","Tachybaptus novaehollandiae",61]
["Australasian Shoveler","Anas rhynchotis",212]
["Australian Brush-turkey","Alectura lathami",8]
["Australian Bustard","Ardeotis australis",176]
["Australian Fur-seal","Arctocephalus pusillus doriferus",1882]
["Australian Hobby","Falco longipennis",235]
["Australian King-Parrot","Alisterus scapularis",281]
["Australian Magpie","Cracticus tibicen",705]
["Australian Owlet-nightjar","Aegotheles cristatus",317]
["Australian Painted Snipe","Rostratula australis",170]
["Australian Pelican","Pelecanus conspicillatus",106]
["Australian Pipit","Anthus novaeseelandiae",647]
["Australian Pratincole","Stiltia isabella",173]
["Australian Raven","Corvus coronoides",930]
["Australian Reed-Warbler","Acrocephalus australis",524]
["Australian Ringneck","Barnardius zonarius",294]
["Australian Sea-lion","Neophoca cinerea",1539]
["Australian Shelduck","Tadorna tadornoides",207]
["Australian Spotted Crake","Porzana fluminea",49]
["Australian Swiftlet","Aerodramus terraereginae",333]
["Australian White Ibis","Threskiornis molucca",179]
["Australian Wood Duck","Chenonetta jubata",202]
["Azure Kingfisher","Ceyx azureus",319]
["Babbler","Pomatostomus sp.","T078"]
["Baillon's Crake","Porzana pusilla",50]
["Bali Cattle, Banteng","Bos javanicus",1520]
["Banded Lapwing","Vanellus tricolor",135]
["Banded Stilt","Cladorhynchus leucocephalus",147]
["Banded Whiteface","Aphelocephala nigricincta",469]
["Bandy-bandy","Vermicella annulata",2734]
["Bardick","Echiopsis curta",2667]
["Barking Owl","Ninox connivens",246]
["Barn Swallow","Hirundo rustica",879]
["Barred Cuckoo-shrike","Coracina lineata",428]
["Barred Wedgesnout Ctenotus","Ctenotus schomburgkii",2379]
["Barred-sided Skink (Eulamprus tenuis\\martini)","Eulamprus tenuis\\martini","T116"]
["Barred-sided Skink (Eulamprus tenuis)","Eulamprus tenuis",2559]
["Barrier Range Dragon","Ctenophorus mirrityana",5243]
["Bar-shouldered Dove","Geopelia humeralis",32]
["Bar-tailed Godwit","Limosa lapponica",153]
["Bar-tailed Godwit (baueri)","Limosa lapponica baueri",8781]
["Bassian Thrush","Zoothera lunulata",779]
["Beach Stone-curlew","Esacus magnirostris",175]
["Beaded Gecko","Lucasium damaeum",2109]
["Bearded Dragon","Pogona barbata",2177]
["Beautiful Firetail","Stagonopleura bella",650]
["Bell Miner","Manorina melanophrys",633]
["Bellinger River Snapping Turtle","Myuchelys georgesi","T390"]
["Bibron's Toadlet","Pseudophryne bibronii",3117]
["Black Bittern","Ixobrychus flavicollis",196]
["Black Falcon","Falco subniger",238]
["Black Flying-fox","Pteropus alecto",1282]
["Black Honeyeater","Sugomel niger",589]
["Black Kite","Milvus migrans",229]
["Black Noddy","Anous minutus",124]
["Black Petrel","Procellaria parkinsoni",917]
["Black Rat","Rattus rattus",1408]
["Black Rock Skink","Egernia saxatilis",2425]
["Black Swan","Cygnus atratus",203]
["Black Tern","Chlidonias niger",884]
["Black-bellied Storm-Petrel","Fregetta tropica",66]
["Black-bellied Swamp Snake","Hemiaspis signata",2674]
["Black-breasted Button-quail","Turnix melanogaster",17]
["Black-breasted Buzzard","Hamirostra melanosternon",231]
["Black-browed Albatross","Thalassarche melanophris",88]
["Blackbuck","Antilope cervicapra",1516]
["Black-chinned Honeyeater (eastern subspecies)","Melithreptus gularis gularis",8303]
["Black-eared Cuckoo","Chalcites osculans",341]
["Black-eared Miner","Manorina melanotis",967]
["Black-faced Cormorant","Phalacrocorax fuscescens",98]
["Black-faced Cuckoo-shrike","Coracina novaehollandiae",424]
["Black-faced Monarch","Monarcha melanopsis",373]
["Black-faced Woodswallow","Artamus cinereus",546]
["Black-fronted Dotterel","Elseyornis melanops",144]
["Black-headed Mannikin","Lonchura malacca",870]
["Black-headed Monitor","Varanus tristis",2282]
["Blackish Blind Snake","Anilios nigrescens",2599]
["Black-necked Stork","Ephippiorhynchus asiaticus",183]
["Black-shouldered Kite","Elanus axillaris",232]
["Black-striped Wallaby","Macropus dorsalis",1260]
["Black-tailed Antechinus","Antechinus arktos",1935]
["Black-tailed Godwit","Limosa limosa",152]
["Black-tailed Native-hen","Tribonyx ventralis",55]
["Black-throated Finch (southern subspecies)","Poephila cincta cincta",8324]
["Black-throated Finch/Long-tailed Finch hybrid","Poephila cincta x acuticauda","T151"]
["Black-winged Petrel","Pterodroma nigripennis",955]
["Black-winged Stilt","Himantopus himantopus",146]
["Blainville's Beaked Whale","Mesoplodon densirostris",1590]
["Bleating Tree Frog","Litoria dentata",3180]
["blind snake","Anilios sp.","T112"]
["Blood/Short Python","Python curtus","T124"]
["Blotched Blue-tongue","Tiliqua nigrolutea",2578]
["Blue Bonnet","Northiella haematogaster",297]
["Blue Mountains Tree Frog","Litoria citropa",3175]
["Blue Mountains Water Skink","Eulamprus leuraensis",2215]
["Blue Petrel","Halobaena caerulea",81]
["Blue Whale","Balaenoptera musculus",1567]
["Blue-billed Duck","Oxyura australis",216]
["Blue-faced Honeyeater","Entomyzon cyanotis",641]
["Blue-grey Mouse","Pseudomys glaucus",1457]
["Blue-winged Parrot","Neophema chrysostoma",306]
["Boa Constrictor","Boa constrictor","T129"]
["Bolam's Mouse","Pseudomys bolami",1452]
["Booroolong Frog","Litoria booroolongensis",3168]
["Border Beaked Gecko","Rhynchoedura angusta",5206]
["Border Thick-tailed Gecko","Uvidicolus sphyrurus",2139]
["Bottlenose Dolphin","Tursiops truncatus",1900]
["Bourke's Parrot","Neopsephotus bourkii",304]
["Box-patterned Gecko","Lucasium steindachneri",2071]
["Brahminy Kite","Haliastur indus",227]
["Bristle-faced Free-tailed Bat","Setirostris eleryi",1912]
["Broad-banded Sand-swimmer","Eremiascincus richardsonii",2438]
["Broad-billed Prion","Pachyptila vittata",82]
["Broad-billed Sandpiper","Limicola falcinellus",167]
["Broad-headed Snake","Hoplocephalus bungaroides",2676]
["Broad-palmed Frog","Litoria latopalmata",3191]
["Broad-shelled Turtle","Chelodina expansa",5259]
["Broad-tailed Gecko","Phyllurus platurus",2129]
["Broad-toothed Rat","Mastacomys fuscus",1438]
["Brolga","Grus rubicunda",177]
["Brown Antechinus","Antechinus stuartii",1674]
["Brown Booby","Sula leucogaster",102]
["Brown Cuckoo-Dove","Macropygia amboinensis",29]
["Brown Falcon","Falco berigora",239]
["Brown Gerygone","Gerygone mouki",454]
["Brown Goshawk","Accipiter fasciatus",221]
["Brown Hare","Lepus capensis",1511]
["Brown Hare\\Rabbit","Rabbit sp.",9026]
["Brown Honeyeater","Lichmera indistincta",597]
["Brown Quail","Coturnix ypsilophora",11]
["Brown Rat","Rattus norvegicus",1409]
["Brown Skua","Stercorarius antarcticus",127]
["Brown Songlark","Cincloramphus cruralis",508]
["Brown Thornbill","Acanthiza pusilla",475]
["Brown Tree Frog","Litoria ewingii",3182]
["Brown Tree Snake","Boiga irregularis",2630]
["Brown Treecreeper (eastern subspecies)","Climacteris picumnus victoriae",8127]
["Brown-backed Yellow-lined Ctenotus","Ctenotus eurydice",2468]
["Brown-blazed Wedgesnout Ctenotus","Ctenotus allotropis",2392]
["Brown-headed Honeyeater","Melithreptus brevirostris",583]
["Brown-lipped Sea Krait","Laticauda laticaudata",2769]
["Brown-snouted Blind Snake","Anilios wiedii",2606]
["Brown-striped Frog","Limnodynastes peronii",3061]
["Brush Bronzewing","Phaps elegans",35]
["Brush Cuckoo","Cacomantis variolosus",339]
["brushtail possum","Trichosurus sp.","T082"]
["Brush-tailed Phascogale","Phascogale tapoatafa",1017]
["Brush-tailed Rock-wallaby","Petrogale penicillata",1215]
["Bryde's Whale","Balaenoptera edeni",1572]
["Budgerigar","Melopsittacus undulatus",310]
["Buff-banded Rail","Gallirallus philippensis",46]
["Buff-breasted Sandpiper","Tryngites subruficollis",887]
["Buff-rumped Thornbill","Acanthiza reguloides",484]
["Buller's Albatross","Thalassarche bulleri",931]
["Buller's Shearwater","Ardenna bulleri",975]
["Burmese Python","Python molurus bivittatus","T123"]
["Burmese/Indian Python","Python molurus","T122"]
["Burns' Dragon","Lophognathus burnsi",2822]
["Burton's Snake-lizard","Lialis burtonis",2170]
["Bush Rat","Rattus fuscipes",1395]
["Bush Stone-curlew","Burhinus grallarius",174]
["Bynoe's Gecko","Heteronotia binoei",2105]
["California Kingsnake","Lampropeltis getula californiae","T137"]
["California Quail","Callipepla californica",901]
["Campbell Albatross","Thalassarche impavida",859]
["Canada Goose","Branta canadensis",799]
["Cane Toad","Rhinella marina",3269]
["Canefield Rat","Rattus sordidus",1399]
["Canegrass Dragon","Diporiphora winneckei",2235]
["Cape Petrel","Daption capense",80]
["Carpet & Diamond Pythons","Morelia spilota",2625]
["Caspian Tern","Hydroprogne caspia",112]
["Cat","Felis catus",1536]
["Cattle Egret","Ardea ibis",977]
["Central Bearded Dragon","Pogona vitticeps",2204]
["Central Netted Dragon","Ctenophorus nuchalis",2196]
["Central-eastern Broad-nosed Bat","Scotorepens sp 1",9029]
["Centralian Blue-tongued Lizard","Tiliqua multifasciata",2577]
["Channel-billed Cuckoo","Scythrops novaehollandiae",348]
["Chatham Albatross","Thalassarche eremita",863]
["Chestnut Quail-thrush","Cinclosoma castanotum",437]
["Chestnut Teal","Anas castanea",210]
["Chestnut-breasted Mannikin","Lonchura castaneothorax",657]
["Chestnut-breasted Quail-thrush","Cinclosoma castaneothorax",438]
["Chestnut-crowned Babbler","Pomatostomus ruficeps",446]
["Chestnut-rumped Heathwren","Hylacola pyrrhopygia",498]
["Chestnut-rumped Thornbill","Acanthiza uropygialis",481]
["Children's/Eastern Small-blotched Python hybrid","Antaresia childreni x maculosa","T162"]
["Children's/Stimson's Python hybrid","Antaresia childreni x stimsoni","T169"]
["Chirruping Wedgebill","Psophodes cristatus",866]
["Chital","Axis axis",1524]
["Chocolate Wattled Bat","Chalinolobus morio",1351]
["Chukar Partridge","Alectoris chukar","T316"]
["Cicadabird","Coracina tenuirostris",429]
["Cinnamon Quail-thrush","Cinclosoma cinnamomeum",439]
["Clamorous Reed-Warbler","Acrocephalus stentoreus","T1048"]
["Claw-snouted Blind Snake","Anilios unguirostris",2605]
["Coastal/Centralian Carpet Python hybrid","Morelia spilota mcdowelli x bredli","T164"]
["Coastal/Jungle Carpet Python hybrid","Morelia spilota mcdowelli x cheynei","T167"]
["Cockatiel","Nymphicus hollandicus",274]
["Collared Kingfisher","Todiramphus chloris",327]
["Collared Sparrowhawk","Accipiter cirrocephalus",222]
["Comb-crested Jacana","Irediparra gallinacea",171]
["Common Blossom-bat","Syconycteris australis",1294]
["Common Bronzewing","Phaps chalcoptera",34]
["Common Brushtail Possum","Trichosurus vulpecula",1113]
["Common Chaffinch","Fringilla coelebs",788]
["Common Death Adder","Acanthophis antarcticus",2640]
["Common Diving-Petrel","Pelecanoides urinatrix",85]
["Common Dolphin","Delphinus delphis",1616]
["Common Dunnart","Sminthopsis murina",1061]
["Common Dwarf Skink","Menetia greyii",2519]
["Common Eastern Froglet","Crinia signifera",3134]
["Common Green Iguana","Iguana iguana","T126"]
["Common Greenshank","Tringa nebularia",158]
["Common Myna","Sturnus tristis",998]
["Common Noddy","Anous stolidus",122]
["Common Pheasant","Phasianus colchicus",950]
["Common Planigale","Planigale maculata",1045]
["Common Redpoll","Acanthis flammea",790]
["Common Ringtail Possum","Pseudocheirus peregrinus",1129]
["Common Sandpiper","Actitis hypoleucos",157]
["Common Scaly-foot","Pygopus lepidopodus",2174]
["Common Slender Blue-tongue","Cyclodomorphus branchialis",2573]
["Common Slider","Trachemys scripta",5119]
["Common Starling","Sturnus vulgaris",999]
["Common Tern","Sterna hirundo",953]
["Common Tree Snake","Dendrelaphis punctulatus",2633]
["Common Wallaroo","Macropus robustus",1266]
["Common Wombat","Vombatus ursinus",1165]
["Cook Strait Tuatara","Sphenodon punctatus","T142"]
["Cook's Petrel","Pterodroma cookii",918]
["Copperhead","Austrelaps sp.","T307"]
["Copper-tailed Skink","Ctenotus taeniolatus",2386]
["Coral Snake","Brachyurophis australis",2711]
["Corben's Long-eared Bat","Nyctophilus corbeni","T315"]
["Cotton Pygmy-Goose","Nettapus coromandelianus",200]
["Coxen's Fig-Parrot","Cyclopsitta diophthalma coxeni",8028]
["Crab-eater Seal","Lobodon carcinophagus",1555]
["Cream-striped Shinning-skink","Cryptoblepharus virgatus",2331]
["Crescent Honeyeater","Phylidonyris pyrrhoptera",630]
["Crested Bellbird","Oreoica gutturalis",419]
["Crested Pigeon","Ocyphaps lophotes",43]
["Crested Tern","Thalasseus bergii",115]
["Crimson Chat","Epthianura tricolor",449]
["Crimson Rosella","Platycercus elegans",282]
["Crimson Rosella/Mallee Ringneck","Parrot Hybrid","C/MH"]
["Crimson Rosella/Port Lincoln Parrot","Parrot Hybrid","C/LH"]
["Crimson Rosella/Red-rumped Parrot","Parrot Hybrid","E/RH"]
["Crimson Rosella/Twenty Eight Parrot","Parrot Hybrid","C/TH"]
["Crimson X Yellow Rosella","Platycercus elegans elegans x flaveolus","C/YH"]
["Crimson/Eastern Rosella","Platycercus elegans elegans x adscitus eximius","C/EH"]
["Crimson/Pale-headed Rosella","Platycercus elegans elegans x adscitus adscitus","C/PH"]
["Crowned Gecko","Lucasium stenodactylum",2072]
["Crucifix Frog","Notaden bennettii",3098]
["Cunningham's Skink","Egernia cunninghami",2408]
["Curl Snake","Suta suta",2722]
["Curlew Sandpiper","Calidris ferruginea",161]
["Dainty Green Tree Frog","Litoria gracilenta",3187]
["Dark Barsided Skink","Eulamprus martini",2720]
["Dark-flecked Garden Sunskink","Lampropholis delicata",2450]
["Davies' Tree Frog","Litoria daviesae",3303]
["De Vis' Banded Snake","Denisonia devisi",2660]
["Desert Froglet","Crinia deserticola",3128]
["Desert Mouse","Pseudomys desertor",1446]
["Desert Skink","Liopholis inornata",2413]
["Desert Tree Frog","Litoria rubella",3210]
["Diamond Dove","Geopelia cuneata",31]
["Diamond Firetail","Stagonopleura guttata",652]
["Diamond Python","Morelia spilota spilota",5096]
["Diamond/Centralian Carpet Python hybrid","Morelia spilota spilota x bredli","T165"]
["Diamond/Coastal Carpet Python hybrid","Morelia spilota spilota x mcdowelli","T166"]
["Diamond/Jungle Python hybrid","Morelia spilota spilota x cheynei","T170"]
["Diamond/Murray/Darling Carpet Python Hybrid","Morelia spilota spilota x metcalfei","T185"]
["Dingo","Canis lupus dingo",1904]
["Dingo, domestic dog","Canis lupus",1531]
["Dog","Canis lupus familiaris",1905]
["Dollarbird","Eurystomus orientalis",318]
["Domestic fowl","Gallus sp.",1914]
["Domestic Goose","Anser sp.","T046"]
["Donkey","Equus asinus",1513]
["Double-banded Plover","Charadrius bicinctus",140]
["Double-barred Finch","Taeniopygia bichenovii",655]
["Double-barred Finch/Zebra Finch hybrid","Taeniopygia bichenovii x guttata","T157"]
["Dromedary","Camelus dromedarius",1515]
["Dubious Dtella","Gehyra dubia",2082]
["Dugite/Western Brown Snake","Snake Hybrid","D/WB"]
["Dugong","Dugong dugon",1558]
["Dunnart","Sminthopsis sp.",1800]
["Dusky Antechinus","Antechinus swainsonii",1033]
["Dusky Moorhen","Gallinula tenebrosa",56]
["Dusky Toadlet","Uperoleia fusca",3035]
["Dusky Woodswallow","Artamus cyanopterus cyanopterus",8519]
["Dwarf Minke Whale","Balaenoptera acutorostrata",1570]
["Dwarf Sperm Whale","Kogia simus",1582]
["Dwyer's Snake","Parasuta dwyeri",2726]
["Eastern Banjo Frog","Limnodynastes dumerilii",3058]
["Eastern Barn Owl","Tyto javanica",9923]
["Eastern Barred Wedgesnout Ctenotus","Ctenotus strauchii",2384]
["Eastern Beaked Gecko","Rhynchoedura ormsbyi",5204]
["Eastern Blue-tongue","Tiliqua scincoides",2580]
["Eastern Bristlebird","Dasyornis brachypterus",519]
["Eastern Broad-nosed Bat","Scotorepens orion",1365]
["Eastern Brown Snake","Pseudonaja textilis",2699]
["Eastern Carpet Python","Morelia spilota mcdowelli",5095]
["Eastern Cave Bat","Vespadelus troughtoni",1025]
["Eastern Chestnut Mouse","Pseudomys gracilicaudatus",1466]
["Eastern Coastal Free-tailed Bat","Micronomus norfolkensis",1329]
["Eastern Crevice Skink","Egernia mcpheei",2213]
["Eastern Curlew","Numenius madagascariensis",149]
["Eastern Dwarf Tree Frog","Litoria fallax",3183]
["Eastern False Pipistrelle","Falsistrellus tasmaniensis",1372]
["Eastern Fat-tailed Gecko","Diplodactylus platyurus",5288]
["Eastern Forest Bat","Vespadelus pumilus",1377]
["Eastern Free-tailed Bat","Mormopterus ridei",1938]
["Eastern Grass Owl","Tyto longimembris",252]
["Eastern Great Egret","Ardea modesta",8712]
["Eastern Grey Kangaroo","Macropus giganteus",1265]
["Eastern Ground Parrot","Pezoporus wallicus wallicus",8913]
["Eastern Hooded Scaly-foot","Pygopus schraderi",2911]
["Eastern Horseshoe-bat","Rhinolophus megaphyllus",1303]
["Eastern Koel","Eudynamys orientalis",347]
["Eastern Long-eared Bat","Nyctophilus bifax",1336]
["Eastern Mourning Skink","Lissolepis coventryi",2407]
["Eastern Mulch-slider","Lerista fragilis",2481]
["Eastern Pygmy-possum","Cercartetus nanus",1150]
["Eastern Ranges Rock-skink","Liopholis modesta",2419]
["Eastern Reef Egret","Egretta sacra",191]
["Eastern Robust Slider","Lerista punctatovittata",2499]
["Eastern Rosella","Platycercus eximius",288]
["Eastern Rosella/Mallee Ringneck","Parrot Hybrid","E/MH"]
["Eastern Rosella/Northern Rosella hybrid","Platycercus adscitus eximius x venustus","T158"]
["Eastern Shrike-tit","Falcunculus frontatus frontatus",416]
["Eastern Sign-bearing Froglet","Crinia parinsignifera",3131]
["Eastern Small-eyed Snake","Cryptophis nigrescens",5136]
["Eastern Smooth Frog","Geocrinia victoriana",3033]
["Eastern Snake-necked Turtle","Chelodina longicollis",2017]
["Eastern Spinebill","Acanthorhynchus tenuirostris",591]
["Eastern Spiny-tailed Gecko","Strophurus williamsi",2078]
["Eastern Three-lined Skink","Acritoscincus duperreyi",2682]
["Eastern three-toed earless skink","Hemiergis talbingoensis","T382"]
["Eastern Tube-nosed Bat","Nyctimene robinsoni",1290]
["Eastern Water Dragon (Intellagama lesueurii lesueurii)","Intellagama lesueurii lesueurii",5075]
["Eastern Water Dragon (Intellagama lesueurii)","Intellagama lesueurii",2252]
["Eastern Water-skink","Eulamprus quoyii",2557]
["Eastern Whipbird","Psophodes olivaceus",421]
["Eastern Yellow Robin","Eopsaltria australis",392]
["Eastern Yellow Wagtail","Motacilla tschutschensis",8609]
["Eastern/Blotched Bluetongue hybrid","Tiliqua scincoides x nigrolutea","T168"]
["Eastern/Central Bearded Dragon hybrid","Pogona barbata x vitticeps","T163"]
["Eastern/Pale-headed Rosella","Platycercus adscitus adscitus x eximius","E/PH"]
["Eastern/Yellow Rosella","Platycercus adscitus eximius x elegans flaveolus","E/YH"]
["Elapid snakes","Elapidae sp.","T400"]
["Elegant Parrot","Neophema elegans",307]
["Elegant Seasnake","Hydrophis elegans",2754]
["Elegant Snake-eyed Skink","Cryptoblepharus pulcher",5170]
["Emerald Dove","Chalcophaps indica",33]
["Emerald Tree Boa","Corallus caninus","T131"]
["Emu","Dromaius novaehollandiae",1]
["Eurasian Blackbird","Turdus merula",991]
["Eurasian Coot","Fulica atra",59]
["Eurasian Skylark","Alauda arvensis",993]
["Eurasian Tree Sparrow","Passer montanus",994]
["Euro/Red Kangaroo","Macropus Hybrid","W/RH"]
["European cattle","Bos taurus",1518]
["European Goldfinch","Carduelis carduelis",996]
["European Greenfinch","Chloris chloris",997]
["European Polecat/Ferret","Mustela putorius","T977"]
["Excitable Delma","Delma tincta",2165]
["Eyrean Earless Dragon","Tympanocryptis tetraporophora",2257]
["faint-striped Blind Snake","Anilios broomi",2590]
["Fairy Martin","Petrochelidon ariel",360]
["Fairy Prion","Pachyptila turtur",83]
["Fallow Deer","Dama dama",1523]
["False Killer Whale","Pseudorca crassidens",1603]
["Fan-tailed Cuckoo","Cacomantis flabelliformis",338]
["Fat-tailed Dunnart","Sminthopsis crassicaudata",1072]
["Fawn Hopping-mouse","Notomys cervinus",1483]
["Fawn-footed Melomys","Melomys cervinipes",1497]
["Feathertail Glider","Acrobates pygmaeus",1147]
["Fierce Snake","Oxyuranus microlepidotus",2689]
["Fiji Banded Iguana","Brachylophus fasciatus","T128"]
["Fiji Crested Iguana","Brachylophus vitiensis","T127"]
["Fin Whale","Balaenoptera physalus",1569]
["Fire-tailed Skink","Morethia taeniopleura",2530]
["Five-clawed Worm-skink","Anomalopus mackayi",2042]
["Flame Robin","Petroica phoenicea",382]
["Flatback Turtle","Natator depressus",2006]
["Fleay's Barred Frog","Mixophyes fleayi",3008]
["Flesh-footed Shearwater","Ardenna carneipes",72]
["Fletcher's Frog","Lechriodus fletcheri",3052]
["Flinders Ranges Rock-Skink","Liopholis margaretae personata",5007]
["Flock Bronzewing","Phaps histrionica",36]
["Fluttering Shearwater","Puffinus gavia",68]
["Flying-fox","Pteropus sp.","T087"]
["Forest Kingfisher","Todiramphus macleayii",324]
["Forest Raven","Corvus tasmanicus",868]
["Fork-tailed Swift","Apus pacificus",335]
["Forrest's Mouse","Leggadina forresti",1441]
["Fox","Vulpes vulpes",1532]
["Franklin's Gull","Leucophaeus pipixcan",885]
["Fraser's Dolphin","Lagenodelphis hosei",1624]
["Freckled Duck","Stictonetta naevosa",214]
["Freshwater Snake","Tropidonophis mairii",2629]
["Freycinet's Frog","Litoria freycineti",3184]
["Friendly Sunskink","Lampropholis amicula",2447]
["Fuscous Honeyeater","Ptilotula fuscus",613]
["Galah","Eolophus roseicapillus",273]
["Galah/Pink Cockatoo","Cacatua Hybrid","G/PH"]
["Gang-gang Cockatoo","Callocephalon fimbriatum",268]
["Geckos","Diplodactylus sp.","T1039"]
["Giant Banjo Frog","Limnodynastes interioris",3060]
["Giant Barred Frog","Mixophyes iteratus",3075]
["Giant Burrowing Frog","Heleioporus australiacus",3042]
["Gibber Earless Dragon","Tympanocryptis intima",2254]
["Gibber Gecko","Lucasium byrnei",2052]
["Gibberbird","Ashbyia lovensis",452]
["Gibson's Albatross","Diomedea gibsoni",847]
["Gidgee Skink","Egernia stokesii",2427]
["Gilbert's Whistler","Pachycephala inornata",403]
["Ginko-toothed Beaked Whale","Mesoplodon ginkgodens",1038]
["Gippsland Water Dragon","Intellagama lesueurii howitti",5076]
["Glandular Frog","Litoria subglandulosa",3186]
["Glider","Petaurus sp.","T084"]
["Glossy Black-Cockatoo","Calyptorhynchus lathami",265]
["Glossy Ibis","Plegadis falcinellus",178]
["Goat","Capra hircus",1521]
["Golden Pheasant","Chrysolophus pictus","T975"]
["Golden Whistler","Pachycephala pectoralis",398]
["Golden Whistler (Lord Howe Is. subsp.)","Pachycephala pectoralis contempta",8417]
["Golden/Hooded Parrot","Psephotus hybrid","G/HH"]
["Golden-crowned Snake","Cacophis squamulosus",2647]
["Golden-headed Cisticola","Cisticola exilis",525]
["Golden-tipped Bat","Phoniscus papuensis",1369]
["Gouldian/Star Finch","Finch Hybrid","G/SH"]
["Gould's Goanna","Varanus gouldii",2271]
["Gould's Long-eared Bat","Nyctophilus gouldi",1334]
["Gould's Petrel","Pterodroma leucoptera leucoptera",8684]
["Gould's Wattled Bat","Chalinolobus gouldii",1349]
["Grassland Earless Dragon","Tympanocryptis pinguicolla",2824]
["Grassland Melomys","Melomys burtoni",1500]
["Gray-banded Kingsnake (Lampropeltis alterna)","Lampropeltis alterna","T134"]
["Gray-banded Kingsnake (Lampropeltis mexicana)","Lampropeltis mexicana","T135"]
["Gray's Beaked Whale","Mesoplodon grayi",1593]
["Gray's Sticky-toed Gecko","Hoplodactylus granulatus","T145"]
["Gray's Tree Gecko","Naultinus grayii","T147"]
["Great Barred Frog","Mixophyes fasciolatus",3074]
["Great Cormorant","Phalacrocorax carbo",96]
["Great Crested Grebe","Podiceps cristatus",60]
["Great Frigatebird","Fregata minor",94]
["Great Knot","Calidris tenuirostris",165]
["Great Knot\\Red Knot","Calidris tenuirostris\\canutus",9021]
["Great Skua","Catharacta skua",980]
["Greater Broad-nosed Bat","Scoteanax rueppellii",1361]
["Greater Glider","Petauroides volans",1133]
["Greater Sand-plover","Charadrius leschenaultii",141]
["Greater Stick-nest Rat","Leporillus conditor",1429]
["Great-winged Petrel","Pterodroma macroptera",75]
["Green Anaconda","Eunectes murinus","T981"]
["Green and Golden Bell Frog","Litoria aurea",3166]
["Green Catbird","Ailuroedus crassirostris",676]
["Green Pygmy-Goose","Nettapus pulchellus",201]
["Green Tree Frog","Litoria caerulea",3171]
["Green Tree Gecko","Naultinus elegans","T146"]
["Green Turtle","Chelonia mydas",2007]
["Green-thighed Frog","Litoria brevipalmata",3169]
["Grey Butcherbird","Cracticus torquatus",702]
["Grey Currawong","Strepera versicolor",697]
["Grey Falcon","Falco hypoleucos",236]
["Grey Fantail","Rhipidura albiscapa",361]
["Grey Goshawk","Accipiter novaehollandiae",220]
["Grey Petrel","Procellaria cinerea",73]
["Grey Plover","Pluvialis squatarola",136]
["Grey Shrike-thrush","Colluricincla harmonica",408]
["Grey Snake","Hemiaspis damelii",2673]
["Grey Teal","Anas gracilis",211]
["Grey Ternlet","Procelsterna cerulea",9926]
["Grey-backed Storm-Petrel","Garrodia nereis",64]
["Grey-crowned Babbler (eastern subspecies)","Pomatostomus temporalis temporalis",8388]
["Grey-fronted Honeyeater","Ptilotula plumulus",623]
["Grey-headed Albatross","Thalassarche chrysostoma",90]
["Grey-headed Flying-fox","Pteropus poliocephalus",1280]
["Grey-tailed Tattler","Tringa brevipes",155]
["Grey-tailed Tattler\\Wandering Tattler","Tringa brevipes\\incana",9020]
["Ground Cuckoo-shrike","Coracina maxima",423]
["Guinea Pig","Cavia porcellus","T1022"]
["Gull-billed Tern","Gelochelidon nilotica",111]
["Guthega Skink","Liopholis guthega",2916]
["Hall's Babbler","Pomatostomus halli",938]
["Hardhead","Aythya australis",215]
["Hastings River Mouse","Pseudomys oralis",1464]
["Haswell's Froglet","Paracrinia haswelli",3103]
["Hawksbill Turtle","Eretmochelys imbricata",2008]
["Helmeted Guineafowl","Numida meleagris",9939]
["Herald Petrel","Pterodroma arminjoniana",921]
["Hermanns Tortoise","Testudo hermanni","T388"]
["Highland Copperhead","Austrelaps ramsayi",2615]
["Highlands Forest-skink","Nannoscincus maccoyi",2444]
["Hoary Wattled Bat","Chalinolobus nigrogriseus",1354]
["Hoary-headed Grebe","Poliocephalus poliocephalus",62]
["Hog Deer","Axis porcinus",1525]
["Hooded Plover","Thinornis rubricollis",138]
["Hooded Robin (south-eastern form)","Melanodryas cucullata cucullata",8367]
["Hooded/Mulga Parrot","Psephotus hybrid","H/MH"]
["Hooded/Red-rumped Parrot","Psephotus hybrid","H/RH"]
["Horned Puff Adder","Bitis caudalis","T133"]
["Horned Seasnake","Acalyptophis peronii",2736]
["Horse","Equus caballus",1512]
["Horsfield's Bronze-Cuckoo","Chalcites basalis",342]
["Horsfield's Bushlark","Mirafra javanica",648]
["House Crow","Corvus splendens",867]
["House Gecko","Hemidactylus frenatus",2104]
["House Mouse","Mus musculus",1412]
["House Sparrow","Passer domesticus",995]
["Humpback Whale","Megaptera novaeangliae",1575]
["Hutton's Shearwater","Puffinus huttoni",913]
["Hybrid Miner","Manorina flavigula flavigula x melanotis","T012"]
["Indian Peafowl","Pavo cristatus",903]
["Indo-Pacific Hump-backed Dolphin","Sousa chinensis",1655]
["Inland Broad-nosed Bat","Scotorepens balstoni",1364]
["Inland Dotterel","Charadrius australis",145]
["Inland Forest Bat","Vespadelus baverstocki",1382]
["Inland Free-tailed Bat","Mormopterus petersi","T299"]
["Inland Snake-eyed Skink","Cryptoblepharus australis",5156]
["Inland Thornbill","Acanthiza apicalis",476]
["Interior Blind Snake","Ramphotyphlops endoterus",2592]
["Intermediate Egret","Ardea intermedia",186]
["Jacky Lizard","Amphibolurus muricatus",2194]
["Jacky Winter","Microeca fascinans",377]
["Java Sparrow","Lonchura oryzivora",806]
["Jervis Bay Tree Frog","Litoria jervisiensis",3190]
["Jewelled Gecko","Strophurus elderi",2055]
["Juan Fernandez Petrel","Pterodroma externa",810]
["Jungle/Top End Carpet Python hybrid","Morelia spilota cheynei x variegata","T978"]
["kangaroo / wallaby","Macropus sp.","T085"]
["Kelp Gull","Larus dominicanus",981]
["Kerguelen Petrel","Lugensa brevirostris",935]
["Killer Whale","Orcinus orca",1600]
["King Brown Snake","Pseudechis australis",2690]
["King Cobra","Ophiophagus hannah","T901"]
["King Quail","Excalfactoria chinensis",12]
["King/Red-winged Parrot","Parrot Hybrid","K/RH"]
["King/Superb Parrot","Parrot Hybrid","K/SH"]
["Koala","Phascolarctos cinereus",1162]
["Krefft's River Turtle","Emydura macquarii krefftii",2033]
["Kultarr","Antechinomys laniger",1043]
["Lace Monitor","Varanus varius",2283]
["Land Mullet","Bellatorias major",2417]
["Large Bent-winged Bat","Miniopterus orianae oceanensis",3330]
["Large Forest Bat","Vespadelus darlingtoni",1022]
["Large Waders","large wader sp.","T181"]
["Large-billed Scrubwren","Sericornis magnirostra",494]
["Large-eared Pied Bat","Chalinolobus dwyeri",1353]
["Latham's Snipe","Gallinago hardwickii",168]
["Laughing Kookaburra","Dacelo novaeguineae",322]
["Laughing Turtle-Dove","Streptopelia senegalensis",988]
["Leaden Delma","Delma plebeia",2164]
["Leaden Flycatcher","Myiagra rubecula",365]
["Leaf Green River Tree Frog","Litoria nudidigita",3309]
["Leaf Green Tree Frog complex","Litoria nudidigita/phyllochroa","T211"]
["Leaf Green Tree Frog species complex","Litoria pearsoniana/phyllochroa","T121"]
["Leaf-green Tree Frog","Litoria phyllochroa",3206]
["Leatherback Turtle","Dermochelys coriacea",2013]
["Legless Lizard","Aprasia aurita",2141]
["Leonhardi's Ctenotus","Ctenotus leonhardii",2365]
["Leopard Ctenotus","Ctenotus pantherinus ocellifer",2993]
["Leopard Seal","Hydrurga leptonyx",1549]
["Lesser Frigatebird","Fregata ariel",95]
["Lesser Long-eared Bat","Nyctophilus geoffroyi",1335]
["Lesser Sand-plover","Charadrius mongolus",139]
["Lesueur's Frog","Litoria lesueuri",3316]
["Lesueur's Velvet Gecko","Amalosia lesueurii",2118]
["Letter-winged Kite","Elanus scriptus",233]
["Lewin's Honeyeater","Meliphaga lewinii",605]
["Lewin's Rail","Lewinia pectoralis",45]
["Light-mantled Sooty Albatross","Phoebetria palpebrata",93]
["Lined Earless Dragon","Tympanocryptis lineata",2255]
["Little Bent-winged Bat","Miniopterus australis",1346]
["Little Black Cormorant","Phalacrocorax sulcirostris",97]
["Little Broad-nosed Bat","Scotorepens greyii",1362]
["Little Bronze-Cuckoo","Chalcites minutillus",345]
["Little Button-quail","Turnix velox",18]
["Little Corella","Cacatua sanguinea",271]
["Little Corella/Pink Cockatoo","Cacatua Hybrid","L/PH"]
["Little Crow","Corvus bennetti",691]
["Little Curlew","Numenius minutus",151]
["Little Eagle","Hieraaetus morphnoides",225]
["Little Egret","Egretta garzetta",185]
["Little Forest Bat","Vespadelus vulturnus",1379]
["Little Friarbird","Philemon citreogularis",646]
["Little Grassbird","Megalurus gramineus",522]
["Little Lorikeet","Glossopsitta pusilla",260]
["Little Mastiff-bat","Mormopterus planiceps",1326]
["Little Penguin","Eudyptula minor",5]
["Little Pied Bat","Chalinolobus picatus",1352]
["Little Pied Cormorant","Microcarbo melanoleucos",100]
["Little Raven","Corvus mellori",954]
["Little Red Flying-fox","Pteropus scapulatus",1281]
["Little Shearwater","Puffinus assimilis",67]
["Little Shrike-thrush","Colluricincla megarhyncha",413]
["Little Tern","Sternula albifrons",117]
["Little Wattlebird","Anthochaera chrysoptera",710]
["Little Whip Snake","Suta flagellum",2727]
["Little Woodswallow","Artamus minor",548]
["Littlejohn's Tree Frog","Litoria littlejohni",3039]
["Loggerhead Turtle","Caretta caretta",2004]
["Logrunner","Orthonyx temminckii",434]
["Long-billed Corella","Cacatua tenuirostris",272]
["long-eared bat","Nyctophilus sp.","T092"]
["Long-finned Pilot Whale","Globicephala melas",1606]
["Long-haired Rat","Rattus villosissimus",1400]
["Long-Necked Turtle Species Unknown","Chelodina sp.","T900"]
["Long-nosed Bandicoot","Perameles nasuta",1097]
["Long-nosed Potoroo","Potorous tridactylus",1175]
["Long-snouted Spinner Dolphin","Stenella longirostris",1620]
["Long-tailed Cuckoo","Urodynamis taitensis",791]
["Long-tailed Jaeger","Stercorarius longicaudus",933]
["Long-thumbed Frog","Limnodynastes fletcheri",3059]
["Long-toed Stint","Calidris subminuta",965]
["Lord Howe Island Skink","Oligosoma lichenigera",2461]
["Lord Howe Island Southern Gecko","Christinus guentheri",2125]
["Lord Howe Woodhen","Hypotaenidia sylvestris",966]
["Loveridge's Frog","Philoria loveridgei",3108]
["Lowland Copperhead","Austrelaps superbus",2642]
["Macquarie River Turtle","Emydura macquarii macquarii",2951]
["Macquarie Turtle","Emydura macquarii",2034]
["Madagascar Giant Day Gecko","Phelsuma madagascarensis","T143"]
["Magpie Goose","Anseranas semipalmata",199]
["Magpie-lark","Grallina cyanoleuca",415]
["Mahony's Toadlet","Uperoleia mahonyi",3932]
["Mainland She-oak Skink","Cyclodomorphus michaeli",2866]
["Major Mitchell's Cockatoo","Lophochroa leadbeateri",270]
["Major Skink","Bellatorias frerei",2411]
["Malayan Box Turtle","Cuora amboinensis","T139"]
["Mallard","Anas platyrhynchos",948]
["Mallee Black-headed Snake","Parasuta spectabilis",2813]
["Mallee Emu-wren","Stipiturus mallee",527]
["Mallee Military Dragon","Ctenophorus fordi",2185]
["Mallee Slender Blue-tongue Lizard","Cyclodomorphus melanops elongatus",5003]
["Mallee Worm-lizard","Aprasia inaurita",2143]
["Malleefowl","Leipoa ocellata",7]
["Mangrove Gerygone","Gerygone levigaster",460]
["Mangrove Honeyeater","Lichenostomus fasciogularis",610]
["Manning River Helmeted Turtle, Purvis' Turtle","Myuchelys purvisi","T399"]
["Manx Shearwater","Puffinus puffinus",914]
["Marbled Frogmouth","Podargus ocellatus",314]
["Marbled Gecko","Christinus marmoratus",2126]
["Marbled Velvet Gecko","Oedura marmorata",2119]
["Marble-faced Delma","Delma australis",2154]
["Marsh Sandpiper","Tringa stagnatilis",159]
["Mary River Tortoise","Elusor macrurus",2776]
["Masked Booby","Sula dactylatra",105]
["Masked Lapwing","Vanellus miles",133]
["Masked Owl","Tyto novaehollandiae",250]
["Masked Woodswallow","Artamus personatus",544]
["mastiff-bat","Mormopterus sp.","T091"]
["Melon-headed Whale","Peponocephala electra",1639]
["Milk Snake","Lampropeltis triangulum","T136"]
["Mistletoebird","Dicaeum hirundinaceum",564]
["Mitchell's Hopping-mouse","Notomys mitchellii",1480]
["Mitchell's Short-tailed Snake","Parasuta nigriceps",2724]
["Monk Snake","Parasuta monachus",2729]
["Montane Sunskink","Lampropholis caligula",2453]
["Mottled Petrel","Pterodroma inexpectata",919]
["Mountain Brushtail Possum","Trichosurus cunninghami",1736]
["Mountain Dragon","Rankinia diemensis",2182]
["Mountain Frog","Philoria kundagungan",3107]
["Mountain Pygmy-possum","Burramys parvus",1156]
["Mulga Parrot","Psephotus varius",296]
["Mulga Parrot/Golden-shouldered Parrot hybrid","Psephotus varius x chrysopterygius","T154"]
["Mulga Parrot/Red-rumped Parrot hybrid","Psephotus varius x haematonotus","T153"]
["Murray/Darling Carpet Python","Morelia spilota metcalfei",5097]
["Murray's Skink","Eulamprus murrayi",2552]
["Muscovy Duck","Cairina moschata","T036"]
["Musk Duck","Biziura lobata",217]
["Musk Lorikeet","Glossopsitta concinna",258]
["Musk/Rainbow Lorikeet","Lorikeet Hybrid","M/RH"]
["Musk/Scaly Lorikeet","Lorikeet Hybrid","M/SH"]
["Mustard-bellied Snake","Drysdalia rhodogaster",2805]
["Mute Swan","Cygnus olor",906]
["Nankeen Kestrel","Falco cenchroides",240]
["Nankeen Night Heron","Nycticorax caledonicus",192]
["Narrow-banded Sand-swimmer","Eremiascincus fasciolatus",2437]
["Narrow-banded Snake","Simoselaps fasciolatus",2713]
["Narrow-nosed Planigale","Planigale tenuirostris",1048]
["New Holland Frog","Cyclorana novaehollandiae",3024]
["New Holland Honeyeater","Phylidonyris novaehollandiae",631]
["New Holland Mouse","Pseudomys novaehollandiae",1455]
["New Zealand Fur-seal","Arctocephalus forsteri",1543]
["Nile Monitor","Varanus niloticus","T144"]
["Nobbi Dragon","Diporiphora nobbi",5059]
["Noisy Friarbird","Philemon corniculatus",645]
["Noisy Miner","Manorina melanocephala",634]
["Noisy Pitta","Pitta versicolor",352]
["Northern Banjo Frog","Limnodynastes terraereginae",3064]
["Northern Brown Bandicoot","Isoodon macrourus",1093]
["Northern Corroboree Frog","Pseudophryne pengilleyi",3306]
["Northern Free-tailed Bat","Ozimops lumsdenae",1937]
["Northern Giant-Petrel","Macronectes halli",937]
["Northern Palm Squirrel","Funambulus pennantii",1508]
["Northern Rosella/Cloncurry Ringneck hybrid","Platycercus venustus x Barnardius zonarius macgillivrayi","T159"]
["Northern Rosella/Pale-headed Rosella hybrid","Platycercus venustus x adscitus","T155"]
["Northern Royal Albatross","Diomedea sanfordi",973]
["Nutmeg Mannikin","Lonchura punctulata",983]
["Ocellated Velvet Gecko","Oedura monilis",2120]
["Olive Seasnake","Aipysurus laevis",2742]
["Olive Whistler","Pachycephala olivacea",405]
["Olive-backed Oriole","Oriolus sagittatus",671]
["Olive-headed Seasnake","Disteira major",2746]
["Olongburra Frog","Litoria olongburensis",3202]
["Open-litter Rainbow-skink","Carlia pectoralis",2314]
["Orange Chat","Epthianura aurifrons",450]
["Orange-tailed Finesnout Ctenotus","Ctenotus leae",2364]
["Orange-tailed Shadeskink (Saproscincus challengeri)","Saproscincus challengeri",2449]
["Orange-tailed Shadeskink (Saproscincus rosei)","Saproscincus rosei",2765]
["Oriental Cuckoo","Cuculus optatus",8922]
["Oriental Plover","Charadrius veredus",142]
["Oriental Pratincole","Glareola maldivarum",172]
["Ornate Burrowing Frog","Platyplectrum ornatum",3112]
["Ostrich","Struthio camelus",928]
["Pacific Baza","Aviceda subcristata",234]
["Pacific Black Duck","Anas superciliosa",208]
["Pacific Black Duck Mallard Hybrid","Anas superciliosa x platyrhynchos",816]
["Pacific Golden Plover","Pluvialis fulva",8006]
["Pacific Ground Boa","Candoia carinata","T130"]
["Pacific Gull","Larus pacificus",126]
["Painted Burrowing Frog","Neobatrachus pictus",3085]
["Painted Button-quail","Turnix varius",14]
["Painted Dragon","Ctenophorus pictus",2199]
["Painted Finch","Emblema pictum",654]
["Painted Honeyeater","Grantiella picta",598]
["Pale Field-rat","Rattus tunneyi",1401]
["Pale-flecked Garden Sunskink","Lampropholis guichenoti",2451]
["Pale-headed Rosella","Platycercus adscitus",286]
["Pale-headed Rosella/Blue-bonnet","Parrot Hybrid","P/BH"]
["Pale-headed Snake","Hoplocephalus bitorquatus",2675]
["Pale-headed/Stephens' Banded Snake hybrid","Hoplocephalus bitorquatus x stephensii","T161"]
["Pale-Headed/Yellow Rosella","Platycercus adscitus adscitus x elegans flaveolus","P/YH"]
["Pale-lipped Shadeskink","Saproscincus spectabilis",2448]
["Pale-rumped Ctenotus","Ctenotus regius",2374]
["Pale-vented Bush-hen","Amaurornis moluccana",53]
["Pale-yellow Robin","Tregellasia capito",396]
["Pallid Cuckoo","Cacomantis pallidus",337]
["Paradise Riflebird","Ptiloris paradiseus",686]
["Paradise Shelduck","Tadorna variegata",798]
["Parma Wallaby","Macropus parma",1245]
["Patternless Delma","Delma inornata",2160]
["Paucident Planigale","Planigale gilesi",1050]
["Peaceful Dove","Geopelia striata",9931]
["Pearson's Green Tree Frog","Litoria pearsoniana",3003]
["Pectoral Sandpiper","Calidris melanotos",978]
["Peppered Tree Frog","Litoria piperata",3217]
["Peregrine Falcon","Falco peregrinus",237]
["Peron's Tree Frog","Litoria peronii",3204]
["Pheasant Coucal","Centropus phasianinus",349]
["Pied Butcherbird","Cracticus nigrogularis",700]
["Pied Cormorant","Phalacrocorax varius",99]
["Pied Currawong","Strepera graculina",694]
["Pied Currawong (Lord Howe Is. subsp.)","Strepera graculina crissalis",8017]
["Pied Heron","Egretta picata",190]
["Pied Honeyeater","Certhionyx variegatus",602]
["Pied Oystercatcher","Haematopus longirostris",130]
["Pig","Sus scrofa",1514]
["Pilliga Mouse","Pseudomys pilligaensis",1473]
["Pilotbird","Pycnoptilus floccosus",506]
["Pink Robin","Petroica rodinogaster",383]
["Pink-eared Duck","Malacorhynchus membranaceus",213]
["Pink-footed Shearwater","Ardenna creatopus",772]
["Pink-tailed Legless Lizard","Aprasia parapulchella",2144]
["Pink-tongued Lizard","Cyclodomorphus gerrardii",2575]
["Plains Rat","Pseudomys australis",1469]
["Plains-wanderer","Pedionomus torquatus",20]
["Platypus","Ornithorhynchus anatinus",1001]
["Plumed Whistling-Duck","Dendrocygna eytoni",205]
["Plum-headed Finch","Neochmia modesta",661]
["Polynesian Rat","Rattus exulans",1392]
["Pomarine Jaeger","Stercorarius pomarinus",945]
["Potoroo","Potorous sp.","T086"]
["Pouched Frog","Assa darlingtoni",3007]
["Powerful Owl","Ninox strenua",248]
["Princess Parrot/Red-winged Parrot hybrid","Polytelis alexandrae x Aprosmictus erythropterus","T152"]
["Prong-snouted Blind Snake","Anilios bituberculatus",2588]
["Providence Petrel","Pterodroma solandri",971]
["Proximus Blind Snake","Anilios proximus",2603]
["pseudomys","Pseudomys sp.","T090"]
["Punctate Worm-skink","Anomalopus swansoni",2101]
["Purple Swamphen","Porphyrio porphyrio",58]
["Purple-crowned Lorikeet","Glossopsitta porphyrocephala",259]
["Purple-gaped Honeyeater","Lichenostomus cratitius",620]
["Pygmy Killer Whale","Feresa attenuata",1650]
["Pygmy Right Whale","Caperea marginata",1564]
["Pygmy Sperm Whale","Kogia breviceps",1581]
["pygmy-possum","Cercartetus sp.","T083"]
["Quoll","Dasyurus sp.","T095"]
["Rabbit","Oryctolagus cuniculus",1510]
["Radjah Shelduck","Tadorna radjah",206]
["Ragged Snake-eyed Skink","Cryptoblepharus pannosus","T222"]
["Rainbow Bee-eater","Merops ornatus",329]
["Rainbow Lorikeet","Trichoglossus haematodus",9947]
["Rainforest Cool-skink","Harrisoniascincus zia",2467]
["Ranges Stone Gecko","Diplodactylus furcosus",5264]
["rat","Rattus sp.","T094"]
["Rawnsley's Bowerbird","Ptilonorhynchus rawnsleyi","T370"]
["Red Bishopbird","Euplectes orix",869]
["Red Deer","Cervus elaphus",1526]
["Red Goshawk","Erythrotriorchis radiatus",223]
["Red Junglefowl","Gallus gallus",902]
["Red Kangaroo","Macropus rufus",1275]
["Red Knot","Calidris canutus",164]
["Red Wattlebird","Anthochaera carunculata",638]
["Red-backed Button-quail","Turnix maculosus",13]
["Red-backed Fairy-wren","Malurus melanocephalus",541]
["Red-backed Kingfisher","Todiramphus pyrrhopygius",325]
["Red-backed Toadlet","Pseudophryne coriacea",3118]
["Red-bellied Black Snake","Pseudechis porphyriacus",2693]
["Red-browed Finch","Neochmia temporalis",662]
["Red-browed Pardalote","Pardalotus rubricatus",570]
["Red-browed Treecreeper","Climacteris erythrops",560]
["Red-capped Plover","Charadrius ruficapillus",143]
["Red-capped Robin","Petroica goodenovii",381]
["Red-chested Button-quail","Turnix pyrrhothorax",19]
["Red-crowned Toadlet","Pseudophryne australis",3116]
["Red-eared Slider","Trachemys scripta elegans",5120]
["Red-eyed Tree Frog","Litoria chloris",3174]
["Red-kneed Dotterel","Erythrogonys cinctus",132]
["Red-legged Pademelon","Thylogale stigmatica",1234]
["Red-lored Whistler","Pachycephala rufogularis",402]
["Red-naped Snake","Furina diadema",2669]
["Red-necked Avocet","Recurvirostra novaehollandiae",148]
["Red-necked Pademelon","Thylogale thetis",1236]
["Red-necked Stint","Calidris ruficollis",162]
["Red-necked Wallaby","Macropus rufogriseus",1261]
["Red-rumped Parrot","Psephotus haematonotus",295]
["Red-tailed Black-Cockatoo (coastal subspecies)","Calyptorhynchus banksii banksii",8858]
["Red-tailed Black-Cockatoo (inland subspecies)","Calyptorhynchus banksii samueli",8857]
["Red-tailed Calyptotis","Calyptotis ruficauda",2031]
["Red-tailed Soil-crevice Skink","Proablepharus kinghorni",2537]
["Red-tailed Tropicbird","Phaethon rubricauda",107]
["Redthroat","Pyrrholaemus brunneus",497]
["Red-throated Skink","Acritoscincus platynota",2464]
["Red-vented Bulbul","Pycnonotus cafer",873]
["Red-whiskered Bulbul","Pycnonotus jocosus",990]
["Red-winged Parrot","Aprosmictus erythropterus",280]
["Regent Bowerbird","Sericulus chrysocephalus",684]
["Regent Honeyeater","Anthochaera phrygia",603]
["Regent Parrot (eastern subspecies)","Polytelis anthopeplus monarchoides",709]
["Regent Parrot/Princess Parrot hybrid","Polytelis anthopeplus x alexandrae","T148"]
["Regent Parrot/Red-winged Parrot hybrid","Polytelis anthopeplus x Aprosmictus erythropterus","T156"]
["Regent/Superb Parrot","Polytelis Hybrid","R/SH"]
["Restless Flycatcher","Myiagra inquieta",9955]
["Revealed Frog","Litoria revelata",3219]
["Ringed Brown Snake","Pseudonaja modesta",2697]
["Ringed Plover","Charadrius hiaticula",895]
["Risso's Dolphin","Grampus griseus",1609]
["River Cooter","Pseudemys concinna","T141"]
["Robust Blind Snake","Anilios ligatus",2597]
["Robust Ctenotus","Ctenotus robustus",2375]
["Robust Rainbow-skink","Carlia schmeltzii",2315]
["Robust Velvet Gecko","Nebulifera robusta",2123]
["Rock Dove","Columba livia",957]
["Rocket Frog","Litoria nasuta",3199]
["Rockwarbler","Origma solitaria",505]
["Rose Robin","Petroica rosea",384]
["Rose-crowned Fruit-Dove","Ptilinopus regina",21]
["Rosenberg's Goanna","Varanus rosenbergi",2287]
["Rose-ringed Parakeet","Psittacula krameri","T312"]
["Rough Frog","Cyclorana verrucosa",3026]
["Rough-scaled Snake","Tropidechis carinatus",2723]
["Royal Albatross","Diomedea epomophora",974]
["Royal Spoonbill","Platalea regia",181]
["Ruddy Turnstone","Arenaria interpres",129]
["Ruff","Philomachus pugnax",934]
["Rufous Bettong","Aepyprymnus rufescens",1187]
["Rufous Fantail","Rhipidura rufifrons",362]
["Rufous Fieldwren","Calamanthus campestris",9950]
["Rufous Scrub-bird","Atrichornis rufescens",355]
["Rufous Songlark","Cincloramphus mathewsi",509]
["Rufous Whistler","Pachycephala rufiventris",401]
["Rusa Deer","Cervus timorensis",1528]
["Russet-tailed Thrush","Zoothera heinei",780]
["Sabine's Gull","Xema sabini",783]
["Sacred Kingfisher","Todiramphus sanctus",326]
["Salmon Striped Frog","Limnodynastes salmini",3062]
["Saltbush Morethia Skink","Morethia adelaidensis",2525]
["Salvin's Albatross","Thalassarche salvini",862]
["Salvin's Prion","Pachyptila salvini",941]
["Sambar","Cervus unicolor",1527]
["Sanderling","Calidris alba",166]
["Sandy Inland Mouse","Pseudomys hermannsburgensis",1449]
["Satin Bowerbird","Ptilonorhynchus violaceus",679]
["Satin Flycatcher","Myiagra cyanoleuca",366]
["Saw-shelled Turtle","Wollumbinia latisternum",2029]
["Scaly-breasted Lorikeet","Trichoglossus chlorolepidotus",256]
["Scarlet Honeyeater","Myzomela sanguinolenta",586]
["Scarlet Robin","Petroica boodang",380]
["Scarlet-chested Parrot","Neophema splendida",303]
["Scarlet-chested/Turquoise Parrot","Neophema Hybrid","S/TH"]
["Scute-snouted Calyptotis","Calyptotis scutirostrum",2558]
["Sea Snakes","Hydrophiidae sp.","T439"]
["Sei Whale","Balaenoptera borealis",1571]
["Sharp-tailed Sandpiper","Calidris acuminata",163]
["Sheep (feral)","Ovis aries",1522]
["Shingle-back","Tiliqua rugosa",2583]
["Shining Bronze-Cuckoo","Chalcites lucidus",343]
["Shining Flycatcher","Myiagra alecto",372]
["Short-beaked Echidna","Tachyglossus aculeatus",1003]
["Short-clawed Ctenotus","Ctenotus brachyonyx",2342]
["Short-eared Possum","Trichosurus caninus",1735]
["Short-finned Pilot Whale","Globicephala macrorhynchus",1605]
["Short-limbed Snake-skink","Ophioscincus truncatus",2294]
["Short-tailed Shearwater","Ardenna tenuirostris",71]
["Shrubland Morethia Skink","Morethia obscura",2529]
["Shy Albatross","Thalassarche cauta",91]
["Shy Heathwren","Hylacola cautus",499]
["Silky Mouse","Pseudomys apodemoides",1907]
["Silver Gull","Chroicocephalus novaehollandiae",125]
["Silvereye","Zosterops lateralis",574]
["Silvereye (Lord Howe Is. subsp.)","Zosterops lateralis tephropleurus",8579]
["Sinaloan Milk Snake","Lampropeltis triangulum sinaloae","T138"]
["Singing Honeyeater","Gavicalis virescens",608]
["Slender-billed Prion","Pachyptila belcheri",942]
["Sloane's Froglet","Crinia sloanei",3135]
["Small grebe","small grebe sp.","T180"]
["Small Waders","small wader sp.","T182"]
["Small-footed Myotis","Myotis australis",1360]
["Small-headed Blind Snake","Anilios affinis",2585]
["Small-headed Toadlet","Uperoleia capitulata",3013]
["Smoky Mouse","Pseudomys fumeus",1458]
["Smooth Toadlet","Uperoleia laevigata",3158]
["Soft-plumaged Petrel","Pterodroma mollis",76]
["Song Thrush","Turdus philomelos",992]
["Sooty Albatross","Phoebetria fusca",92]
["Sooty Owl","Tyto tenebricosa",9924]
["Sooty Oystercatcher","Haematopus fuliginosus",131]
["Sooty Shearwater","Ardenna grisea",70]
["Sooty Tern","Onychoprion fuscata",120]
["South Georgian Diving-Petrel","Pelecanoides georgicus",910]
["South Island Pied Oystercatcher","Haematopus finschi",744]
["South-eastern Morethia Skink","Morethia boulengeri",2526]
["South-eastern Slider","Lerista bougainvillii",2475]
["Southern Angle-headed Dragon","Hypsilurus spinipes",2245]
["Southern Bell Frog","Litoria raniformis",3207]
["Southern Boobook","Ninox novaeseelandiae",9922]
["Southern Bottle-nosed Whale","Hyperoodon planifrons",1584]
["Southern Brown Bandicoot (eastern)","Isoodon obesulus obesulus",1710]
["Southern Corroboree Frog","Pseudophryne corroboree",3119]
["Southern Dwarf Crowned Snake","Cacophis krefftii",2646]
["Southern Elephant Seal","Mirounga leonina",1546]
["Southern Emu-wren","Stipiturus malachurus",526]
["Southern Forest Bat","Vespadelus regulus",1378]
["Southern Forest Cool-skink","Niveoscincus coventryi",2458]
["Southern Fulmar","Fulmarus glacialoides",74]
["Southern Giant Petrel","Macronectes giganteus",929]
["Southern Hairy-nosed Wombat","Lasiorhinus latifrons",1168]
["Southern Leaf-tailed Gecko","Saltuarius swaini",2687]
["Southern Mallee Ctenotus","Ctenotus atlas",2340]
["Southern Myotis","Myotis macropus",1357]
["Southern Ningaui","Ningaui yvonneae",1055]
["Southern Rainbow-skink","Carlia tetradactyla",2318]
["Southern Right Whale","Eubalaena australis",1561]
["Southern Right Whale Dolphin","Lissodelphis peronii",1630]
["Southern Rock Dtella","Gehyra lazelli",5201]
["Southern Sandslider","Lerista labialis",2487]
["Southern Scrub-robin","Drymodes brunneopygia",441]
["Southern Spiny-tailed Gecko","Strophurus intermedius",2059]
["Southern Spotted Velvet Gecko","Oedura tryoni",2124]
["Southern Toadlet","Pseudophryne dendyi",3120]
["Southern Water-skink","Eulamprus tympanum",2561]
["Southern Whiteface","Aphelocephala leucopsis",466]
["Spangled Drongo","Dicrurus bracteatus",673]
["Species not listed","Species not listed ","N/A"]
["Speckled Warbler","Chthonicola sagittata",504]
["Spectacled Monarch","Symposiachrus trivirgatus",375]
["Spectacled Seasnake","Disteira kingii",2745]
["Sperm Whale","Physeter macrocephalus",1578]
["Sphagnum Frog","Philoria sphagnicolus",3109]
["Spinifex Slender Blue-tongue","Cyclodomorphus melanops",2865]
["Spiny-cheeked Honeyeater","Acanthagenys rufogularis",640]
["Spiny-tailed Gecko","Strophurus ciliaris",2053]
["Splendid Fairy-wren","Malurus splendens",532]
["Spoonbill sp","Platalea sp.","T029"]
["Spotless Crake","Porzana tabuensis",51]
["Spotted Black Snake","Pseudechis guttatus",2692]
["Spotted Bowerbird","Ptilonorhynchus maculatus",680]
["Spotted Ctenotus","Ctenotus uber",2389]
["Spotted Dolphin","Stenella attenuata",1621]
["Spotted Grass Frog","Limnodynastes tasmaniensis",3063]
["Spotted Harrier","Circus assimilis",218]
["Spotted Nightjar","Eurostopodus argus",331]
["Spotted Pardalote","Pardalotus punctatus",565]
["Spotted Python","Antaresia maculosa",2818]
["Spotted Quail-thrush","Cinclosoma punctatum",436]
["Spotted Seasnake","Hydrophis ornatus",2761]
["Spotted Tree Frog","Litoria spenceri",3195]
["Spotted Turtle-Dove","Streptopelia chinensis",989]
["Spotted-tailed Quoll","Dasyurus maculatus",1008]
["Square-tailed Kite","Lophoictinia isura",230]
["Squatter Pigeon (southern subspecies)","Geophaps scripta scripta",8837]
["Squirrel Glider","Petaurus norfolcensis",1137]
["Stephens' Banded Snake","Hoplocephalus stephensii",2677]
["Stimson's Python","Antaresia stimsoni",2819]
["Stokes's Seasnake","Astrotia stokesii",2744]
["Strap-snouted Brown Snake","Pseudonaja aspidorhyncha",5229]
["Strap-toothed Beaked Whale","Mesoplodon layardii",1591]
["Straw-necked Ibis","Threskiornis spinicollis",180]
["Streaked Shearwater","Calonectris leucomelas",853]
["Striated Fieldwren","Calamanthus fuliginosus",500]
["Striated Grasswren","Amytornis striatus",513]
["Striated Heron","Butorides striatus",193]
["Striated Pardalote","Pardalotus striatus",976]
["Striated Thornbill","Acanthiza lineata",470]
["Striped Burrowing Frog","Cyclorana alboguttata",3165]
["Striped Dolphin","Stenella coeruleoalba",1619]
["Striped Honeyeater","Plectorhyncha lanceolata",585]
["Striped Legless Lizard","Delma impar",2159]
["Stripe-faced Dunnart","Sminthopsis macroura",1073]
["Stubble Quail","Coturnix pectoralis",9]
["Stuttering Frog","Mixophyes balbus",3073]
["Subantarctic Fur-seal","Arctocephalus tropicalis",1013]
["Subtropical Antechinus","Antechinus subtropicus",1675]
["Sudell's Frog","Neobatrachus sudelli",3086]
["Sugar Glider","Petaurus breviceps",1138]
["Sugar\\Squirrel Glider","Petaurus breviceps\\norfolcensis","T103"]
["Sulphur-crested Cockatoo","Cacatua galerita",269]
["Superb Fairy-wren","Malurus cyaneus",529]
["Superb Fruit-Dove","Ptilinopus superbus",23]
["Superb Lyrebird","Menura novaehollandiae",350]
["Superb Parrot","Polytelis swainsonii",277]
["Superb Parrot/Princess Parrot hybrid","Polytelis swainsonii x alexandrae","T149"]
["Swamp Harrier","Circus approximans",219]
["Swamp Rat","Rattus lutreolus",1398]
["Swamp Rat\\Pale Field-rat","Rattus lutreolus\\tunneyi","T109"]
["Swamp Wallaby","Wallabia bicolor",1242]
["Swamp/Bush Rat","Rattus lutreolus/fuscipes",9054]
["Swampland Cool-skink","Pseudemoia rawlinsoni",2683]
["Swift Parrot","Lathamus discolor",309]
["Tahiti Petrel","Pseudobulweria rostrata",920]
["Taipan","Oxyuranus scutellatus",2688]
["Tasmanian Long-eared Bat","Nyctophilus timoriensis sherrini",1057]
["Tawny Crevice-dragon","Ctenophorus decresii",2181]
["Tawny Frogmouth","Podargus strigoides",313]
["Tawny Grassbird","Megalurus timoriensis",523]
["Tawny-crowned Honeyeater","Gliciphila melanops",593]
["Terek Sandpiper","Xenus cinereus",160]
["Tern","Sterna sp.",9022]
["Tessellated Gecko","Diplodactylus tessellatus",2076]
["Thick-billed Grasswren (central NSW subspecies)","Amytornis modestus inexpectatus",9971]
["Thick-billed Grasswren (eastern subspecies)","Amytornis textilis modestus",8022]
["Thick-billed Grasswren (north-west NSW subspecies)","Amytornis modestus obscurior","T1121"]
["Thick-tailed Gecko","Underwoodisaurus milii",2138]
["Three-clawed Worm-skink","Anomalopus verreauxii",2295]
["Three-lined Knob-tail","Nephrurus levis",2112]
["Three-toed Earless Skink","Hemiergis decresiensis",2441]
["Three-toed Skink","Saiphos equalis",2542]
["Three-toed Snake-tooth Skink","Coeranoscincus reticulatus",2293]
["Tiger Snake","Notechis scutatus",2681]
["Timid Slider","Lerista timida",5153]
["Tokay Gecko","Gekko gecko","T983"]
["Topknot Pigeon","Lopholaimus antarcticus",27]
["Torresian Crow","Corvus orru",9902]
["Tree Dtella","Gehyra variegata",2092]
["Tree Martin","Petrochelidon nigricans",359]
["Tree Skink","Egernia striolata",2429]
["Tree-base Litter-skink","Lygisaurus foliorum",2307]
["Trilling Frog","Neobatrachus centralis",3083]
["Triodia Earless Skink","Hemiergis millewae",2445]
["Tropicbird","Phaethon sp.","T313"]
["Trunk-climbing Cool-skink","Pseudemoia spenceri",2541]
["Tryon's Skink","Eulamprus tryoni",2871]
["Turquoise Parrot","Neophema pulchella",302]
["Turquoise Parrot/Golden-shouldered Parrot hybrid","Neophema pulchella x Psephotus chrysopterygius","T160"]
["Tusked Frog","Adelotus brevis",3001]
["Tussock Cool-skink","Pseudemoia entrecasteauxii",2459]
["Tussock Rainbow-skink","Carlia vivax",2320]
["Tussock Skink","Pseudemoia pagenstecheri",2879]
["Two-clawed Worm-skink","Anomalopus leuckartii",2041]
["Tyler's Toadlet","Uperoleia tyleri",3302]
["Tyler's Tree Frog","Litoria tyleri",3214]
["Unbanded Delma","Delma butleri",2167]
["Undescribed Eulamprus","Eulamprus sp. nov.",9035]
["undescribed Philoria","Philoria sp 1","T003"]
["undescribed Planigale","Planigale sp 1",9027]
["Undescribed Whirring Tree Frog","Litoria revelata sp","T905"]
["Unidentifed Planigale","Planigale sp.","T034"]
["Unidentified Amphibolurus","Amphibolurus sp.",9071]
["Unidentified Antechinus","Antechinus sp.","T093"]
["unidentified Bandicoot","Isoodon/Perameles sp.","T081"]
["Unidentified 'Barn' Owl","Tyto sp.",9025]
["Unidentified Beaked Whale","Mesoplodon sp.","T098"]
["Unidentified Bent-wing Bat","Miniopterus sp.","T317"]
["Unidentified Black Snake","Pseudechis sp.",9075]
["Unidentified Black-cockatoo","Calyptorhynchus sp.",9070]
["Unidentified broad-nosed bat","Scotorepens sp.","T089"]
["Unidentified Bronzewing","Phaps sp.","T213"]
["Unidentified Brown Bandicoot","Isoodon sp.",9047]
["Unidentified Brown Snake","Pseudonaja sp.","T033"]
["Unidentified Butcherbird","Cracticus sp.","T022"]
["Unidentified Button-quail","Turnix sp.",9037]
["Unidentified Calyptotis","Calyptotis sp.",9030]
["unidentified canid","Canidae sp.","T106"]
["Unidentified Cormorant","Phalacrocorax sp.","T021"]
["Unidentified Corvid","Corvus sp.",9067]
["unidentified dasyurid","Dasyuridae sp.","T105"]
["Unidentified Deer","Cervus sp.",9112]
["Unidentified Delma","Delma sp.",9072]
["Unidentified Dolphin","Dolphin sp.",9039]
["Unidentified Dtella","Gehyra sp.",9068]
["Unidentified Egernia","Egernia sp.",9073]
["Unidentified Egret","Ardea/Egretta sp.","T179"]
["Unidentified Emydura","Emydura sp.",9057]
["Unidentified Eptesicus","Vespadelus sp.","T088"]
["Unidentified Eulamprus","Eulamprus sp.","T115"]
["Unidentified Fairy-wren","Malurus sp.",9038]
["Unidentified Falcon","Falco sp.",9043]
["unidentified Flycatcher","Myiagra sp.",9078]
["Unidentified Fur-seal","Arctocephalus sp.","T099"]
["unidentified glider","Petaurus/Petauroides sp.","T107"]
["Unidentified Goanna","Varanus sp.",9056]
["Unidentified goshawk","Accipiter sp.","T047"]
["unidentified grass skink","Lampropholis sp.","T117"]
["unidentified ground thrush","Zoothera sp.",7000]
["Unidentified Kingfisher","Todiramphus sp.","T320"]
["Unidentified Large Forest Owl","Tyto/Ninox sp.",9031]
["Unidentified Lerista","Lerista sp.",9069]
["unidentified Limnodynastes","Limnodynastes sp.",9048]
["Unidentified Little Mastiffbat","Mormopterus norfolkensis/planiceps",9033]
["Unidentified Lorikeet","Trichoglossus/Glossopsitta sp.",9076]
["Unidentified Lorrikeet","Glossopsitta sp.","T017"]
["unidentified macropod","Macropod sp.","T108"]
["unidentified 'Marsupial Mouse'","Antechinus/Sminthopsis sp.",9051]
["Unidentified Mastiff-bat","Mormopterus norfolkensis/sp 1",9065]
["Unidentified Melomys","Melomys sp.","T101"]
["Unidentified Morethia","Morethia sp.",9074]
["unidentified murid rodent","Muridae sp.","T104"]
["Unidentified Pademelon","Thylogale sp.","T102"]
["Unidentified Pardalote","Pardalotus sp.","T023"]
["unidentified Philoria","Philoria sp.","T006"]
["Unidentified Quail","Coturnix sp.",9046]
["Unidentified Raptor","Raptor sp.",9119]
["Unidentified Rorqual","Balaenoptera sp.","T097"]
["Unidentified Rosella","Platycercus sp.","T039"]
["Unidentified Saproscincus","Saproscincus sp.",9036]
["unidentified sea turtle","Cheloniidae sp.","T110"]
["Unidentified Seal","Seal sp.",9040]
["Unidentified Shearwater","Puffinus sp.","T009"]
["Unidentified Snake-eyed Skink","Cryptoblepharus australis/pannosus","T319"]
["Unidentified Teal","Anas gracilis/castanea","T348"]
["Unidentified Thornbill","Acanthiza sp.",9042]
["Unidentified Tree Frog","Litoria sp.",9034]
["unidentified treecreeper","Climacteris sp.","T048"]
["Unidentified Wattlebird","Anthochaera sp.","T210"]
["Unidentified Whale","Whale sp.",9041]
["Unspotted Yellow-sided Ctenotus","Ctenotus ingrami",2511]
["Upland Sandpiper","Bartramia longicauda",892]
["Varied Lorikeet/Little Lorikeet hybrid","Psitteuteles versicolor x Glossopsitta pusilla","T150"]
["Varied Sittella","Daphoenositta chrysoptera",549]
["Varied Triller","Lalage leucomela",431]
["Variegated Fairy-wren","Malurus lamberti",536]
["Veiled Chameleon","Chamaeleo calyptratus","T979"]
["Verreaux's Frog","Litoria verreauxii",3215]
["Verreaux's Tree Frog (subsp)","Litoria verreauxii verreauxii",3906]
["Wallum Froglet","Crinia tinnula",3137]
["Wandering Albatross","Diomedea exulans",86]
["Wandering Tattler","Tringa incana",156]
["Wandering Whistling-Duck","Dendrocygna arcuata",204]
["Warrumbungle's Black Rock Skink","Egernia saxatilis saxatilis",5013]
["Water buffalo","Bubalus bubalis",1517]
["Water-holding Frog","Cyclorana platycephala",3025]
["Water-rat","Hydromys chrysogaster",1415]
["wattled bat","Chalinolobus sp.","T096"]
["Weasel Skink","Saproscincus mustelinus",2452]
["Wedgesnout Ctenotus","Ctenotus brooksi",2343]
["Wedge-tailed Eagle","Aquila audax",224]
["Wedge-tailed Shearwater","Ardenna pacificus",69]
["Weebill","Smicrornis brevirostris",465]
["Welcome Swallow","Hirundo neoxena",357]
["Western Blue-tongued Lizard","Tiliqua occipitalis",2579]
["Western Gerygone","Gerygone fusca",463]
["Western Grey Kangaroo","Macropus fuliginosus",1263]
["Western Pygmy Possum","Cercartetus concinnus",1151]
["Western Sawshelled Turtle, Bell's Turtle","Myuchelys bellii",2825]
["Westland Petrel","Procellaria westlandica",916]
["Whimbrel","Numenius phaeopus",150]
["Whiptail Wallaby","Macropus parryi",1259]
["Whiskered Tern","Chlidonias hybrida",110]
["Whistling Kite","Haliastur sphenurus",228]
["White Tern","Gygis alba",972]
["White-backed Swallow","Cheramoeca leucosterna",358]
["White-bellied Cuckoo-shrike","Coracina papuensis",425]
["White-bellied Sea-Eagle","Haliaeetus leucogaster",226]
["White-bellied Storm-Petrel","Fregetta grallaria",944]
["White-breasted Woodswallow","Artamus leucorynchus",543]
["White-browed Babbler","Pomatostomus superciliosus",445]
["White-browed Scrubwren","Sericornis frontalis",488]
["White-browed Treecreeper","Climacteris affinis",561]
["White-browed Woodswallow","Artamus superciliosus",545]
["White-capped Albatross","Thalassarche cauta steadi",861]
["White-cheeked Honeyeater","Phylidonyris niger",632]
["White-chinned Petrel","Procellaria aequinoctialis",915]
["White-crowned Snake","Cacophis harriettae",2645]
["White-eared Honeyeater","Nesoptilotis leucotis",617]
["White-eared Monarch","Carterornis leucotis",376]
["White-faced Heron","Egretta novaehollandiae",188]
["White-faced Storm-Petrel","Pelagodroma marina",65]
["White-footed Dunnart","Sminthopsis leucopus",1069]
["White-fronted Chat","Epthianura albifrons",448]
["White-fronted Honeyeater","Purnella albifrons",594]
["White-fronted Tern","Sterna striata",114]
["White-headed Petrel","Pterodroma lessonii",77]
["White-headed Pigeon","Columba leucomela",28]
["White-lipped Snake","Drysdalia coronoides",2665]
["White-naped Honeyeater","Melithreptus lunatus",578]
["White-necked Heron","Ardea pacifica",189]
["White-necked Petrel","Pterodroma cervicalis",774]
["White-plumed Honeyeater","Ptilotula penicillatus",625]
["White-rumped Sandpiper","Calidris fuscicollis",849]
["White's Skink","Liopholis whitii",2430]
["White-striped Freetail-bat","Austronomus australis",1324]
["White-tailed Tropicbird","Phaethon lepturus",108]
["White-throated Gerygone","Gerygone olivacea",453]
["White-throated Honeyeater","Melithreptus albogularis",579]
["White-throated Needletail","Hirundapus caudacutus",334]
["White-throated Nightjar","Eurostopodus mystacalis",330]
["White-throated Treecreeper","Cormobates leucophaea",558]
["White-winged Black Tern","Chlidonias leucopterus",109]
["White-winged Chough","Corcorax melanorhamphos",693]
["White-winged Fairy-wren","Malurus leucopterus",535]
["White-winged Triller","Lalage sueurii",430]
["White-winged Wydah","Euplectes albonotatus",951]
["Wild Turkey","Meleagris gallopavo",778]
["Willie Wagtail","Rhipidura leucophrys",364]
["Wilson's Storm-Petrel","Oceanites oceanicus",63]
["Woma","Aspidites ramsayi",2613]
["Wompoo Fruit-Dove","Ptilinopus magnificus",25]
["Wonga Pigeon","Leucosarcia melanoleuca",44]
["Wongai Ningaui","Ningaui ridei",1054]
["Wood Gecko","Diplodactylus vittatus",2077]
["Wood Mulch-slider","Lerista muelleri",5154]
["Wood Sandpiper","Tringa glareola",154]
["Wrinkled Toadlet","Uperoleia rugosa",3151]
["Yellow Rosella/Turquoise Parrot","Parrot Hybrid","Y/TH"]
["Yellow Thornbill","Acanthiza nana",471]
["Yellow-bellied Glider","Petaurus australis",1136]
["Yellow-bellied Seasnake","Pelamis platurus",2770]
["Yellow-bellied Sheathtail-bat","Saccolaimus flaviventris",1321]
["Yellow-bellied Slider","Trachemys scripta scripta","T311"]
["Yellow-bellied Water-skink","Eulamprus heatwolei",2214]
["Yellow-billed Spoonbill","Platalea flavipes",182]
["Yellow-faced Honeyeater","Caligavis chrysops",614]
["Yellow-faced Whip Snake","Demansia psammophis",2655]
["Yellow-footed Antechinus","Antechinus flavipes",1027]
["Yellow-footed Rock-wallaby","Petrogale xanthopus",1205]
["Yellow-footed Tortoise","Geochelone denticulata","T140"]
["Yellow-footed/Brown Antechinus","Antechinus flavipes/stuarti",9053]
["Yellowhammer","Emberiza citrinella",789]
["Yellow-lipped Sea Krait","Laticauda colubrina",2768]
["Yellow-nosed Albatross","Thalassarche chlororhynchos",89]
["Yellow-plumed Honeyeater","Ptilotula ornatus",622]
["Yellow-rumped Thornbill","Acanthiza chrysorrhoa",486]
["Yellow-spotted Tree Frog","Litoria castanea",3172]
["Yellow-tailed Black-Cockatoo","Calyptorhynchus funereus",267]
["Yellow-tailed Plain Slider","Lerista xanthura",2506]
["Yellow-throated Miner","Manorina flavigula",635]
["Yellow-throated Scrubwren","Sericornis citreogularis",493]
["Yellow-tufted Honeyeater","Lichenostomus melanops",619]
["Zebra Finch","Taeniopygia guttata",653]
["Zigzag Velvet Gecko","Amalosia rhombifer",2122]

{"sheet":"Encounter Type","index":2,"n_rows":46,"n_cols":3,"rows_kept":46,"cut":false,"hidden":false,"merged":[[0,0,0,2]]}
["Encounter Type Definition – The cause or reason for encountering the animal"]
["Encounter Type ","Definition ","Example "]
["Abandoned/ Orphaned","An animal’s parent is known to be deceased or it is found on its own with no sign of its parents or family group. ","Joey removed from the pouch of its deceased mother; possum ejects joey from its pouch in time of stress; a dependent young is found and the parent’s condition and location is unknown; a chick cannot be reunited with its parents because the nest is too high and so needs to come into care "]
["Attack – Bird","Animal has been attacked by a bird","Crested pigeon that has been attacked by noisy miners"]
["Attack – Cat","Animal has been attacked by a cat","Ringtail possum that has been brought in by the cat"]
["Attack – Dog","Animal has been attacked by a dog","Brushtail possum that has been bitten by a dog "]
["Attack – Fox","Animal has been attacked by a fox","Duck that has been attacked by a fox"]
["Attack – Same Species","Animal has been attacked by a conspecific (i.e. member of its own species)","Noisy miner that has been attacked by other noisy minors "]
["Attack – Suspected/other","Animal has sustained injuries or is behaving in a way that suggests it has been attacked by something","This should be used when the source of the attack is unknown; human attack should not be categorised here but in the ‘Intentional harm’ encounter type"]
["Collision – Building","Animal has had an impact with a building including windows","Bird that has flown into a window"]
["Collision – Motor Vehicle","Animal has had an impact with a car","Macropod hit by a car; tawny frogmouth hit by a car"]
["Collision – Other","Animal has had an impact with something, whether a natural or manmade structure","Bird that has flown into a glass pool fence"]
["Collision – Vessel Strike","Animal has had an impact with a boat","Seabird that has collided with a boat"]
["Dependent on Parent Taken into Care","A dependent young has been brought into care as a result of its parent requiring treatment","A dependent koala joey is not ill or injured but is being kept with its mother to be raised and fed while the mother undergoes rehabilitation "]
["Disease – Botulism","Animal is confirmed either visually or through vet assessment to be suffering from botulism","Botulism is a disease common in waterbirds that causes paralysis"]
["Disease – Chlamydia","Animal is confirmed either visually or through vet assessment to have chlamydia","Ocular and urogenital chlamydia in koalas; chlamydia in birds"]
["Disease – External parasite","Animal has parasites on its body","Paralysis tick; lice; maggots; flat flies"]
["Disease – Internal parasite","Animal has visible internal parasites or confirmed symptoms associated with internal parasites","Examples of internal parasites include gapeworm, tapeworm, throat worm  "]
["Disease – Mange","Animal has mange (i.e. scabies mites) regardless of what stage","Wombats or other mammals with mange"]
["Disease – Other","Animal is affected with any other disease not listed as a category","Exudative dermatitis in possums"]
["Disease – PBFD","Birds suffering from psittacine circoviral disease, aka beak and feather, beak and feather disease virus, PCD and runners","Runners in lorikeets; beak and feather in sulphur crested cockatoos; PCD in birds of prey"]
["Domestic Pet – Escaped","Animal is found and determined through species or behavioural characteristics to be a lost or escaped domestic pet","This is typically a bird or reptile. Common escaped pets include cockatiels, sulphur-crested cockatoos, rainbow lorikeets, bearded dragons and pythons"]
["Domestic Pet – Seized","Pet has come into care as a result of an authorised seizure of animals","An animal has been obtained as a result of a police/government seizure and is being held until court proceedings have been finalised"]
["Domestic Pet – Surrendered","Pet animal has been handed over to the organisation","Owner can no longer look after their pet lizard or bird and is giving it to the organisation for rehoming"]
["Electrocution","Animal is injured or killed via an electric shock","Flying-fox on powerlines; possum that has been electrocuted on wire"]
["Entanglement – Marine debris","Animal is impacted by any manmade material in and around waterways including fishing gear and litter, in a manner from which it cannot free itself","Pelican with fishing hook embedded in its chest; seal entangled in fishing line"]
["Entanglement – Netting","Animal is impacted by netting (other than marine) in a manner from which it cannot free itself","Snake or flying-fox caught in fruit tree netting"]
["Entanglement – Other","Animal is impacted by any material or object without a standalone category in a manner from which it cannot free itself","Animal is entangled in rope, shoelace, plastic rings"]
["Entanglement – Wire","Animal is impacted by barbed wire in a manner from which it cannot free itself","Flying-fox entangled in barbed wire fencing; ‘fence-hanger’ in kangaroos; glider entangled in barbed wire fencing"]
["Entrapment","Animal is stuck in such a manner that it cannot free itself","Animal has fallen into a storm drain and cannot free itself; possum stuck in a chimney; bird stuck in roof or wall cavity; kangaroo with bin lid stuck over its head "]
["Event – Drought","Animal is suffering from the impacts of drought, i.e. prolonged period of low rainfall leading to a lack of water","Malnourished or dehydrated macropods in drought affected area"]
["Event – Extreme Heat","Animal is suffering from the impacts of prolonged periods of abnormally high temperatures","Flying-fox heat stress events"]
["Event – Fire","Animal is suffering from the impacts of fire either natural or manmade","Bushfire burn victims"]
["Event – Flood","Animal is suffering from the impacts of flood","Animal water-logged in flood event"]
["Event – Storm","Animal is suffering from the impacts of a storm","Bird has been blown out of nest or off migratory course due to storm event"]
["Fallen from nest or tree","Animal has fallen from a nest or tree and the cause cannot be attributed to any other encounter type ","Nestling bird fallen from nest in high winds; nestling bird failed attempt at fledging; possum fallen from a tree "]
["Fouled by Substance","Animal is partially or wholly covered by a substance","Animal in an oil spill or stuck to an insect sticky trap"]
["Human Impact – habitat alteration/tree felling","Animal is displaced or otherwise affected by localised alteration of their habitat or immediate environment","This is not habitat loss on a mass scale. This is referring to animals that have been immediately displaced or needing relocation due to local development or a tree being chopped down"]
["Human impact – Intentional harm","Animal has been injured by purposeful human action","Acts of cruelty; shooting; physical violence; illegal trapping"]
["Human Impact – Interference","Animal has been interfered with by a member of the public, regardless of their intent","Fledgling birds in spring; people keeping orphaned joeys and calling days/weeks later"]
["Ingestion of a foreign object","Animal has taken into its body via the mouth an object that it would not normally or should not normally ingest","Snake swallowing golf ball or artificial eggs; seagull that has ingested a fishing hook"]
["Poisoned","Animal has ingested a poisonous substance either directly or indirectly","Possum that has eaten snail or rat bait; bird of prey that has eaten a rodent affected by bait"]
["Negative Interaction","A person has reported a negative interaction with an animal and requested action","Ducklings in a backyard pool; snake under a fridge; possum in the house"]
["Stranded/Haul out","Whale, dolphin or turtle has been found on the land and cannot return itself to the water, or seal or penguin has temporarily left the water and is found on land","Examples included in the definition"]
["Unknown","The reason for the animal coming into care cannot be determined and is therefore not known"]
["Unsuitable Environment","An animal is located in an environment that poses a risk to itself or that it would not typically be found in ","Echidna crossing a road "]

{"sheet":"Animal Condition","index":3,"n_rows":42,"n_cols":3,"rows_kept":42,"cut":false,"hidden":false,"merged":[[0,0,0,2]]}
["Animal Condition Definition - the state the animal is in when it is initially assessed "]
["Animal Condition","Definition ","Example "]
["Abnormal behaviour","Animal is displaying behaviours that are not typical of its species or that do not seem quite right in the situation ","Kangaroo not moving away when approached by humans; koala that has been sitting on the ground for a few days "]
["Burnt","Animal is wounded, altered or impacted by fire or heat","Burnt paws, fur, skin as a result of bushfire, hot pavement or other surfaces; burnt from a barbeque"]
["Cold stress / Hypothermia","Abnormally low body temperature","Symptoms include shivering, fatigue, lack of mental awareness, shallow and/or slow breathing"]
["Concussed","Animal appears to be suffering from an impact causing temporary unconsciousness or confusion","Bird has flown into a window"]
["Dehydrated","Excess loss of body water","Any animal suffering symptoms of dehydration which include sunken eyes, skin tenting, lethargy, dry mouth, cold extremities"]
["Difficulty breathing","Animal is demonstrating trouble breathing","Heaving; rapid inhalation "]
["Diseased","Animal that is suffering from disease, either internal or external","Beak and feather; lyssavirus; mange; chlamydia; chytrid"]
["Exhausted","Complete lack of energy ","Wedge-tailed shearwaters that have flown off their migratory flightpath and cannot resume flight due to exhaustion"]
["Eye Injury","Animal has suffered injury to the eye","Animal with infected eye; cataracts; animal with damaged eye "]
["Feather/fur damage","Animal has damage to or a lack of feathers or fur","Missing tail feathers; damaged wing feathers "]
["Float","The accumulation of gas in the body cavity and gut of a sea turtle, making it incapable of diving","Buoyant sea turtle "]
["Geriatric","The only condition obviously affecting the animal is that it is old","Koala with significant tooth wear as a result of age, causing it to starve "]
["Heat stress / Hyperthermia","Too much heat is absorbed by the animal, causing stress. Animal has overheated","Flying-fox in extreme temperatures; symptoms include open mouth breathing (gaping), panting, licking of forearms"]
["Humanised","Animal has been cared for by a member of the public for a prolonged period of time and is displaying abnormal behaviour or dependence toward humans","Joey kangaroo seeking out the attention of people "]
["Infection","Includes infection both in and/or outside of the body ","An injury or wound has become infected"]
["Injury to beak/mouth","Animal has sustained physical trauma to the beak or mouth","Cracked beak; hard palate fracture "]
["Injury to body","Animal has sustained physical trauma to the body, not limbs, tail or head/face","Puncture wounds to the body"]
["Injury to fin","Animal has sustained physical trauma to the fin","Turtle has been hit by a propeller causing lacerations to the fin "]
["Injury to forelimb/wing","Animal has sustained physical trauma to the forelimb/wing ","Fracture or broken bone in the wing"]
["Injury to head","Animal has sustained physical trauma to the head","Pecking wound on head"]
["Injury to hindlimb","Animal has sustained physical trauma to the hindlimb","Hip fracture or broken tibia "]
["Injury to patagium","A glider or bat has sustained injury to its patagium, i.e. the membrane between the forelimbs and hindlimbs that enables flight/gliding ","Glider that has a tear in its patagium"]
["Injury to tail","Animal has sustained physical trauma to the tail","Missing part of tail; wound to tail "]
["Internal injury","Animal has sustained internal trauma ","Internal bleeding; puncture of air sacs; ruptured spleen "]
["Malnourished","Animal is suffering from a lack of quality food","Animal is underweight/emaciated"]
["Moribund","Animal appears non-responsive, is near death or in the process of dying","Koala that is so ill, old or impacted by disease that it is close to death "]
["Multiple health issues","Animal is suffering from a number of health issues and its condition cannot be attributed to a single one","Geriatric koala that is suffering from chlamydia and has multiple injuries from being hit by a car"]
["Myopathy","A non-infection condition in which muscle damage results from extreme exertion, stress or struggle ","Kangaroo that has been chased by a dog; flying-fox that has been struggling for a prolonged period of time "]
["Neurological damage","Damage to the brain, spine and nerves","‘Stargazing’ in reptiles; loss of sensation; seizures; head tilting; blindness; muscle weakness; confusion"]
["No apparent distress","Animal appears stable and there is no discernible disorder","Animal that has no health concerns and is being relocated; an animal that appears to be healthy with no obvious signs of ailment"]
["No apparent injury","Animal is uninjured","Waterbird that is entangled in netting but has not sustained any injury"]
["Orphaned","Mother of the animal is known to be deceased","Joey in the pouch of its deceased mother"]
["Paralysis","Loss of the ability to move limbs","Animal is unable to move back legs "]
["Parasite burden","An animal that is suffering from a higher than average parasite load","Eastern blue-tongued lizard thats body is covered in ticks"]
["Shell injury","Turtle has sustained injury to any part of its shell ","Eastern snake-necked turtle that has a fractured shell"]
["Shock","A critical condition caused by a sudden decrease in blood flow resulting in poor oxygen delivery to the body","Pale gums, respiratory failure, hyperventilation, rapid and faint heartbeat, cold to touch"]
["Skin problem","Animal is suffering from a skin condition requiring treatment","Dermatitis "]
["Tumour","Swelling of an area of the body caused by abnormal overgrowth of tissue","Skin cancer in an animal; facial tumours"]
["Unknown","The condition of the animal is not known and could not be determined during its time in care","Animal is not healthy but the condition cannot be determined "]
["Waterlogged","Saturated or full of water","An animal rescued from a pool "]

{"sheet":"Fate","index":4,"n_rows":26,"n_cols":3,"rows_kept":26,"cut":false,"hidden":false,"merged":[[0,0,0,2]]}
["Fate Definition - The outcome for the animal "]
["Fate","Definition ","Example "]
["Advice Provided ","The situation was handled by providing advice to an enquiry","Member of the public enquires about possums in the roof, nesting brush turkeys, etc. and is provided with advice only "]
["Could not locate for rescue","Animal is unable to be located for rescue","Called out to rescue a bird on the ground and when the rescuer arrives they cannot find it; member of the public calls to tell you that the animal has disappeared"]
["Dead prior to rescuer arriving","Animal has died between the time the call was logged and a rescuer arrived, or is an animal that is deceased and requires pouch checking","When the rescuer arrives at the rescue location they determine the animal has already died; a member of the public rings back after logging an incident to report the animal has died"]
["Died in care","Animal has died any time between the initial rescue and before being released","Animal died after being rescued"]
["Escaped from care","Animal has freed itself from its care facilities and cannot be located","Possum escapes from its enclosure and cannot be found"]
["Euthanased by Rehabilitation Group","Confirmed euthanasia by the rehabilitation group based on approved methods as outlined in the species’ relevant code of practice","Animal has been euthanased by a member of a group in accordance with approved methods as outlined in the code of practice; approved member that holds the required firearms licence euthanasing a kangaroo using a firearm"]
["Euthanased by Vet","Confirmed euthanasia of the animal by a veterinarian","Animal has been euthanased by a qualified veterinarian"]
["Euthanased by Police","Animal has been euthanased using a firearm by a police officer","Police are called out to euthanase a kangaroo on the side of the road"]
["Euthanased by Other","An animal has been euthanased by an approved person not listed as a standalone category","Kangaroo euthanased using a firearm by an NPWS ranger or RSPCA officer"]
["Evaded Capture","Attempt(s) to capture the animal were not successful","Animal was not able to be captured during rescue, e.g. a bird that flew away during rescue"]
["In Care","An animal is still undergoing rehabilitation at the time of reporting","Any animal that is still in care at the time of reporting"]
["Left and Observed","Animal required no immediate intervention and was therefore left in the same condition it was found","Checking on a fledgling chick; a member of the public has been asked to keep an eye on an animal and report back if anything changes"]
["Permanent Care – Companion (approved)","Animal has been approved by NPWS to be held as a permanent care animal for the purposes of being a companion to other animals coming into care","Animal belonging to a social species endemic to area of operation"]
["Permanent Care – external/community education (approved)","Animal has been approved by NPWS to be held as a permanent care animal for education purposes within the community. This requires Exhibited Animals Act approval."]
["Permanent Care – Internal training (approved)","Animal has been approved by NPWS to be held as a permanent care animal for education purposes within the rehabilitation organisation. This requires ethics approval."]
["Permanent Care – Research (approved)","Animal has been approved by NPWS to be held as a permanent care animal as part of an authorised research project "]
["Rehomed","A seized, surrendered or domestic pet (when the owner cannot be located) is rehomed with a licensed native animal keeper, as per NPWS policy","Children’s python has been rehomed with a person licensed to keep this species"]
["Released","An animal that has been rehabilitated and returned to the wild","Releasing any animal"]
["Relocated","A healthy and/or uninjured animal was moved from one location to another, without it requiring care","Relocating a snake from inside a house to appropriate habitat"]
["Resolved by Vets","When the animal was last known to be at the vet but the exact fate is not known","Animal recorded in the system as being at the vet but the vet does not know the fate of the animal"]
["Returned to Owner","A domestic pet has been reunited with its owner","Owner of a pet sulphur-crested cockatoo has been located and their bird returned to them"]
["Reunited with Parents","A young animal has been confirmed as returned and accepted by its parents","Nestling chick has fallen from the nest and has been placed back in the nest by a rescuer. The reuniting attempt was successful and the parent birds are confirmed to be attending to the chick"]
["Transferred to an authorised Fauna Park/Zoo","An animal has been transferred to a fauna park or zoo for treatment or permanent care after obtaining approval from the relevant person(s) within an organisation","Non-releasable koala has been approved for permanent care at a fauna park"]
["Transferred to Other wildlife rehabilitation organisation","Animal has been physically transferred from the care of one wildlife rehabilitation organisation to another","Animal and its care records (e.g. condition, weights, treatments, unique identifying number) are given to another group for continued care of the animal. This could be for specialist care, facilities required or capacity of group"]

{"sheet":"Reference Data","index":5,"n_rows":45,"n_cols":7,"rows_kept":45,"cut":false,"hidden":false,"merged":[]}
["Encounter Type","Animal Condition","Sex","Life Stage ","Pouch Condition","Fate","Release Location: Distance from Encounter Location"]
["Abandoned/ Orphaned","Abnormal behaviour","Female","Adult ","Lactating","Advice Provided ","Same as Encounter Location"]
["Attack – Bird","Burnt","Male","Juvenile ","N/A","Could not locate for rescue","Less than 25m from encounter location"]
["Attack – Cat","Cold stress / Hypothermia","Unknown","Young","Non-Lactating","Dead prior to rescuer arriving","Less than 50m from encounter location"]
["Attack – Dog","Concussed","Haemaphrodite ","Egg","Pinkie Attached","Died in care","Up to 1km from the encounter location"]
["Attack – Fox","Dehydrated",null,"Unknown","Pouch Young","Escaped from care","Up to 10km from the encounter location"]
["Attack – Same Species","Difficulty breathing",null,null,"Back Young ","Euthanased by Rehabilitation Group","Up to 50km from the encounter location"]
["Attack – Suspected/other","Diseased",null,null,null,"Euthanased by Vet","Up to 100km from the encounter location "]
["Collision – Building","Exhausted",null,null,null,"Euthanased by Police"]
["Collision – Motor Vehicle","Eye Injury",null,null,null,"Euthanased by Other"]
["Collision – Other","Feather/fur damage",null,null,null,"Evaded Capture"]
["Collision – Vessel Strike","Float",null,null,null,"In Care"]
["Dependent on Parent Taken into Care","Geriatric",null,null,null,"Left and Observed"]
["Disease – Botulism","Heat stress / Hyperthermia",null,null,null,"Permanent Care – Companion (approved)"]
["Disease – Chlamydia","Humanised",null,null,null,"Permanent Care – external/community education (approved)"]
["Disease – External parasite","Infection",null,null,null,"Permanent Care – Internal training (approved)"]
["Disease – Internal parasite","Injury to beak/mouth",null,null,null,"Permanent Care – Research (approved)"]
["Disease – Mange","Injury to body",null,null,null,"Rehomed"]
["Disease – Other","Injury to fin",null,null,null,"Released"]
["Disease – PBFD","Injury to forelimb/wing",null,null,null,"Relocated"]
["Domestic Pet – Escaped","Injury to head",null,null,null,"Resolved by Vets"]
["Domestic Pet – Seized","Injury to hindlimb",null,null,null,"Returned to Owner"]
["Domestic Pet – Surrendered","Injury to patagium",null,null,null,"Reunited with Parents"]
["Electrocution","Injury to tail",null,null,null,"Transferred to an authorised Fauna Park/Zoo"]
["Entanglement – Marine debris","Internal injury",null,null,null,"Transferred to Other wildlife rehabilitation organisation"]
["Entanglement – Netting","Malnourished"]
["Entanglement – Other","Moribund"]
["Entanglement – Wire","Multiple health issues"]
["Entrapment","Myopathy"]
["Event – Drought","Neurological damage"]
["Event – Extreme Heat","No apparent distress"]
["Event – Fire","No apparent injury"]
["Event – Flood","Orphaned"]
["Event – Storm","Paralysis"]
["Fallen from nest or tree","Parasite burden"]
["Fouled by Substance","Shell injury"]
["Human Impact – habitat alteration/tree felling","Shock"]
["Human impact – Intentional harm","Skin problem"]
["Human Impact – Interference","Tumour"]
["Ingestion of a foreign object","Unknown"]
["Poisoned","Waterlogged"]
["Negative Interaction"]
["Stranded/Haul out"]
["Unknown"]
["Unsuitable Environment"]